Workbook

Sheet Index
B1: Reference Star Finder | P1: F. Teyssier | Q1: V.3. | R1: 2024
C3: Distance | F3: R.A. hh | G3: 21 | H3: =+RADIANS((G3+G4/60)*15) -> 5.720460172 | I3: Altitude [°] | J3: =+temp!B9 -> 12.35666981 | L3: Target
F4: mn | G4: 51.03289883 | H4: mn | L4: AG Peg | P4: 1
L5: 15 59 30.1619486506 +25 55 12.607985109
C6: Nb Stars | D6: 23 | F6: Dec. ° | G6: 12 | H6: =+RADIANS(G6+G7/60) -> 0.2203581346 | I6: Date | J6: 2020-07-23
F7: ' | G7: 37.53546566 | I7: Time (UT) | J7: 20:00:00 | O7: Simbad data base
O8: A and B spectral type main sequence stars ("V")
A9: # | B9: Name | C9: R.A. | D9: Dec | E9: V | F9: B-V | G9: EB-V | H9: Sp. Type | I9: Sp. Type | J9: Distance | K9: h | L9: D h | M9: Miles | O9: Vmag < 6
A10: 1 | B10: HD 208565 | C10: 21 56 56.4 | D10: + 12 04 35.4 | E10: 5.544 | F10: 0.05 | G10: 0 | H10: A2 | I10: A2Vnn | J10: 1.5 | K10: 11 | L10: -1.4 | N10: 1.4 | O10: EB-V computed
A11: 2 | B11: HD 209459 | C11: 22 03 19.0 | D11: + 11 23 11.6 | E11: 5.824 | F11: -0.05 | G11: 0.02 | H11: B9,5 | I11: B9,5V | J11: 3.2 | K11: 9.5 | L11: -2.9 | N11: 2.9 | O11: 1044 stars
A12: 3 | B12: HD 208108 | C12: 21 53 37.4 | D12: + 19 40 06.4 | E12: 5.68 | F12: 0.02 | G12: 0.03 | H12: A0 | I12: A0Vs | J12: 7.1 | K12: 17.2 | L12: 4.9 | N12: 4.9 | O12: Miles data base Type A and B
A13: 4 | B13: HD 203562 | C13: 21 22 53.6 | D13: + 06 48 40.1 | E13: 5.159 | F13: 0.06 | G13: 0 | H13: A3 | I13: A3V | J13: 9 | K13: 12.5 | L13: 0.1 | N13: 0.1 | O13: Simbad target: thanks to Paolo Berardi
A14: 5 | B14: HD 210129 | C14: 22 07 50.3 | D14: + 21 42 10.5 | E14: 5.783 | F14: -0.08 | G14: 0.05 | H14: B7 | I14: B7Vne | J14: 9.9 | K14: 16.5 | L14: 4.1 | N14: 4.1
A15: 6 | B15: HD 207203 | C15: 21 47 14.0 | D15: + 02 41 10.0 | E15: 5.631 | F15: 0.01 | G15: 0 | H15: A1 | I15: A1V | J15: 10 | K15: 5.4 | L15: -7 | N15: 7 | O15: Site
A16: 7 | B16: HD 214923 | C16: 22 41 27.7 | D16: + 10 49 52.9 | E16: 3.4 | F16: -0.09 | G16: 0.02 | H16: B8 | I16: B8V | J16: 12.5 | K16: 3 | L16: -9.4 | N16: 9.4 | O16: Longitude | Q16: 0 | R16: ° (+ = EAST)
A17: 8 | B17: HD 208057 | C17: 21 53 03.8 | D17: + 25 55 30.5 | E17: 5.078 | F17: -0.15 | G17: 0.05 | H17: B3 | I17: B3Ve | J17: 13.3 | K17: 21.9 | L17: 9.5 | N17: 9.5 | O17: Latitude | Q17: 50 | R17: ° | S17: =+RADIANS(Q17) -> 0.872664626
A18: 9 | B18: HD 199254 | C18: 20 55 38.6 | D18: + 12 34 06.8 | E18: 5.54 | F18: 0.11 | G18: 0 | H18: A4 | I18: A4V | J18: 13.5 | K18: 21.2 | L18: 8.8 | N18: 8.8
A19: 10 | B19: HD 212571 | C19: 22 25 16.6 | D19: + 01 22 38.6 | E19: 4.794 | F19: -0.17 | G19: 0.09 | H19: B1 | I19: B1Ve | J19: 14.1 | K19: -1.7 | L19: -14.1 | N19: 14.1
A20: 11 | B20: HD 204414 | C20: 21 27 40.1 | D20: + 27 36 30.9 | E20: 5.389 | F20: 0.05 | G20: 0.03 | H20: A1 | I20: A1V | J20: 15.9 | K20: 27.1 | L20: 14.7 | N20: 14.7
A21: 12 | B21: HD 212061 | C21: 22 21 39.4 | D21: - 01 23 14.4 | E21: 3.847 | F21: -0.03 | G21: 0 | H21: A0 | I21: A0V | J21: 15.9 | K21: -3.2 | L21: -15.6 | N21: 15.6 | O21: Limits EB-V | Q21: Sort by
A22: 13 | B22: HD 216735 | C22: 22 55 13.7 | D22: + 08 48 58.2 | E22: 4.906 | F22: 0 | G22: 0 | H22: A1 | I22: A1V | J22: 16.2 | K22: -0.7 | L22: -13.1 | N22: 13.1 | O22: 0.05
A23: 14 | B23: HD 209833 | C23: 22 05 34.7 | D23: + 28 57 50.3 | E23: 5.7 | F23: -0.06 | G23: 0.01 | H23: B9 | I23: B9Vn | J23: 16.7 | K23: 22.2 | L23: 9.8 | N23: 9.8 | O23: 0.1 | R23: h
A24: 15 | B24: HD 217232 | C24: 22 59 11.8 | D24: + 11 43 43.8 | E24: 5.75 | F24: 0.32 | G24: 0.05 | H24: A8 | I24: A8V+,,, | J24: 16.7 | K24: 0.9 | L24: -11.4 | N24: 11.4
A25: 16 | B25: HD 198069 | C25: 20 47 48.3 | D25: + 06 00 29.5 | E25: 5.612 | F25: -0.01 | G25: 0 | H25: A0 | I25: A0V | J25: 16.9 | K25: 17.4 | L25: 5.1 | N25: 5.1
A26: 17 | B26: HD 207650 | C26: 21 49 50.7 | D26: + 30 10 27.2 | E26: 5.071 | F26: 0.01 | G26: 0 | H26: A1 | I26: A1Vs | J26: 17.6 | K26: 25.4 | L26: 13.1 | N26: 13.1
A27: 18 | B27: HD 196775 | C27: 20 39 05.0 | D27: + 15 50 17.5 | E27: 5.98 | F27: -0.16 | G27: 0.04 | H27: B3 | I27: B3V | J27: 17.7 | K27: 26.3 | L27: 13.9 | N27: 13.9
A28: 19 | B28: HD 196544 | C28: 20 37 49.1 | D28: + 11 22 39.6 | E28: 5.428 | F28: 0.05 | G28: 0 | H28: A2 | I28: A2V | J28: 17.9 | K28: 23.1 | L28: 10.8 | N28: 10.8
A29: 20 | B29: HD 196180 | C29: 20 35 18.5 | D29: + 14 40 27.2 | E29: 4.664 | F29: 0.1 | G29: 0.02 | H29: A3 | I29: A3V | J29: 18.5 | K29: 26 | L29: 13.7 | N29: 13.7
A30: 21 | B30: HD 202753 | C30: 21 18 11.1 | D30: - 04 31 10.1 | E30: 5.815 | F30: -0.12 | G30: 0.04 | H30: B5 | I30: B5V | J30: 19 | K30: 4.5 | L30: -7.9 | N30: 7.9
A31: 22 | B31: HD 196724 | C31: 20 38 31.3 | D31: + 21 12 04.2 | E31: 4.82 | F31: -0.02 | G31: 0 | H31: A0 | I31: A0V | J31: 19.3 | K31: 30.3 | L31: 18 | N31: 18
A32: 23 | B32: HD 212404 | C32: 22 24 06.9 | D32: - 04 50 13.3 | E32: 5.781 | F32: -0.03 | G32: 0 | H32: A0 | I32: A0V | J32: 19.3 | K32: -6.3 | L32: -18.6 | N32: 18.6
N33: 29.9

Sheet Trajectoire
H2: T | I2: GST0 | J2: LST0 | L2: LST | Q2: Alertes | R2: TRUE | AD2: Cible | AF2: Ref.
B3: =+Index!J6 -> 2020-07-23 | H3: =+(B3-Date_2000)/36525 -> 0.2055715264 | I3: =MOD((24110.54841+ 8640184.812866* DT +0.093104*DT^2 - 0.0000062*DT^3)/3600,24)/24 -> 20:04:46.532 | J3: =(MOD(GST0*24,24)+Long_Site_deg/15)/24 -> 20:04:46.532 | L3: =MOD(LST0+(Index!J7)*1.0027379,1) -> 16:08:03.661 | AB3: Altitude | AD3: =+L10 -> 39.04222725 | AF3: =+L19 -> 40.32655427 | AH3: AOD | AI3: 0.08
AB4: Z | AD4: =90-AD3 -> 50.95777275 | AF4: =90-AF3 -> 49.67344573 | AH4: h | AI4: 10 | AJ4: m
B5: Target | D5: =+Index!L4 -> AG Peg | H5: LST (h) | I5: LST (rad) | J5: H | L5: Alt. [°] | M5: Air Mass | P5: Az. [°] | AB5: Air Mass | AD5: =1/((COS(RADIANS(AD4))+0.025*(EXP(-11*COS(RADIANS(AD4)))))) -> 1.587509579 | AF5: =1/((COS(RADIANS(AF4))+0.025*(EXP(-11*COS(RADIANS(AF4)))))) -> 1.545204755
B7: AD [2000] | D7: =+Index!G3 -> 21 | E7: =+Index!G4 -> 51.03289883 | F7: 0 | G7: =RADIANS(($D$7+$E$7/60+$F$7/3600)*15) -> 5.720460172 | Y7: Xmin | Z7: =MIN(P$9:P$11,P$18:P$20) -> 116.2448372 | AA7: =+INT(Z7)-MOD(INT(Z7),10) -> 110
B8: DE [2000] | D8: =+Index!G6 -> 12 | E8: =+Index!G7 -> 37.53546566 | F8: 0 | G8: =IF(RADIANS($D$8+$E$8/60+$F$8/3600)>0,RADIANS($D$8+$E$8/60+$F$8/3600),RADIANS($D$8-$E$8/60-$F$8/3600)) -> 0.2203581346 | Y8: Xmax | Z8: =MAX(P$9:P$11,P$18:P$20) -> 128.0162343 | AA8: =+INT(Z8)+10-MOD(INT(Z8),10) -> 130
B9: Heure Début | D9: 22 | E9: 30 | G9: =+D9+E9/60 -> 22.5 | H9: =MOD(LST0+G9/24*1.0027379,1) -> 18:38:28.302 | I9: =RADIANS(H9*24*15) -> 4.880253452 | J9: =IF(I9-ADc>0,I9-ADc,I9-ADc+2*3.14159) -> 5.442973281 | L9: =DEGREES((ASIN(SIN(RADIANS(Lat))*SIN(DEc)+COS(RADIANS(Lat))*COS(DEc)*COS(J9)))) -> 35.87399685 | M9: =POWER(SIN(RADIANS(L9+244/(165+47*L9^1.1))),-1) -> 1.702582657 | N9: =DEGREES(ATAN(SIN(J9)/(COS(J9)*SIN(RADIANS(Lat))-TAN(DEc)*COS(RADIANS(Lat))))) -> -63.75516279 | O9: =+IF(N9>0,N9,N9+180) -> 116.2448372 | P9: =+IF(J9<pi,O9+180,O9) -> 116.2448372 | Y9: Ymin | Z9: =MIN(L$9:L$11,L$18:L$20) -> 35.87399685 | AA9: =EVEN(INT(Z9))-2 -> 34
B10: Heure Moy | D10: =+INT(G10) -> 22 | E10: =(G10-D10)*60 -> 52.5 | G10: =+G9+E12/60/2 -> 22.875 | H10: =MOD(LST0+G10/24*1.0027379,1) -> 19:01:01.998 | I10: =RADIANS(H10*24*15) -> 4.978697016 | J10: =IF(I10-ADc>0,I10-ADc,I10-ADc+2*3.14159) -> 5.541416844 | L10: =DEGREES((ASIN(SIN(RADIANS(Lat))*SIN(DEc)+COS(RADIANS(Lat))*COS(DEc)*COS(J10)))) -> 39.04222725 | M10: =POWER(SIN(RADIANS(L10+244/(165+47*L10^1.1))),-1) -> 1.584614248 | N10: =DEGREES(ATAN(SIN(J10)/(COS(J10)*SIN(RADIANS(Lat))-TAN(DEc)*COS(RADIANS(Lat))))) -> -58.08262146 | O10: =+IF(N10>0,N10,N10+180) -> 121.9173785 | P10: =+IF(J10<pi,O10+180,O10) -> 121.9173785 | Y10: Ymax | Z10: =+MAX(L$9:L$11,L$18:L$20) -> 42.01331056 | AA10: =EVEN(INT(Z10))+2 -> 44
B11: Heure Fin | D11: =+INT(G11) -> 23 | E11: =(G11-D11)*60 -> 15 | G11: =+G9+E12/60 -> 23.25 | H11: =MOD(LST0+G11/24*1.0027379,1) -> 19:23:35.695 | I11: 5.077140579 | J11: =IF(I11-ADc>0,I11-ADc,I11-ADc+2*3.14159) -> 5.639860407 | L11: =DEGREES((ASIN(SIN(RADIANS(Lat))*SIN(DEc)+COS(RADIANS(Lat))*COS(DEc)*COS(J11)))) -> 42.01331056 | M11: 1.49176863 | N11: =DEGREES(ATAN(SIN(J11)/(COS(J11)*SIN(RADIANS(Lat))-TAN(DEc)*COS(RADIANS(Lat))))) -> -51.98376574 | O11: =+IF(N11>0,N11,N11+180) -> 128.0162343 | P11: =+IF(J11<pi,O11+180,O11) -> 128.0162343
B12: Durée | E12: 45
B14: Reference | D14: HD 212404 | H14: LST (h:m:s) | I14: LST (rad) | J14: H | L14: Alt. [°] | M14: Air Mass | Q14: 23
B16: AD [2000] | D16: 22 | E16: 24 | F16: 6 | G16: =RADIANS(($D$16+$E$16/60+$F$16/3600)*15) -> 5.864742619
B17: DE [2000] | D17: -4 | E17: 50 | F17: 13 | G17: =IF(RADIANS($D$17+$E$17/60+$F$17/3600)>0,RADIANS($D$17+$E$17/60+$F$17/3600),RADIANS($D$17-$E$17/60-$F$17/3600)) -> -0.08442060629
B18: Heure Début | D18: 23 | E18: 30 | G18: =+D18+E18/60 -> 23.5 | H18: =MOD(LST0+G18/24*1.0027379,1) -> 19:38:38.159 | I18: =RADIANS(H18*24*15) -> 5.142769621 | J18: =IF(I18-ADr>0,I18-ADr,I18-ADr+2*3.14159) -> 5.561207002 | L18: =DEGREES((ASIN(SIN(RADIANS(Lat))*SIN(DEc)+COS(RADIANS(Lat))*COS(DEc)*COS(J18)))) -> 39.65684973 | M18: =POWER(SIN(RADIANS(L18+244/(165+47*L18^1.1))),-1) -> 1.564126143 | N18: =DEGREES(ATAN(SIN(J18)/(COS(J18)*SIN(RADIANS(Lat))-TAN(DEc)*COS(RADIANS(Lat))))) -> -56.89279139 | O18: =+IF(N18>0,N18,N18+180) -> 123.1072086 | P18: =+IF(J18<pi,O18+180,O18) -> 123.1072086 | T18: Reference | V18: Mean Delta
B19: Heure Moy | D19: =+INT(G19) -> 23 | E19: =(G19-D19)*60 -> 35 | G19: =+G18+E21/60/2 -> 23.58333333 | H19: =MOD(LST0+G19/24*1.0027379,1) -> 19:43:38.980 | I19: =RADIANS(H19*24*15) -> 5.164645968 | J19: =IF(I19-ADr>0,I19-ADr,I19-ADr+2*3.14159) -> 5.583083349 | L19: =DEGREES((ASIN(SIN(RADIANS(Lat))*SIN(DEc)+COS(RADIANS(Lat))*COS(DEc)*COS(J19)))) -> 40.32655427 | M19: =POWER(SIN(RADIANS(L19+244/(165+47*L19^1.1))),-1) -> 1.542593616 | N19: =DEGREES(ATAN(SIN(J19)/(COS(J19)*SIN(RADIANS(Lat))-TAN(DEc)*COS(RADIANS(Lat))))) -> -55.55686652 | O19: =+IF(N19>0,N19,N19+180) -> 124.4431335 | P19: =+IF(J19<pi,O19+180,O19) -> 124.4431335 | T19: =+D14 -> HD 212404 | AB19: Error (%) according to the wavelength (A)
B20: Heure Fin | D20: =+INT(G20) -> 23 | E20: =(G20-D20)*60 -> 40 | G20: =+G18+E21/60 -> 23.66666667 | H20: =MOD(LST0+G20/24*1.0027379,1) -> 19:48:39.801 | I20: 5.186522316 | J20: =IF(I20-ADr>0,I20-ADr,I20-ADr+2*3.14159) -> 5.604959697 | L20: =DEGREES((ASIN(SIN(RADIANS(Lat))*SIN(DEc)+COS(RADIANS(Lat))*COS(DEc)*COS(J20)))) -> 40.98554444 | M20: 1.522174528 | N20: =DEGREES(ATAN(SIN(J20)/(COS(J20)*SIN(RADIANS(Lat))-TAN(DEc)*COS(RADIANS(Lat))))) -> -54.19859119 | O20: =+IF(N20>0,N20,N20+180) -> 125.8014088 | P20: =+IF(J20<pi,O20+180,O20) -> 125.8014088 | S20: Mag V | T20: 5.781 | V20: Altitude | W20: =+L10-L19 -> -1.284327015 | X20: °
B21: Durée | E21: 10 | S21: E(B-V) | T21: 0 | V21: Air Mass | W21: =+M10-M19 -> 0.04202063206
S22: Sp. Type | T22: A0V
AB32: Spectre Théorique
AB33: Spectre Calculé

Sheet Base
A1: 1 | B1: 2 | C1: 3 | D1: 4 | E1: 5 | F1: 6 | G1: 7 | H1: 8 | I1: 9 | J1: 10 | K1: 11 | L1: 12 | M1: 13 | N1: 14 | O1: 15 | P1: 16 | Q1: 17 | R1: 18 | S1: 19 | T1: 20 | U1: 21 | V1: 22 | W1: 23 | X1: =+COUNTIF(X3:X1048,"<5") -> 2 | Y1: 25
A2: Name | B2: RA | C2: Dec | D2: ra1 | E2: ra2 | F2: ra3 | G2: RA_dec | H2: RA_radians | I2: sde | J2: de1 | K2: de2 | L2: de3 | M2: de_dec | N2: Dec_radians | O2: LongGal | P2: LatGal | Q2: B | R2: V | S2: B-V | T2: B0-V0 | U2: EB-V | V2: Sp | W2: Sp_s | X2: Distance
A3: HD 100600 | B3: 11 34 42,49024 | C3: +16 47 48,8956 | D3: 11 | E3: 34 | F3: 42.49024 | G3: 173.6770427 | H3: =+RADIANS(G3) -> 3.03123623 | I3: + | J3: 16 | K3: 47 | L3: 48.8956 | M3: =VALUE(CONCATENATE(I3,+J3+K3/60+L3/3600)) -> 16.79691544 | N3: =+RADIANS(M3) -> 0.2931614787 | O3: 239.179 | P3: 69.4687 | Q3: 5.78 | R3: 5.94 | S3: -0.16 | T3: =+VLOOKUP(W3,Data!$E$5:$F$32,2) -> -0.18 | U3: =+S3-T3 -> 0.02 | V3: B4V | W3: =IF(MID(V3,3,1)<>",",LEFT(V3,2),LEFT(V3,4)) -> B4 | X3: =+DEGREES(ACOS(SIN(Index!$H$6)*SIN(Base!N3)+COS(Index!$H$6)*COS(Base!N3)*COS(Index!$H$3-Base!H3))) -> 140.9917314
A4: HD 100673 | B4: 11 34 45,65581 | C4: -54 15 50,7320 | D4: 11 | E4: 34 | F4: 45.65581 | G4: 173.6902325 | H4: 3.031466436 | I4: - | J4: 54 | K4: 15 | L4: 50.732 | M4: -54.26409222 | N4: -0.9470870749 | O4: 291.7927 | P4: 6.9409 | Q4: 4.548 | R4: 4.614 | S4: -0.066 | T4: =+VLOOKUP(W4,Data!$E$5:$F$32,2) -> -0.07 | U4: 0.004 | V4: B9Ve | W4: B9 | X4: =+DEGREES(ACOS(SIN(Index!$H$6)*SIN(Base!N4)+COS(Index!$H$6)*COS(Base!N4)*COS(Index!$H$3-Base!H4))) -> 133.6275657
A5: HD 100889 | B5: 11 36 40,91335 | C5: -09 48 08,0912 | D5: 11 | E5: 36 | F5: 40.91335 | G5: 174.1704723 | H5: 3.039848201 | I5: - | J5: 9 | K5: 48 | L5: 8.0912 | M5: -9.802247556 | N5: -0.1710814939 | O5: 274.2494 | P5: 48.8616 | Q5: 4.626 | R5: 4.682 | S5: -0.056 | T5: =+VLOOKUP(W5,Data!$E$5:$F$32,2) -> -0.07 | U5: 0.014 | V5: B9,5Vn | W5: B9,5 | X5: =+DEGREES(ACOS(SIN(Index!$H$6)*SIN(Base!N5)+COS(Index!$H$6)*COS(Base!N5)*COS(Index!$H$3-Base!H5))) -> 153.950363
A6: HD 101431 | B6: 11 40 12,78970 | C6: -34 44 40,7733 | D6: 11 | E6: 40 | F6: 12.7897 | G6: 175.0532904 | H6: 3.055256284 | I6: - | J6: 34 | K6: 44 | L6: 40.7733 | M6: -34.74465925 | N6: -0.6064087014 | O6: 286.7153 | P6: 25.8742 | Q6: 4.623 | R6: 4.693 | S6: -0.07 | T6: =+VLOOKUP(W6,Data!$E$5:$F$32,2) -> -0.07 | U6: 6.106226635e-16 | V6: B9V | W6: B9 | X6: =+DEGREES(ACOS(SIN(Index!$H$6)*SIN(Base!N6)+COS(Index!$H$6)*COS(Base!N6)*COS(Index!$H$3-Base!H6))) -> 146.8377515
A7: HD 10144 | B7: 01 37 42,84548 | C7: -57 14 12,3101 | D7: 1 | E7: 37 | F7: 42.84548 | G7: 24.42852283 | H7: 0.4263581548 | I7: - | J7: 57 | K7: 14 | L7: 12.3101 | M7: -57.23675281 | N7: -0.9989697896 | O7: 290.8412 | P7: -58.792 | Q7: 0.3 | R7: 0.5 | S7: -0.2 | T7: =+VLOOKUP(W7,Data!$E$5:$F$32,2) -> -0.14 | U7: -0.06 | V7: B6Vep | W7: B6 | X7: =+DEGREES(ACOS(SIN(Index!$H$6)*SIN(Base!N7)+COS(Index!$H$6)*COS(Base!N7)*COS(Index!$H$3-Base!H7))) -> 83.89492265
A8: HD 101615 | B8: 11 41 19,79057 | C8: -43 05 44,3987 | D8: 11 | E8: 41 | F8: 19.79057 | G8: 175.3324607 | H8: 3.060128725 | I8: - | J8: 43 | K8: 5 | L8: 44.3987 | M8: -43.09566631 | N8: -0.7521612704 | O8: 289.5666 | P8: 17.9492 | Q8: 5.572 | R8: 5.531 | S8: 0.041 | T8: =+VLOOKUP(W8,Data!$E$5:$F$32,2) -> -0.01 | U8: 0.051 | V8: A0V | W8: A0 | X8: =+DEGREES(ACOS(SIN(Index!$H$6)*SIN(Base!N8)+COS(Index!$H$6)*COS(Base!N8)*COS(Index!$H$3-Base!H8))) -> 141.3481976
A9: HD 102124 | B9: 11 45 17,04027 | C9: +08 15 29,2150 | D9: 11 | E9: 45 | F9: 17.04027 | G9: 176.3210011 | H9: 3.07738201 | I9: + | J9: 8 | K9: 15 | L9: 29.215 | M9: 8.258115278 | N9: 0.1441313016 | O9: 260.1825 | P9: 65.4799 | Q9: 5.006 | R9: 4.845 | S9: 0.161 | T9: =+VLOOKUP(W9,Data!$E$5:$F$32,2) -> 0.12 | U9: 0.041 | V9: A4V | W9: A4 | X9: =+DEGREES(ACOS(SIN(Index!$H$6)*SIN(Base!N9)+COS(Index!$H$6)*COS(Base!N9)*COS(Index!$H$3-Base!H9))) -> 144.7631573
A10: HD 102249 | B10: 11 45 36,41916 | C10: -66 43 43,5440 | D10: 11 | E10: 45 | F10: 36.41916 | G10: 176.4017465 | H10: 3.078791283 | I10: - | J10: 66 | K10: 43 | L10: 43.544 | M10: -66.72876222 | N10: -1.164636607 | O10: 296.4837 | P10: -4.6847 | Q10: 3.796 | R10: 3.634 | S10: 0.162 | T10: =+VLOOKUP(W10,Data!$E$5:$F$32,2) -> 0.2 | U10: -0.038 | V10: A7V | W10: A7 | X10: =+DEGREES(ACOS(SIN(Index!$H$6)*SIN(Base!N10)+COS(Index!$H$6)*COS(Base!N10)*COS(Index!$H$3-Base!H10))) -> 122.6255155
A11: HD 10250 | B11: 01 42 55,86416 | C11: +70 37 21,0894 | D11: 1 | E11: 42 | F11: 55.86416 | G11: 25.73276733 | H11: 0.4491215156 | I11: + | J11: 70 | K11: 37 | L11: 21.0894 | M11: 70.62252483 | N11: 1.232595584 | O11: 127.2148 | P11: 8.1802 | Q11: 5.155 | R11: 5.177 | S11: -0.022 | T11: =+VLOOKUP(W11,Data!$E$5:$F$32,2) -> -0.07 | U11: 0.048 | V11: B9V | W11: B9 | X11: =+DEGREES(ACOS(SIN(Index!$H$6)*SIN(Base!N11)+COS(Index!$H$6)*COS(Base!N11)*COS(Index!$H$3-Base!H11))) -> 67.79696487
A12: HD 102509 | B12: 11 47 59,13595 | C12: +20 13 08,1500 | D12: 11 | E12: 47 | F12: 59.13595 | G12: 176.9963998 | H12: 3.089169941 | I12: + | J12: 20 | K12: 13 | L12: 8.15 | M12: 20.21893056 | N12: 0.3528869094 | O12: 235.0034 | P12: 73.9319 | Q12: 5.053 | R12: 4.537 | S12: 0.516 | T12: =+VLOOKUP(W12,Data!$E$5:$F$32,2) -> 0.2 | U12: 0.316 | V12: A7V+,,, | W12: A7 | X12: =+DEGREES(ACOS(SIN(Index!$H$6)*SIN(Base!N12)+COS(Index!$H$6)*COS(Base!N12)*COS(Index!$H$3-Base!H12))) -> 136.3428671
A13: HD 102776 | B13: 11 49 41,06060 | C13: -63 47 18,5249 | D13: 11 | E13: 49 | F13: 41.0606 | G13: 177.4210858 | H13: 3.09658211 | I13: - | J13: 63 | K13: 47 | L13: 18.5249 | M13: -63.78847914 | N13: -1.113318986 | O13: 296.1765 | P13: -1.7296 | Q13: 4.174 | R13: 4.313 | S13: -0.139 | T13: =+VLOOKUP(W13,Data!$E$5:$F$32,2) -> -0.2 | U13: 0.061 | V13: B3Vne | W13: B3 | X13: =+DEGREES(ACOS(SIN(Index!$H$6)*SIN(Base!N13)+COS(Index!$H$6)*COS(Base!N13)*COS(Index!$H$3-Base!H13))) -> 124.7939055
A14: HD 103079 | B14: 11 51 51,22590 | C14: -65 12 21,2653 | D14: 11 | E14: 51 | F14: 51.2259 | G14: 177.9634412 | H14: 3.106047998 | I14: - | J14: 65 | K14: 12 | L14: 21.2653 | M14: -65.20590703 | N14: -1.138057769 | O14: 296.7344 | P14: -3.0536 | Q14: 4.803 | R14: 4.929 | S14: -0.126 | T14: =+VLOOKUP(W14,Data!$E$5:$F$32,2) -> -0.18 | U14: 0.054 | V14: B4V | W14: B4 | X14: =+DEGREES(ACOS(SIN(Index!$H$6)*SIN(Base!N14)+COS(Index!$H$6)*COS(Base!N14)*COS(Index!$H$3-Base!H14))) -> 123.5104303
A15: HD 103101 | B15: 11 52 10,27889 | C15: -56 59 15,8729 | D15: 11 | E15: 52 | F15: 10.27889 | G15: 178.0428287 | H15: 3.107433571 | I15: - | J15: 56 | K15: 59 | L15: 15.8729 | M15: -56.98774247 | N15: -0.9946237394 | O15: 294.8929 | P15: 4.9561 | Q15: 5.621 | R15: 5.563 | S15: 0.058 | T15: =+VLOOKUP(W15,Data!$E$5:$F$32,2) -> 0.05 | U15: 0.008 | V15: A2V | W15: A2 | X15: =+DEGREES(ACOS(SIN(Index!$H$6)*SIN(Base!N15)+COS(Index!$H$6)*COS(Base!N15)*COS(Index!$H$3-Base!H15))) -> 129.9696537
A16: HD 103287 | B16: 11 53 49,84732 | C16: +53 41 41,1350 | D16: 11 | E16: 53 | F16: 49.84732 | G16: 178.4576972 | H16: 3.114674391 | I16: + | J16: 53 | K16: 41 | L16: 41.135 | M16: 53.69475972 | N16: 0.9371503482 | O16: 140.8399 | P16: 61.3849 | Q16: 2.45 | R16: 2.44 | S16: 0.01 | T16: =+VLOOKUP(W16,Data!$E$5:$F$32,2) -> -0.01 | U16: 0.02 | V16: A0Ve | W16: A0 | X16: =+DEGREES(ACOS(SIN(Index!$H$6)*SIN(Base!N16)+COS(Index!$H$6)*COS(Base!N16)*COS(Index!$H$3-Base!H16))) -> 108.7023665
A17: HD 103578 | B17: 11 55 40,53346 | C17: +15 38 48,5432 | D17: 11 | E17: 55 | F17: 40.53346 | G17: 178.9188894 | H17: 3.122723714 | I17: + | J17: 15 | K17: 38 | L17: 48.5432 | M17: 15.64681756 | N17: 0.2730884838 | O17: 251.671 | P17: 72.6973 | Q17: 5.64 | R17: 5.531 | S17: 0.109 | T17: =+VLOOKUP(W17,Data!$E$5:$F$32,2) -> 0.08 | U17: 0.029 | V17: A3V | W17: A3 | X17: =+DEGREES(ACOS(SIN(Index!$H$6)*SIN(Base!N17)+COS(Index!$H$6)*COS(Base!N17)*COS(Index!$H$3-Base!H17))) -> 138.17039
A18: HD 103632 | B18: 11 56 00,95323 | C18: -17 09 02,9781 | D18: 11 | E18: 56 | F18: 0.95323 | G18: 179.0039718 | H18: 3.124208682 | I18: - | J18: 17 | K18: 9 | L18: 2.9781 | M18: -17.15082725 | N18: -0.299338405 | O18: 284.4719 | P18: 43.7254 | Q18: 5.146 | R18: 5.168 | S18: -0.022 | T18: =+VLOOKUP(W18,Data!$E$5:$F$32,2) -> -0.01 | U18: -0.012 | V18: A0V | W18: A0 | X18: =+DEGREES(ACOS(SIN(Index!$H$6)*SIN(Base!N18)+COS(Index!$H$6)*COS(Base!N18)*COS(Index!$H$3-Base!H18))) -> 149.5006135
A19: HD 103884 | B19: 11 57 40,00819 | C19: -62 26 55,4867 | D19: 11 | E19: 57 | F19: 40.00819 | G19: 179.4167008 | H19: 3.131412162 | I19: - | J19: 62 | K19: 26 | L19: 55.4867 | M19: -62.44874631 | N19: -1.089936237 | O19: 296.759 | P19: -0.2232 | Q19: 5.404 | R19: 5.552 | S19: -0.148 | T19: =+VLOOKUP(W19,Data!$E$5:$F$32,2) -> -0.2 | U19: 0.052 | V19: B3V | W19: B3 | X19: =+DEGREES(ACOS(SIN(Index!$H$6)*SIN(Base!N19)+COS(Index!$H$6)*COS(Base!N19)*COS(Index!$H$3-Base!H19))) -> 125.3088201
A20: HD 104174 | B20: 11 59 37,57634 | C20: -78 13 18,6179 | D20: 11 | E20: 59 | F20: 37.57634 | G20: 179.9065681 | H20: 3.139961959 | I20: - | J20: 78 | K20: 13 | L20: 18.6179 | M20: -78.22183831 | N20: -1.365228625 | O20: 300.2088 | P20: -15.6249 | Q20: 4.85 | R20: 4.898 | S20: -0.048 | T20: =+VLOOKUP(W20,Data!$E$5:$F$32,2) -> -0.07 | U20: 0.022 | V20: B9Vn | W20: B9 | X20: =+DEGREES(ACOS(SIN(Index!$H$6)*SIN(Base!N20)+COS(Index!$H$6)*COS(Base!N20)*COS(Index!$H$3-Base!H20))) -> 112.4962751
A21: HD 104181 | B21: 11 59 56,91293 | C21: +03 39 18,7141 | D21: 11 | E21: 59 | F21: 56.91293 | G21: 179.9871372 | H21: 3.141368156 | I21: + | J21: 3 | K21: 39 | L21: 18.7141 | M21: 3.655198361 | N21: 0.06379524621 | O21: 273.0475 | P21: 63.499 | Q21: 5.363 | R21: 5.357 | S21: 0.006 | T21: =+VLOOKUP(W21,Data!$E$5:$F$32,2) -> -0.01 | U21: 0.016 | V21: A0V | W21: A0 | X21: =+DEGREES(ACOS(SIN(Index!$H$6)*SIN(Base!N21)+COS(Index!$H$6)*COS(Base!N21)*COS(Index!$H$3-Base!H21))) -> 144.0817689
A22: HD 104321 | B22: 12 00 52,39042 | C22: +06 36 51,5571 | D22: 12 | E22: 0 | F22: 52.39042 | G22: 180.2182934 | H22: 3.145402592 | I22: + | J22: 6 | K22: 36 | L22: 51.5571 | M22: 6.614321417 | N22: 0.1154416865 | O22: 270.2963 | P22: 66.228 | Q22: 4.775 | R22: 4.659 | S22: 0.116 | T22: =+VLOOKUP(W22,Data!$E$5:$F$32,2) -> 0.15 | U22: -0.034 | V22: A5V | W22: A5 | X22: =+DEGREES(ACOS(SIN(Index!$H$6)*SIN(Base!N22)+COS(Index!$H$6)*COS(Base!N22)*COS(Index!$H$3-Base!H22))) -> 142.439056
A23: HD 104600 | B23: 12 02 37,69286 | C23: -69 11 32,2330 | D23: 12 | E23: 2 | F23: 37.69286 | G23: 180.6570536 | H23: 3.153060402 | I23: - | J23: 69 | K23: 11 | L23: 32.233 | M23: -69.19228694 | N23: -1.207633224 | O23: 298.5959 | P23: -6.7325 | Q23: 5.81 | R23: 5.878 | S23: -0.068 | T23: =+VLOOKUP(W23,Data!$E$5:$F$32,2) -> -0.07 | U23: 0.002 | V23: B9V | W23: B9 | X23: =+DEGREES(ACOS(SIN(Index!$H$6)*SIN(Base!N23)+COS(Index!$H$6)*COS(Base!N23)*COS(Index!$H$3-Base!H23))) -> 119.6944888
A24: HD 10516 | B24: 01 43 39,63792 | C24: +50 41 19,4328 | D24: 1 | E24: 43 | F24: 39.63792 | G24: 25.915158 | H24: 0.4523048333 | I24: + | J24: 50 | K24: 41 | L24: 19.4328 | M24: 50.68873133 | N24: 0.8846852554 | O24: 131.3247 | P24: -11.3301 | Q24: 4 | R24: 4.09 | S24: -0.09 | T24: =+VLOOKUP(W24,Data!$E$5:$F$32,2) -> -0.24 | U24: 0.15 | V24: B2Vpe | W24: B2 | X24: =+DEGREES(ACOS(SIN(Index!$H$6)*SIN(Base!N24)+COS(Index!$H$6)*COS(Base!N24)*COS(Index!$H$3-Base!H24))) -> 60.31150573
A25: HD 10538 | B25: 01 42 02,99377 | C25: -36 49 56,2995 | D25: 1 | E25: 42 | F25: 2.99377 | G25: 25.51247404 | H25: 0.4452766724 | I25: - | J25: 36 | K25: 49 | L25: 56.2995 | M25: -36.83230542 | N25: -0.6428450006 | O25: 258.273 | P25: -75.556 | Q25: 5.703 | R25: 5.706 | S25: -0.003 | T25: =+VLOOKUP(W25,Data!$E$5:$F$32,2) -> 0.02 | U25: -0.023 | V25: A1V | W25: A1 | X25: =+DEGREES(ACOS(SIN(Index!$H$6)*SIN(Base!N25)+COS(Index!$H$6)*COS(Base!N25)*COS(Index!$H$3-Base!H25))) -> 73.39976839
A26: HD 105416 | B26: 12 08 14,71198 | C26: -48 41 32,9487 | D26: 12 | E26: 8 | F26: 14.71198 | G26: 182.0612999 | H26: 3.177569124 | I26: - | J26: 48 | K26: 41 | L26: 32.9487 | M26: -48.69248575 | N26: -0.8498441973 | O26: 295.623 | P26: 13.5653 | Q26: 5.319 | R26: 5.334 | S26: -0.015 | T26: =+VLOOKUP(W26,Data!$E$5:$F$32,2) -> -0.07 | U26: 0.055 | V26: B9V | W26: B9 | X26: =+DEGREES(ACOS(SIN(Index!$H$6)*SIN(Base!N26)+COS(Index!$H$6)*COS(Base!N26)*COS(Index!$H$3-Base!H26))) -> 134.1304162
A27: HD 105805 | B27: 12 10 46,09635 | C27: +27 16 53,4251 | D27: 12 | E27: 10 | F27: 46.09635 | G27: 182.6920681 | H27: 3.188578106 | I27: + | J27: 27 | K27: 16 | L27: 53.4251 | M27: 27.28150697 | N27: 0.4761521216 | O27: 209.6345 | P27: 80.9585 | Q27: 6.116 | R27: 5.999 | S27: 0.117 | T27: =+VLOOKUP(W27,Data!$E$5:$F$32,2) -> 0.12 | U27: -0.003 | V27: A4Vn | W27: A4 | X27: =+DEGREES(ACOS(SIN(Index!$H$6)*SIN(Base!N27)+COS(Index!$H$6)*COS(Base!N27)*COS(Index!$H$3-Base!H27))) -> 127.6484431
A28: HD 105850 | B28: 12 11 03,83904 | C28: -23 36 08,7202 | D28: 12 | E28: 11 | F28: 3.83904 | G28: 182.765996 | H28: 3.189868391 | I28: - | J28: 23 | K28: 36 | L28: 8.7202 | M28: -23.60242228 | N28: -0.4119399802 | O28: 291.1169 | P28: 38.3413 | Q28: 5.52 | R28: 5.47 | S28: 0.05 | T28: =+VLOOKUP(W28,Data!$E$5:$F$32,2) -> 0.02 | U28: 0.03 | V28: A1V | W28: A1 | X28: =+DEGREES(ACOS(SIN(Index!$H$6)*SIN(Base!N28)+COS(Index!$H$6)*COS(Base!N28)*COS(Index!$H$3-Base!H28))) -> 145.0770508
A29: HD 105937 | B29: 12 11 39,11770 | C29: -52 22 06,4432 | D29: 12 | E29: 11 | F29: 39.1177 | G29: 182.9129904 | H29: 3.192433927 | I29: - | J29: 52 | K29: 22 | L29: 6.4432 | M29: -52.36845644 | N29: -0.9140019891 | O29: 296.7837 | P29: 10.0277 | Q29: 3.809 | R29: 3.951 | S29: -0.142 | T29: =+VLOOKUP(W29,Data!$E$5:$F$32,2) -> -0.2 | U29: 0.058 | V29: B3V | W29: B3 | X29: =+DEGREES(ACOS(SIN(Index!$H$6)*SIN(Base!N29)+COS(Index!$H$6)*COS(Base!N29)*COS(Index!$H$3-Base!H29))) -> 131.3185057
A30: HD 1064 | B30: 00 14 54,51542 | C30: -09 34 10,4503 | D30: 0 | E30: 14 | F30: 54.51542 | G30: 3.727147583 | H30: 0.06505099704 | I30: - | J30: 9 | K30: 34 | L30: 10.4503 | M30: -9.569569528 | N30: -0.1670204963 | O30: 95.0634 | P30: -70.4388 | Q30: 5.69 | R30: 5.757 | S30: -0.067 | T30: =+VLOOKUP(W30,Data!$E$5:$F$32,2) -> -0.07 | U30: 0.003 | V30: B9V | W30: B9 | X30: =+DEGREES(ACOS(SIN(Index!$H$6)*SIN(Base!N30)+COS(Index!$H$6)*COS(Base!N30)*COS(Index!$H$3-Base!H30))) -> 42.06051949
A31: HD 106591 | B31: 12 15 25,56063 | C31: +57 01 57,4156 | D31: 12 | E31: 15 | F31: 25.56063 | G31: 183.8565026 | H31: 3.208901322 | I31: + | J31: 57 | K31: 1 | L31: 57.4156 | M31: 57.03261544 | N31: 0.9954069205 | O31: 132.5666 | P31: 59.4169 | Q31: 3.41 | R31: 3.32 | S31: 0.09 | T31: =+VLOOKUP(W31,Data!$E$5:$F$32,2) -> 0.08 | U31: 0.01 | V31: A3V | W31: A3 | X31: =+DEGREES(ACOS(SIN(Index!$H$6)*SIN(Base!N31)+COS(Index!$H$6)*COS(Base!N31)*COS(Index!$H$3-Base!H31))) -> 104.2214963
A32: HD 106661 | B32: 12 16 00,18569 | C32: +14 53 56,6496 | D32: 12 | E32: 16 | F32: 0.18569 | G32: 184.0007737 | H32: 3.211419327 | I32: + | J32: 14 | K32: 53 | L32: 56.6496 | M32: 14.89906933 | N32: 0.2600378153 | O32: 267.161 | P32: 75.2506 | Q32: 5.15 | R32: 5.09 | S32: 0.06 | T32: =+VLOOKUP(W32,Data!$E$5:$F$32,2) -> 0.08 | U32: -0.02 | V32: A3V | W32: A3 | X32: =+DEGREES(ACOS(SIN(Index!$H$6)*SIN(Base!N32)+COS(Index!$H$6)*COS(Base!N32)*COS(Index!$H$3-Base!H32))) -> 134.7778121
A33: HD 106911 | B33: 12 18 20,82459 | C33: -79 18 44,0710 | D33: 12 | E33: 18 | F33: 20.82459 | G33: 184.5867691 | H33: 3.221646877 | I33: - | J33: 79 | K33: 18 | L33: 44.071 | M33: -79.31224194 | N33: -1.384259759 | O33: 301.3368 | P33: -16.5431 | Q33: 4.12 | R33: 4.235 | S33: -0.115 | T33: =+VLOOKUP(W33,Data!$E$5:$F$32,2) -> -0.16 | U33: 0.045 | V33: B5Vn | W33: B5 | X33: =+DEGREES(ACOS(SIN(Index!$H$6)*SIN(Base!N33)+COS(Index!$H$6)*COS(Base!N33)*COS(Index!$H$3-Base!H33))) -> 111.078296
A34: HD 106983 | B34: 12 18 26,24772 | C34: -64 00 11,0528 | D34: 12 | E34: 18 | F34: 26.24772 | G34: 184.6093655 | H34: 3.222041258 | I34: - | J34: 64 | K34: 0 | L34: 11.0528 | M34: -64.00307022 | N34: -1.117064307 | O34: 299.3248 | P34: -1.3627 | Q34: 3.9 | R34: 4.05 | S34: -0.15 | T34: =+VLOOKUP(W34,Data!$E$5:$F$32,2) -> -0.24 | U34: 0.09 | V34: B2,5V | W34: B2,5 | X34: =+DEGREES(ACOS(SIN(Index!$H$6)*SIN(Base!N34)+COS(Index!$H$6)*COS(Base!N34)*COS(Index!$H$3-Base!H34))) -> 122.5969496
A35: HD 107070 | B35: 12 18 40,31778 | C35: -00 47 13,8652 | D35: 12 | E35: 18 | F35: 40.31778 | G35: 184.6679908 | H35: 3.223064462 | I35: - | J35: 0 | K35: 47 | L35: 13.8652 | M35: -0.7871847778 | N35: -0.01373896619 | O35: 285.8463 | P35: 60.993 | Q35: 6.063 | R35: 5.908 | S35: 0.155 | T35: =+VLOOKUP(W35,Data!$E$5:$F$32,2) -> 0.15 | U35: 0.005 | V35: A5Vn | W35: A5 | X35: =+DEGREES(ACOS(SIN(Index!$H$6)*SIN(Base!N35)+COS(Index!$H$6)*COS(Base!N35)*COS(Index!$H$3-Base!H35))) -> 141.552396
A36: HD 107193 | B36: 12 18 49,98448 | C36: +75 09 38,0207 | D36: 12 | E36: 18 | F36: 49.98448 | G36: 184.7082687 | H36: 3.223767444 | I36: + | J36: 75 | K36: 9 | L36: 38.0207 | M36: 75.16056131 | N36: 1.311799262 | O36: 125.7236 | P36: 41.7905 | Q36: 5.516 | R36: 5.465 | S36: 0.051 | T36: =+VLOOKUP(W36,Data!$E$5:$F$32,2) -> 0.02 | U36: 0.031 | V36: A1V | W36: A1 | X36: =+DEGREES(ACOS(SIN(Index!$H$6)*SIN(Base!N36)+COS(Index!$H$6)*COS(Base!N36)*COS(Index!$H$3-Base!H36))) -> 89.33740082
A37: HD 107348 | B37: 12 20 33,64200 | C37: -22 12 57,2410 | D37: 12 | E37: 20 | F37: 33.642 | G37: 185.140175 | H37: 3.231305631 | I37: - | J37: 22 | K37: 12 | L37: 57.241 | M37: -22.21590028 | N37: -0.3877406061 | O37: 293.5769 | P37: 40.0943 | Q37: 5.11 | R37: 5.22 | S37: -0.11 | T37: =+VLOOKUP(W37,Data!$E$5:$F$32,2) -> -0.11 | U37: 5.689893001e-16 | V37: B8V | W37: B8 | X37: =+DEGREES(ACOS(SIN(Index!$H$6)*SIN(Base!N37)+COS(Index!$H$6)*COS(Base!N37)*COS(Index!$H$3-Base!H37))) -> 143.1755173
A38: HD 107566 | B38: 12 22 07,34002 | C38: -67 31 19,5871 | D38: 12 | E38: 22 | F38: 7.34002 | G38: 185.5305834 | H38: 3.238119544 | I38: - | J38: 67 | K38: 31 | L38: 19.5871 | M38: -67.52210753 | N38: -1.178483094 | O38: 300.1265 | P38: -4.8102 | Q38: 5.334 | R38: 5.161 | S38: 0.173 | T38: =+VLOOKUP(W38,Data!$E$5:$F$32,2) -> 0.15 | U38: 0.023 | V38: A5V | W38: A5 | X38: =+DEGREES(ACOS(SIN(Index!$H$6)*SIN(Base!N38)+COS(Index!$H$6)*COS(Base!N38)*COS(Index!$H$3-Base!H38))) -> 119.7935252
A39: HD 107696 | B39: 12 22 49,43192 | C39: -57 40 34,0725 | D39: 12 | E39: 22 | F39: 49.43192 | G39: 185.7059663 | H39: 3.241180553 | I39: - | J39: 57 | K39: 40 | L39: 34.0725 | M39: -57.67613125 | N39: -1.00663839 | O39: 299.0995 | P39: 4.9825 | Q39: 5.278 | R39: 5.37 | S39: -0.092 | T39: =+VLOOKUP(W39,Data!$E$5:$F$32,2) -> -0.07 | U39: -0.022 | V39: B9V | W39: B9 | X39: =+DEGREES(ACOS(SIN(Index!$H$6)*SIN(Base!N39)+COS(Index!$H$6)*COS(Base!N39)*COS(Index!$H$3-Base!H39))) -> 126.5957223
A40: HD 107860 | B40: 12 23 44,74438 | C40: -38 54 40,9767 | D40: 12 | E40: 23 | F40: 44.74438 | G40: 185.9364349 | H40: 3.245202989 | I40: - | J40: 38 | K40: 54 | L40: 40.9767 | M40: -38.91138242 | N40: -0.6791317397 | O40: 297.0553 | P40: 23.6442 | Q40: 5.721 | R40: 5.785 | S40: -0.064 | T40: =+VLOOKUP(W40,Data!$E$5:$F$32,2) -> -0.07 | U40: 0.006 | V40: B9V | W40: B9 | X40: =+DEGREES(ACOS(SIN(Index!$H$6)*SIN(Base!N40)+COS(Index!$H$6)*COS(Base!N40)*COS(Index!$H$3-Base!H40))) -> 137.2375787
A41: HD 107966 | B41: 12 24 18,52125 | C41: +26 05 55,0346 | D41: 12 | E41: 24 | F41: 18.52125 | G41: 186.0771719 | H41: 3.247659312 | I41: + | J41: 26 | K41: 5 | L41: 55.0346 | M41: 26.09862072 | N41: 0.4555068618 | O41: 221.0371 | P41: 83.8503 | Q41: 5.26 | R41: 5.18 | S41: 0.08 | T41: =+VLOOKUP(W41,Data!$E$5:$F$32,2) -> 0.08 | U41: 0 | V41: A3V | W41: A3 | X41: =+DEGREES(ACOS(SIN(Index!$H$6)*SIN(Base!N41)+COS(Index!$H$6)*COS(Base!N41)*COS(Index!$H$3-Base!H41))) -> 126.2550754
A42: HD 108107 | B42: 12 25 11,76485 | C42: -11 36 38,1204 | D42: 12 | E42: 25 | F42: 11.76485 | G42: 186.2990202 | H42: 3.251531296 | I42: - | J42: 11 | K42: 36 | L42: 38.1204 | M42: -11.610589 | N42: -0.2026430061 | O42: 292.7456 | P42: 50.7414 | Q42: 5.989 | R42: 5.949 | S42: 0.04 | T42: =+VLOOKUP(W42,Data!$E$5:$F$32,2) -> 0.02 | U42: 0.02 | V42: A1V | W42: A1 | X42: =+DEGREES(ACOS(SIN(Index!$H$6)*SIN(Base!N42)+COS(Index!$H$6)*COS(Base!N42)*COS(Index!$H$3-Base!H42))) -> 142.3376102
A43: HD 108249 | B43: 12 26 36,151 | C43: -3 05 57,14 | D43: 12 | E43: 26 | F43: 36.151 | G43: 186.6506292 | H43: 3.25766803 | I43: - | J43: 3 | K43: 5 | L43: 57.14 | M43: -3.099205556 | N43: -0.05409134114 | O43: 300.1271 | P43: -0.3628 | Q43: 2.3 | R43: 2.09 | S43: 0.21 | T43: =+VLOOKUP(W43,Data!$E$5:$F$32,2) -> -0.26 | U43: 0.47 | V43: B1V | W43: B1 | X43: =+DEGREES(ACOS(SIN(Index!$H$6)*SIN(Base!N43)+COS(Index!$H$6)*COS(Base!N43)*COS(Index!$H$3-Base!H43))) -> 140.3729744
A44: HD 108257 | B44: 12 26 31,75955 | C44: -51 27 02,2899 | D44: 12 | E44: 26 | F44: 31.75955 | G44: 186.6323315 | H44: 3.257348675 | I44: - | J44: 51 | K44: 27 | L44: 2.2899 | M44: -51.45063608 | N44: -0.8979830019 | O44: 298.9801 | P44: 11.2299 | Q44: 4.665 | R44: 4.805 | S44: -0.14 | T44: =+VLOOKUP(W44,Data!$E$5:$F$32,2) -> -0.2 | U44: 0.06 | V44: B3Vn | W44: B3 | X44: =+DEGREES(ACOS(SIN(Index!$H$6)*SIN(Base!N44)+COS(Index!$H$6)*COS(Base!N44)*COS(Index!$H$3-Base!H44))) -> 130.1193451
A45: HD 108323 | B45: 12 26 51,69000 | C45: -32 49 48,4379 | D45: 12 | E45: 26 | F45: 51.69 | G45: 186.715375 | H45: 3.258798058 | I45: - | J45: 32 | K45: 49 | L45: 48.4379 | M45: -32.83012164 | N45: -0.5729937164 | O45: 296.9856 | P45: 29.7577 | Q45: 5.571 | R45: 5.565 | S45: 0.006 | T45: =+VLOOKUP(W45,Data!$E$5:$F$32,2) -> -0.07 | U45: 0.076 | V45: B9V | W45: B9 | X45: =+DEGREES(ACOS(SIN(Index!$H$6)*SIN(Base!N45)+COS(Index!$H$6)*COS(Base!N45)*COS(Index!$H$3-Base!H45))) -> 139.1232748
A46: HD 108382 | B46: 12 26 59,29709 | C46: +26 49 32,5201 | D46: 12 | E46: 26 | F46: 59.29709 | G46: 186.7470712 | H46: 3.259351261 | I46: + | J46: 26 | K46: 49 | L46: 32.5201 | M46: 26.82570003 | N46: 0.4681967896 | O46: 214.7205 | P46: 84.5448 | Q46: 5.061 | R46: 4.965 | S46: 0.096 | T46: =+VLOOKUP(W46,Data!$E$5:$F$32,2) -> 0.12 | U46: -0.024 | V46: A4V | W46: A4 | X46: =+DEGREES(ACOS(SIN(Index!$H$6)*SIN(Base!N46)+COS(Index!$H$6)*COS(Base!N46)*COS(Index!$H$3-Base!H46))) -> 125.3246938
A47: HD 108483 | B47: 12 28 02,38208 | C47: -50 13 50,2872 | D47: 12 | E47: 28 | F47: 2.38208 | G47: 187.0099253 | H47: 3.263938931 | I47: - | J47: 50 | K47: 13 | L47: 50.2872 | M47: -50.23063533 | N47: -0.8766899719 | O47: 299.1034 | P47: 12.4671 | Q47: 3.719 | R47: 3.897 | S47: -0.178 | T47: =+VLOOKUP(W47,Data!$E$5:$F$32,2) -> -0.24 | U47: 0.062 | V47: B2V | W47: B2 | X47: =+DEGREES(ACOS(SIN(Index!$H$6)*SIN(Base!N47)+COS(Index!$H$6)*COS(Base!N47)*COS(Index!$H$3-Base!H47))) -> 130.6467279
A48: HD 108541 | B48: 12 28 22,46490 | C48: -39 02 28,2168 | D48: 12 | E48: 28 | F48: 22.4649 | G48: 187.0936037 | H48: 3.265399395 | I48: - | J48: 39 | K48: 2 | L48: 28.2168 | M48: -39.04117133 | N48: -0.6813969836 | O48: 298.0468 | P48: 23.6117 | Q48: 5.382 | R48: 5.448 | S48: -0.066 | T48: =+VLOOKUP(W48,Data!$E$5:$F$32,2) -> -0.11 | U48: 0.044 | V48: B8V | W48: B8 | X48: =+DEGREES(ACOS(SIN(Index!$H$6)*SIN(Base!N48)+COS(Index!$H$6)*COS(Base!N48)*COS(Index!$H$3-Base!H48))) -> 136.3761681
A49: HD 108765 | B49: 12 29 43,23974 | C49: +20 53 45,9902 | D49: 12 | E49: 29 | F49: 43.23974 | G49: 187.4301656 | H49: 3.271273507 | I49: + | J49: 20 | K49: 53 | L49: 45.9902 | M49: 20.89610839 | N49: 0.3647058922 | O49: 263.2779 | P49: 82.038 | Q49: 5.767 | R49: 5.68 | S49: 0.087 | T49: =+VLOOKUP(W49,Data!$E$5:$F$32,2) -> 0.08 | U49: 0.007 | V49: A3V | W49: A3 | X49: =+DEGREES(ACOS(SIN(Index!$H$6)*SIN(Base!N49)+COS(Index!$H$6)*COS(Base!N49)*COS(Index!$H$3-Base!H49))) -> 128.5895918
A50: HD 109026 | B50: 12 32 28,01343 | C50: -72 07 58,7597 | D50: 12 | E50: 32 | F50: 28.01343 | G50: 188.1167226 | H50: 3.283256188 | I50: - | J50: 72 | K50: 7 | L50: 58.7597 | M50: -72.13298881 | N50: -1.258958154 | O50: 301.4589 | P50: -9.3155 | Q50: 3.694 | R50: 3.83 | S50: -0.136 | T50: =+VLOOKUP(W50,Data!$E$5:$F$32,2) -> -0.16 | U50: 0.024 | V50: B5V | W50: B5 | X50: =+DEGREES(ACOS(SIN(Index!$H$6)*SIN(Base!N50)+COS(Index!$H$6)*COS(Base!N50)*COS(Index!$H$3-Base!H50))) -> 115.8600593
A51: HD 109309 | B51: 12 33 46,74789 | C51: -09 27 07,4775 | D51: 12 | E51: 33 | F51: 46.74789 | G51: 188.4447829 | H51: 3.288981919 | I51: - | J51: 9 | K51: 27 | L51: 7.4775 | M51: -9.452077083 | N51: -0.1649698663 | O51: 295.6549 | P51: 53.17 | Q51: 5.45 | R51: 5.48 | S51: -0.03 | T51: =+VLOOKUP(W51,Data!$E$5:$F$32,2) -> -0.01 | U51: -0.02 | V51: A0V | W51: A0 | X51: =+DEGREES(ACOS(SIN(Index!$H$6)*SIN(Base!N51)+COS(Index!$H$6)*COS(Base!N51)*COS(Index!$H$3-Base!H51))) -> 139.9782935
A52: HD 10939 | B52: 01 46 06,26346 | C52: -53 31 19,3279 | D52: 1 | E52: 46 | F52: 6.26346 | G52: 26.52609775 | H52: 0.4629677434 | I52: - | J52: 53 | K52: 31 | L52: 19.3279 | M52: -53.52203553 | N52: -0.9341357423 | O52: 285.676 | P52: -61.7365 | Q52: 5.068 | R52: 5.039 | S52: 0.029 | T52: =+VLOOKUP(W52,Data!$E$5:$F$32,2) -> 0.02 | U52: 0.009 | V52: A1V | W52: A1 | X52: =+DEGREES(ACOS(SIN(Index!$H$6)*SIN(Base!N52)+COS(Index!$H$6)*COS(Base!N52)*COS(Index!$H$3-Base!H52))) -> 82.8164183
A53: HD 109536 | B53: 12 35 45,53178 | C53: -41 01 19,0045 | D53: 12 | E53: 35 | F53: 45.53178 | G53: 188.9397158 | H53: 3.297620128 | I53: - | J53: 41 | K53: 1 | L53: 19.0045 | M53: -41.02194569 | N53: -0.7159680179 | O53: 299.7487 | P53: 21.7529 | Q53: 5.337 | R53: 5.127 | S53: 0.21 | T53: =+VLOOKUP(W53,Data!$E$5:$F$32,2) -> 0.2 | U53: 0.01 | V53: A7V | W53: A7 | X53: =+DEGREES(ACOS(SIN(Index!$H$6)*SIN(Base!N53)+COS(Index!$H$6)*COS(Base!N53)*COS(Index!$H$3-Base!H53))) -> 134.2315397
A54: HD 109704 | B54: 12 36 47,35421 | C54: -05 49 54,8412 | D54: 12 | E54: 36 | F54: 47.35421 | G54: 189.1973092 | H54: 3.302115982 | I54: - | J54: 5 | K54: 49 | L54: 54.8412 | M54: -5.831900333 | N54: -0.1017858625 | O54: 296.259 | P54: 56.8499 | Q54: 5.94 | R54: 5.88 | S54: 0.06 | T54: =+VLOOKUP(W54,Data!$E$5:$F$32,2) -> 0.08 | U54: -0.02 | V54: A3V | W54: A3 | X54: =+DEGREES(ACOS(SIN(Index!$H$6)*SIN(Base!N54)+COS(Index!$H$6)*COS(Base!N54)*COS(Index!$H$3-Base!H54))) -> 138.5865749
A55: HD 109787 | B55: 12 37 42,16377 | C55: -48 32 28,6899 | D55: 12 | E55: 37 | F55: 42.16377 | G55: 189.4256824 | H55: 3.306101845 | I55: - | J55: 48 | K55: 32 | L55: 28.6899 | M55: -48.54130275 | N55: -0.8472055562 | O55: 300.5869 | P55: 14.2679 | Q55: 3.907 | R55: 3.852 | S55: 0.055 | T55: =+VLOOKUP(W55,Data!$E$5:$F$32,2) -> 0.05 | U55: 0.005 | V55: A2V | W55: A2 | X55: =+DEGREES(ACOS(SIN(Index!$H$6)*SIN(Base!N55)+COS(Index!$H$6)*COS(Base!N55)*COS(Index!$H$3-Base!H55))) -> 130.2733732
A56: HD 10982 | B56: 01 48 10,93603 | C56: +16 57 19,9768 | D56: 1 | E56: 48 | F56: 10.93603 | G56: 27.04556679 | H56: 0.4720341886 | I56: + | J56: 16 | K56: 57 | L56: 19.9768 | M56: 16.95554911 | N56: 0.2959301585 | O56: 141.8904 | P56: -43.8174 | Q56: 5.817 | R56: 5.854 | S56: -0.037 | T56: =+VLOOKUP(W56,Data!$E$5:$F$32,2) -> -0.07 | U56: 0.033 | V56: B9,5V | W56: B9,5 | X56: =+DEGREES(ACOS(SIN(Index!$H$6)*SIN(Base!N56)+COS(Index!$H$6)*COS(Base!N56)*COS(Index!$H$3-Base!H56))) -> 57.28483364
A57: HD 11031 | B57: 01 49 15,54296 | C57: +47 53 48,9227 | D57: 1 | E57: 49 | F57: 15.54296 | G57: 27.31476233 | H57: 0.4767325371 | I57: + | J57: 47 | K57: 53 | L57: 48.9227 | M57: 47.89692297 | N57: 0.8359590074 | O57: 132.8583 | P57: -13.8573 | Q57: 6.11 | R57: 5.82 | S57: 0.29 | T57: =+VLOOKUP(W57,Data!$E$5:$F$32,2) -> 0.08 | U57: 0.21 | V57: A3V | W57: A3 | X57: =+DEGREES(ACOS(SIN(Index!$H$6)*SIN(Base!N57)+COS(Index!$H$6)*COS(Base!N57)*COS(Index!$H$3-Base!H57))) -> 60.417573
A58: HD 110411 | B58: 12 41 53,05658 | C58: +10 14 08,2548 | D58: 12 | E58: 41 | F58: 53.05658 | G58: 190.4710691 | H58: 3.324347285 | I58: + | J58: 10 | K58: 14 | L58: 8.2548 | M58: 10.23562633 | N58: 0.1786453805 | O58: 294.888 | P58: 72.958 | Q58: 4.951 | R58: 4.872 | S58: 0.079 | T58: =+VLOOKUP(W58,Data!$E$5:$F$32,2) -> -0.01 | U58: 0.089 | V58: A0V | W58: A0 | X58: =+DEGREES(ACOS(SIN(Index!$H$6)*SIN(Base!N58)+COS(Index!$H$6)*COS(Base!N58)*COS(Index!$H$3-Base!H58))) -> 131.8162508
A59: HD 110423 | B59: 12 41 57,11727 | C59: +06 48 23,8228 | D59: 12 | E59: 41 | F59: 57.11727 | G59: 190.4879886 | H59: 3.324642587 | I59: + | J59: 6 | K59: 48 | L59: 23.8228 | M59: 6.806617444 | N59: 0.1187978853 | O59: 296.1773 | P59: 69.5539 | Q59: 5.574 | R59: 5.572 | S59: 0.002 | T59: =+VLOOKUP(W59,Data!$E$5:$F$32,2) -> 0.05 | U59: -0.048 | V59: A2V | W59: A2 | X59: =+DEGREES(ACOS(SIN(Index!$H$6)*SIN(Base!N59)+COS(Index!$H$6)*COS(Base!N59)*COS(Index!$H$3-Base!H59))) -> 133.3018693
A60: HD 110506 | B60: 12 43 09,17897 | C60: -56 10 34,4108 | D60: 12 | E60: 43 | F60: 9.17897 | G60: 190.7882457 | H60: 3.329883062 | I60: - | J60: 56 | K60: 10 | L60: 34.4108 | M60: -56.17622522 | N60: -0.9804600915 | O60: 301.7713 | P60: 6.6769 | Q60: 5.912 | R60: 5.985 | S60: -0.073 | T60: =+VLOOKUP(W60,Data!$E$5:$F$32,2) -> -0.13 | U60: 0.057 | V60: B7,5V | W60: B7,5 | X60: =+DEGREES(ACOS(SIN(Index!$H$6)*SIN(Base!N60)+COS(Index!$H$6)*COS(Base!N60)*COS(Index!$H$3-Base!H60))) -> 125.3555209
A61: HD 110879 | B61: 12 46 16,80410 | C61: -68 06 29,2164 | D61: 12 | E61: 46 | F61: 16.8041 | G61: 191.5700171 | H61: 3.343527546 | I61: - | J61: 68 | K61: 6 | L61: 29.2164 | M61: -68.10811567 | N61: -1.188710866 | O61: 302.4492 | P61: -5.2412 | Q61: 2.91 | R61: 3.07 | S61: -0.16 | T61: =+VLOOKUP(W61,Data!$E$5:$F$32,2) -> -0.24 | U61: 0.08 | V61: B2,5V | W61: B2,5 | X61: =+DEGREES(ACOS(SIN(Index!$H$6)*SIN(Base!N61)+COS(Index!$H$6)*COS(Base!N61)*COS(Index!$H$3-Base!H61))) -> 117.7342265
A62: HD 110956 | B62: 12 46 22,71460 | C62: -56 29 19,7366 | D62: 12 | E62: 46 | F62: 22.7146 | G62: 191.5946442 | H62: 3.34395737 | I62: - | J62: 56 | K62: 29 | L62: 19.7366 | M62: -56.48881572 | N62: -0.9859158249 | O62: 302.2293 | P62: 6.376 | Q62: 4.469 | R62: 4.612 | S62: -0.143 | T62: =+VLOOKUP(W62,Data!$E$5:$F$32,2) -> -0.2 | U62: 0.057 | V62: B3V | W62: B3 | X62: =+DEGREES(ACOS(SIN(Index!$H$6)*SIN(Base!N62)+COS(Index!$H$6)*COS(Base!N62)*COS(Index!$H$3-Base!H62))) -> 124.8100343
A63: HD 111270 | B63: 12 47 18,95085 | C63: +62 46 52,1513 | D63: 12 | E63: 47 | F63: 18.95085 | G63: 191.8289619 | H63: 3.348046985 | I63: + | J63: 62 | K63: 46 | L63: 52.1513 | M63: 62.78115314 | N63: 1.09573783 | O63: 123.7404 | P63: 54.3406 | Q63: 6.09 | R63: 5.89 | S63: 0.2 | T63: =+VLOOKUP(W63,Data!$E$5:$F$32,2) -> 0.3 | U63: -0.1 | V63: A9V | W63: A9 | X63: =+DEGREES(ACOS(SIN(Index!$H$6)*SIN(Base!N63)+COS(Index!$H$6)*COS(Base!N63)*COS(Index!$H$3-Base!H63))) -> 97.25613785
A64: HD 111397 | B64: 12 48 54,21284 | C64: +14 07 21,3146 | D64: 12 | E64: 48 | F64: 54.21284 | G64: 192.2258868 | H64: 3.354974633 | I64: + | J64: 14 | K64: 7 | L64: 21.3146 | M64: 14.12258739 | N64: 0.2464856488 | O64: 300.2034 | P64: 76.9809 | Q64: 5.727 | R64: 5.702 | S64: 0.025 | T64: =+VLOOKUP(W64,Data!$E$5:$F$32,2) -> 0.02 | U64: 0.005 | V64: A1V | W64: A1 | X64: =+DEGREES(ACOS(SIN(Index!$H$6)*SIN(Base!N64)+COS(Index!$H$6)*COS(Base!N64)*COS(Index!$H$3-Base!H64))) -> 128.4629881
A65: HD 111469 | B65: 12 49 17,45211 | C65: +27 33 08,5716 | D65: 12 | E65: 49 | F65: 17.45211 | G65: 192.3227171 | H65: 3.35666464 | I65: + | J65: 27 | K65: 33 | L65: 8.5716 | M65: 27.552381 | N65: 0.4808797652 | O65: 171.1549 | P65: 89.3619 | Q65: 5.804 | R65: 5.756 | S65: 0.048 | T65: =+VLOOKUP(W65,Data!$E$5:$F$32,2) -> 0.05 | U65: -0.002 | V65: A2V | W65: A2 | X65: =+DEGREES(ACOS(SIN(Index!$H$6)*SIN(Base!N65)+COS(Index!$H$6)*COS(Base!N65)*COS(Index!$H$3-Base!H65))) -> 121.0161604
A66: HD 111588 | B66: 12 50 57,87912 | C66: -52 47 14,7281 | D66: 12 | E66: 50 | F66: 57.87912 | G66: 192.741163 | H66: 3.363967898 | I66: - | J66: 52 | K66: 47 | L66: 14.7281 | M66: -52.78742447 | N66: -0.9213143607 | O66: 302.8592 | P66: 10.0843 | Q66: 5.83 | R66: 5.711 | S66: 0.119 | T66: =+VLOOKUP(W66,Data!$E$5:$F$32,2) -> 0.15 | U66: -0.031 | V66: A5V | W66: A5 | X66: =+DEGREES(ACOS(SIN(Index!$H$6)*SIN(Base!N66)+COS(Index!$H$6)*COS(Base!N66)*COS(Index!$H$3-Base!H66))) -> 126.263463
A67: HD 111604 | B67: 12 50 10,74028 | C67: +37 31 00,9727 | D67: 12 | E67: 50 | F67: 10.74028 | G67: 192.5447512 | H67: =+RADIANS(G67) -> 3.360539865 | I67: + | J67: 37 | K67: 31 | L67: 0.9727 | M67: =VALUE(CONCATENATE(I67,+J67+K67/60+L67/3600)) -> 37.51693686 | N67: =+RADIANS(M67) -> 0.6547940735 | O67: 124.316 | P67: 79.6079 | Q67: 6.043 | R67: 5.885 | S67: 0.158 | T67: =+VLOOKUP(W67,Data!$E$5:$F$32,2) -> 0.08 | U67: =+S67-T67 -> 0.078 | V67: A3V | W67: =IF(MID(V67,3,1)<>",",LEFT(V67,2),LEFT(V67,4)) -> A3 | X67: =+DEGREES(ACOS(SIN(Index!$H$6)*SIN(Base!N67)+COS(Index!$H$6)*COS(Base!N67)*COS(Index!$H$3-Base!H67))) -> 114.5960311
A68: HD 111774 | B68: 12 51 56,93048 | C68: -39 40 49,5532 | D68: 12 | E68: 51 | F68: 56.93048 | G68: 192.9872103 | H68: 3.368262235 | I68: - | J68: 39 | K68: 40 | L68: 49.5532 | M68: -39.68043144 | N68: -0.6925541773 | O68: 303.0389 | P68: 23.1912 | Q68: 5.891 | R68: 5.974 | S68: -0.083 | T68: =+VLOOKUP(W68,Data!$E$5:$F$32,2) -> -0.11 | U68: 0.027 | V68: B8V | W68: B8 | X68: =+DEGREES(ACOS(SIN(Index!$H$6)*SIN(Base!N68)+COS(Index!$H$6)*COS(Base!N68)*COS(Index!$H$3-Base!H68))) -> 131.9498537
A69: HD 112014 | B69: 12 49 06,63608 | C69: +83 25 04,1126 | D69: 12 | E69: 49 | F69: 6.63608 | G69: 192.2776503 | H69: 3.355878076 | I69: + | J69: 83 | K69: 25 | L69: 4.1126 | M69: 83.41780906 | N69: 1.455915423 | O69: 123.0121 | P69: 33.7101 | Q69: 5.86 | R69: 5.85 | S69: 0.01 | T69: =+VLOOKUP(W69,Data!$E$5:$F$32,2) -> -0.01 | U69: 0.02 | V69: A0V+,,, | W69: A0 | X69: =+DEGREES(ACOS(SIN(Index!$H$6)*SIN(Base!N69)+COS(Index!$H$6)*COS(Base!N69)*COS(Index!$H$3-Base!H69))) -> 82.10355039
A70: HD 112078 | B70: 12 54 39,18258 | C70: -59 08 48,1229 | D70: 12 | E70: 54 | F70: 39.18258 | G70: 193.6632608 | H70: 3.38006154 | I70: - | J70: 59 | K70: 8 | L70: 48.1229 | M70: -59.14670081 | N70: -1.032304671 | O70: 303.345 | P70: 3.7225 | Q70: 4.462 | R70: 4.602 | S70: -0.14 | T70: =+VLOOKUP(W70,Data!$E$5:$F$32,2) -> -0.18 | U70: 0.04 | V70: B4Vne | W70: B4 | X70: =+DEGREES(ACOS(SIN(Index!$H$6)*SIN(Base!N70)+COS(Index!$H$6)*COS(Base!N70)*COS(Index!$H$3-Base!H70))) -> 122.4034782
A71: HD 112091 | B71: 12 54 36,88630 | C71: -57 10 07,2137 | D71: 12 | E71: 54 | F71: 36.8863 | G71: 193.6536929 | H71: 3.37989455 | I71: - | J71: 57 | K71: 10 | L71: 7.2137 | M71: -57.16867047 | N71: -0.9977815287 | O71: 303.3646 | P71: 5.7004 | Q71: 5.019 | R71: 5.113 | S71: -0.094 | T71: =+VLOOKUP(W71,Data!$E$5:$F$32,2) -> -0.16 | U71: 0.066 | V71: B5Vne | W71: B5 | X71: =+DEGREES(ACOS(SIN(Index!$H$6)*SIN(Base!N71)+COS(Index!$H$6)*COS(Base!N71)*COS(Index!$H$3-Base!H71))) -> 123.4956461
A72: HD 112131 | B72: 12 54 18,66003 | C72: -11 38 54,8473 | D72: 12 | E72: 54 | F72: 18.66003 | G72: 193.5777501 | H72: 3.378569098 | I72: - | J72: 11 | K72: 38 | L72: 54.8473 | M72: -11.64856869 | N72: -0.2033058769 | O72: 304.0551 | P72: 51.2169 | Q72: 6.064 | R72: 5.999 | S72: 0.065 | T72: =+VLOOKUP(W72,Data!$E$5:$F$32,2) -> 0.05 | U72: 0.015 | V72: A2V | W72: A2 | X72: =+DEGREES(ACOS(SIN(Index!$H$6)*SIN(Base!N72)+COS(Index!$H$6)*COS(Base!N72)*COS(Index!$H$3-Base!H72))) -> 135.2507996
A73: HD 112409 | B73: 12 57 04,35244 | C73: -51 11 55,5058 | D73: 12 | E73: 57 | F73: 4.35244 | G73: 194.2681352 | H73: 3.39061859 | I73: - | J73: 51 | K73: 11 | L73: 55.5058 | M73: -51.19875161 | N73: -0.8935867885 | O73: 303.8332 | P73: 11.6631 | Q73: 5.102 | R73: 5.163 | S73: -0.061 | T73: =+VLOOKUP(W73,Data!$E$5:$F$32,2) -> -0.11 | U73: 0.049 | V73: B8,5V | W73: B8,5 | X73: =+DEGREES(ACOS(SIN(Index!$H$6)*SIN(Base!N73)+COS(Index!$H$6)*COS(Base!N73)*COS(Index!$H$3-Base!H73))) -> 126.2403995
A74: HD 11241 | B74: 01 51 59,31962 | C74: +55 08 50,5767 | D74: 1 | E74: 51 | F74: 59.31962 | G74: 27.99716508 | H74: 0.4886427119 | I74: + | J74: 55 | K74: 8 | L74: 50.5767 | M74: 55.14738242 | N74: 0.962503397 | O74: 131.5739 | P74: -6.7051 | Q74: 5.339 | R74: 5.511 | S74: -0.172 | T74: =+VLOOKUP(W74,Data!$E$5:$F$32,2) -> -0.26 | U74: 0.088 | V74: B1,5V | W74: B1,5 | X74: =+DEGREES(ACOS(SIN(Index!$H$6)*SIN(Base!N74)+COS(Index!$H$6)*COS(Base!N74)*COS(Index!$H$3-Base!H74))) -> 62.85915098
A75: HD 112846 | B75: 12 59 39,51657 | C75: -03 48 42,9121 | D75: 12 | E75: 59 | F75: 39.51657 | G75: 194.9146524 | H75: 3.401902444 | I75: - | J75: 3 | K75: 48 | L75: 42.9121 | M75: -3.811920028 | N75: -0.06653055531 | O75: 306.9153 | P75: 58.9962 | Q75: 5.964 | R75: 5.805 | S75: 0.159 | T75: =+VLOOKUP(W75,Data!$E$5:$F$32,2) -> 0.08 | U75: 0.079 | V75: A3V | W75: A3 | X75: =+DEGREES(ACOS(SIN(Index!$H$6)*SIN(Base!N75)+COS(Index!$H$6)*COS(Base!N75)*COS(Index!$H$3-Base!H75))) -> 132.5800516
A76: HD 113314 | B76: 13 03 33,30528 | C76: -49 31 38,1518 | D76: 13 | E76: 3 | F76: 33.30528 | G76: 195.888772 | H76: 3.418904039 | I76: - | J76: 49 | K76: 31 | L76: 38.1518 | M76: -49.52726439 | N76: -0.8644138331 | O76: 304.9518 | P76: 13.297 | Q76: 4.857 | R76: 4.83 | S76: 0.027 | T76: =+VLOOKUP(W76,Data!$E$5:$F$32,2) -> -0.01 | U76: 0.037 | V76: A0V | W76: A0 | X76: =+DEGREES(ACOS(SIN(Index!$H$6)*SIN(Base!N76)+COS(Index!$H$6)*COS(Base!N76)*COS(Index!$H$3-Base!H76))) -> 126.0877741
A77: HD 113703 | B77: 13 06 16,70411 | C77: -48 27 47,8460 | D77: 13 | E77: 6 | F77: 16.70411 | G77: 196.5696005 | H77: 3.430786737 | I77: - | J77: 48 | K77: 27 | L77: 47.846 | M77: -48.46329056 | N77: -0.8458439865 | O77: 305.4702 | P77: 14.3353 | Q77: 4.564 | R77: 4.694 | S77: -0.13 | T77: =+VLOOKUP(W77,Data!$E$5:$F$32,2) -> -0.16 | U77: 0.03 | V77: B5V | W77: B5 | X77: =+DEGREES(ACOS(SIN(Index!$H$6)*SIN(Base!N77)+COS(Index!$H$6)*COS(Base!N77)*COS(Index!$H$3-Base!H77))) -> 126.1379785
A78: HD 113791 | B78: 13 06 54,63940 | C78: -49 54 22,4823 | D78: 13 | E78: 6 | F78: 54.6394 | G78: 196.7276642 | H78: 3.433545469 | I78: - | J78: 49 | K78: 54 | L78: 22.4823 | M78: -49.90624508 | N78: -0.871028294 | O78: 305.4865 | P78: 12.8887 | Q78: 4.084 | R78: 4.264 | S78: -0.18 | T78: =+VLOOKUP(W78,Data!$E$5:$F$32,2) -> -0.26 | U78: 0.08 | V78: B1,5V | W78: B1,5 | X78: =+DEGREES(ACOS(SIN(Index!$H$6)*SIN(Base!N78)+COS(Index!$H$6)*COS(Base!N78)*COS(Index!$H$3-Base!H78))) -> 125.4347523
A79: HD 113797 | B79: 13 05 44,43582 | C79: +35 47 56,0374 | D79: 13 | E79: 5 | F79: 44.43582 | G79: 196.4351492 | H79: 3.428440121 | I79: + | J79: 35 | K79: 47 | L79: 56.0374 | M79: 35.79889928 | N79: 0.624808661 | O79: 104.4654 | P79: 80.8107 | Q79: 5.133 | R79: 5.191 | S79: -0.058 | T79: =+VLOOKUP(W79,Data!$E$5:$F$32,2) -> -0.07 | U79: 0.012 | V79: B9V | W79: B9 | X79: =+DEGREES(ACOS(SIN(Index!$H$6)*SIN(Base!N79)+COS(Index!$H$6)*COS(Base!N79)*COS(Index!$H$3-Base!H79))) -> 113.250381
A80: HD 113902 | B80: 13 07 38,28392 | C80: -53 27 35,1498 | D80: 13 | E80: 7 | F80: 38.28392 | G80: 196.9095163 | H80: 3.436719389 | I80: - | J80: 53 | K80: 27 | L80: 35.1498 | M80: -53.45976383 | N80: -0.9330488962 | O80: 305.3743 | P80: 9.3351 | Q80: 5.64 | R80: 5.701 | S80: -0.061 | T80: =+VLOOKUP(W80,Data!$E$5:$F$32,2) -> -0.11 | U80: 0.049 | V80: B8V | W80: B8 | X80: =+DEGREES(ACOS(SIN(Index!$H$6)*SIN(Base!N80)+COS(Index!$H$6)*COS(Base!N80)*COS(Index!$H$3-Base!H80))) -> 123.7534096
A81: HD 11413 | B81: 01 50 54,43472 | C81: -50 12 22,0966 | D81: 1 | E81: 50 | F81: 54.43472 | G81: 27.72681133 | H81: 0.4839241488 | I81: - | J81: 50 | K81: 12 | L81: 22.0966 | M81: -50.20613794 | N81: -0.8762624118 | O81: 280.6992 | P81: -64.2771 | Q81: 6.086 | R81: 5.943 | S81: 0.143 | T81: =+VLOOKUP(W81,Data!$E$5:$F$32,2) -> 0.02 | U81: 0.123 | V81: A1V | W81: A1 | X81: =+DEGREES(ACOS(SIN(Index!$H$6)*SIN(Base!N81)+COS(Index!$H$6)*COS(Base!N81)*COS(Index!$H$3-Base!H81))) -> 81.68436042
A82: HD 114570 | B82: 13 12 48,80347 | C82: -66 13 36,2897 | D82: 13 | E82: 12 | F82: 48.80347 | G82: 198.2033478 | H82: 3.459301007 | I82: - | J82: 66 | K82: 13 | L82: 36.2897 | M82: -66.22674714 | N82: -1.15587479 | O82: 305.0874 | P82: -3.4445 | Q82: 5.95 | R82: 5.905 | S82: 0.045 | T82: =+VLOOKUP(W82,Data!$E$5:$F$32,2) -> -0.01 | U82: 0.055 | V82: A0Vm,,, | W82: A0 | X82: =+DEGREES(ACOS(SIN(Index!$H$6)*SIN(Base!N82)+COS(Index!$H$6)*COS(Base!N82)*COS(Index!$H$3-Base!H82))) -> 116.7781546
A83: HD 114772 | B83: 13 13 23,35287 | C83: -50 41 59,3747 | D83: 13 | E83: 13 | F83: 23.35287 | G83: 198.3473036 | H83: 3.461813511 | I83: - | J83: 50 | K83: 41 | L83: 59.3747 | M83: -50.69982631 | N83: -0.8848788992 | O83: 306.4826 | P83: 12.0205 | Q83: 5.896 | R83: 5.908 | S83: -0.012 | T83: =+VLOOKUP(W83,Data!$E$5:$F$32,2) -> -0.07 | U83: 0.058 | V83: B9V | W83: B9 | X83: =+DEGREES(ACOS(SIN(Index!$H$6)*SIN(Base!N83)+COS(Index!$H$6)*COS(Base!N83)*COS(Index!$H$3-Base!H83))) -> 124.1625206
A84: HD 114911 | B84: 13 15 14,94123 | C84: -67 53 40,5276 | D84: 13 | E84: 15 | F84: 14.94123 | G84: 198.8122551 | H84: 3.469928445 | I84: - | J84: 67 | K84: 53 | L84: 40.5276 | M84: -67.894591 | N84: -1.184984157 | O84: 305.1775 | P84: -5.1267 | Q84: 4.697 | R84: 4.774 | S84: -0.077 | T84: =+VLOOKUP(W84,Data!$E$5:$F$32,2) -> -0.11 | U84: 0.033 | V84: B8V | W84: B8 | X84: =+DEGREES(ACOS(SIN(Index!$H$6)*SIN(Base!N84)+COS(Index!$H$6)*COS(Base!N84)*COS(Index!$H$3-Base!H84))) -> 115.6795195
A85: HD 11502 | B85: 01 53 31,80 | C85: +19 17 45,0 | D85: 1 | E85: 53 | F85: 31.8 | G85: 28.3825 | H85: 0.4953680749 | I85: + | J85: 19 | K85: 17 | L85: 45 | M85: 19.29583333 | N85: 0.3367758236 | O85: 142.5472 | P85: -41.1989 | Q85: 4.8 | R85: 4.7 | S85: 0.1 | T85: =+VLOOKUP(W85,Data!$E$5:$F$32,2) -> -0.07 | U85: 0.17 | V85: B9V | W85: B9 | X85: =+DEGREES(ACOS(SIN(Index!$H$6)*SIN(Base!N85)+COS(Index!$H$6)*COS(Base!N85)*COS(Index!$H$3-Base!H85))) -> 58.39823395
A86: HD 115271 | B86: 13 15 31,95290 | C86: +40 51 18,7208 | D86: 13 | E86: 15 | F86: 31.9529 | G86: 198.8831371 | H86: 3.471165569 | I86: + | J86: 40 | K86: 51 | L86: 18.7208 | M86: 40.85520022 | N86: 0.7130577604 | O86: 104.5748 | P86: 75.4027 | Q86: 5.96 | R86: 5.778 | S86: 0.182 | T86: =+VLOOKUP(W86,Data!$E$5:$F$32,2) -> 0.2 | U86: -0.018 | V86: A7V | W86: A7 | X86: =+DEGREES(ACOS(SIN(Index!$H$6)*SIN(Base!N86)+COS(Index!$H$6)*COS(Base!N86)*COS(Index!$H$3-Base!H86))) -> 108.6781069
A87: HD 115735 | B87: 13 18 14,50965 | C87: +49 40 55,4234 | D87: 13 | E87: 18 | F87: 14.50965 | G87: 199.5604569 | H87: 3.482987029 | I87: + | J87: 49 | K87: 40 | L87: 55.4234 | M87: 49.68206206 | N87: 0.867115562 | O87: 111.8527 | P87: 66.8656 | Q87: 5.08 | R87: 5.15 | S87: -0.07 | T87: =+VLOOKUP(W87,Data!$E$5:$F$32,2) -> -0.01 | U87: -0.06 | V87: A0V | W87: A0 | X87: =+DEGREES(ACOS(SIN(Index!$H$6)*SIN(Base!N87)+COS(Index!$H$6)*COS(Base!N87)*COS(Index!$H$3-Base!H87))) -> 102.9307979
A88: HD 115823 | B88: 13 20 37,82506 | C88: -52 44 52,1702 | D88: 13 | E88: 20 | F88: 37.82506 | G88: 200.1576044 | H88: 3.49340922 | I88: - | J88: 52 | K88: 44 | L88: 52.1702 | M88: -52.74782506 | N88: -0.9206232205 | O88: 307.4085 | P88: 9.87 | Q88: 5.328 | R88: 5.447 | S88: -0.119 | T88: =+VLOOKUP(W88,Data!$E$5:$F$32,2) -> -0.14 | U88: 0.021 | V88: B6V | W88: B6 | X88: =+DEGREES(ACOS(SIN(Index!$H$6)*SIN(Base!N88)+COS(Index!$H$6)*COS(Base!N88)*COS(Index!$H$3-Base!H88))) -> 122.3028417
A89: HD 116087 | B89: 13 22 37,93612 | C89: -60 59 18,2178 | D89: 13 | E89: 22 | F89: 37.93612 | G89: 200.6580672 | H89: 3.502143943 | I89: - | J89: 60 | K89: 59 | L89: 18.2178 | M89: -60.98839383 | N89: -1.064448278 | O89: 306.7068 | P89: 1.6545 | Q89: 4.38 | R89: 4.505 | S89: -0.125 | T89: =+VLOOKUP(W89,Data!$E$5:$F$32,2) -> -0.2 | U89: 0.075 | V89: B3V | W89: B3 | X89: =+DEGREES(ACOS(SIN(Index!$H$6)*SIN(Base!N89)+COS(Index!$H$6)*COS(Base!N89)*COS(Index!$H$3-Base!H89))) -> 118.4653389
A90: HD 116160 | B90: 13 21 41,64387 | C90: +02 05 14,0741 | D90: 13 | E90: 21 | F90: 41.64387 | G90: 200.4235161 | H90: 3.498050255 | I90: + | J90: 2 | K90: 5 | L90: 14.0741 | M90: 2.087242806 | N90: 0.03642925925 | O90: 320.35 | P90: 63.9311 | Q90: 5.735 | R90: 5.693 | S90: 0.042 | T90: =+VLOOKUP(W90,Data!$E$5:$F$32,2) -> 0.05 | U90: -0.008 | V90: A2V | W90: A2 | X90: =+DEGREES(ACOS(SIN(Index!$H$6)*SIN(Base!N90)+COS(Index!$H$6)*COS(Base!N90)*COS(Index!$H$3-Base!H90))) -> 125.6936845
A91: HD 11636 | B91: 01 54 38,41099 | C91: +20 48 28,9133 | D91: 1 | E91: 54 | F91: 38.41099 | G91: 28.66004579 | H91: 0.5002121628 | I91: + | J91: 20 | K91: 48 | L91: 28.9133 | M91: 20.80803147 | N91: 0.36316866 | O91: 142.2449 | P91: -39.6817 | Q91: 2.77 | R91: 2.64 | S91: 0.13 | T91: =+VLOOKUP(W91,Data!$E$5:$F$32,2) -> 0.15 | U91: -0.02 | V91: A5V | W91: A5 | X91: =+DEGREES(ACOS(SIN(Index!$H$6)*SIN(Base!N91)+COS(Index!$H$6)*COS(Base!N91)*COS(Index!$H$3-Base!H91))) -> 58.58427103
A92: HD 116656 | B92: 13 23 55,2 | C92: + 54 55 25 | D92: 13 | E92: 23 | F92: 55.2 | G92: 200.98 | H92: 3.507762731 | I92: + | J92: 54 | K92: 55 | L92: 25 | M92: 54.92361111 | N92: 0.958597851 | O92: 113.1112 | P92: 61.581 | Q92: 2.08 | R92: 2.06 | S92: 0.02 | T92: =+VLOOKUP(W92,Data!$E$5:$F$32,2) -> 0.05 | U92: -0.03 | V92: A2V | W92: A2 | X92: =+DEGREES(ACOS(SIN(Index!$H$6)*SIN(Base!N92)+COS(Index!$H$6)*COS(Base!N92)*COS(Index!$H$3-Base!H92))) -> 99.02485135
A93: HD 116656 | B93: 13 23 55,54048 | C93: +54 55 31,2671 | D93: 13 | E93: 23 | F93: 55.54048 | G93: 200.9814187 | H93: 3.507787491 | I93: + | J93: 54 | K93: 55 | L93: 31.2671 | M93: 54.92535197 | N93: 0.9586282347 | O93: 113.1105 | P93: 61.5791 | Q93: 2.29 | R93: 2.27 | S93: 0.02 | T93: =+VLOOKUP(W93,Data!$E$5:$F$32,2) -> 0.05 | U93: -0.03 | V93: A2V | W93: A2 | X93: =+DEGREES(ACOS(SIN(Index!$H$6)*SIN(Base!N93)+COS(Index!$H$6)*COS(Base!N93)*COS(Index!$H$3-Base!H93))) -> 99.02314197
A94: HD 117150 | B94: 13 29 25,25383 | C94: -51 09 54,4823 | D94: 13 | E94: 29 | F94: 25.25383 | G94: 202.3552243 | H94: 3.531764923 | I94: - | J94: 51 | K94: 9 | L94: 54.4823 | M94: -51.16513397 | N94: -0.89300005 | O94: 308.9869 | P94: 11.2595 | Q94: 5.105 | R94: 5.05 | S94: 0.055 | T94: =+VLOOKUP(W94,Data!$E$5:$F$32,2) -> 0.02 | U94: 0.035 | V94: A1V | W94: A1 | X94: =+DEGREES(ACOS(SIN(Index!$H$6)*SIN(Base!N94)+COS(Index!$H$6)*COS(Base!N94)*COS(Index!$H$3-Base!H94))) -> 121.6521161
A95: HD 117376 | B95: 13 28 27,08646 | C95: +59 56 44,8349 | D95: 13 | E95: 28 | F95: 27.08646 | G95: 202.1128602 | H95: 3.527534872 | I95: + | J95: 59 | K95: 56 | L95: 44.8349 | M95: 59.94578747 | N95: 1.046251364 | O95: 114.5255 | P95: 56.5743 | Q95: 5.39 | R95: 5.4 | S95: -0.01 | T95: =+VLOOKUP(W95,Data!$E$5:$F$32,2) -> 0.02 | U95: -0.03 | V95: A1Vn | W95: A1 | X95: =+DEGREES(ACOS(SIN(Index!$H$6)*SIN(Base!N95)+COS(Index!$H$6)*COS(Base!N95)*COS(Index!$H$3-Base!H95))) -> 95.48652784
A96: HD 11753 | B96: 01 54 22,03347 | C96: -42 29 49,0183 | D96: 1 | E96: 54 | F96: 22.03347 | G96: 28.59180612 | H96: 0.499021156 | I96: - | J96: 42 | K96: 29 | L96: 49.0183 | M96: -42.49694953 | N96: -0.7417116913 | O96: 267.1742 | P96: -69.9943 | Q96: 5.064 | R96: 5.112 | S96: -0.048 | T96: =+VLOOKUP(W96,Data!$E$5:$F$32,2) -> 0.08 | U96: -0.128 | V96: A3V | W96: A3 | X96: =+DEGREES(ACOS(SIN(Index!$H$6)*SIN(Base!N96)+COS(Index!$H$6)*COS(Base!N96)*COS(Index!$H$3-Base!H96))) -> 78.28884312
A97: HD 118054 | B97: 13 34 40,45020 | C97: -13 12 51,5716 | D97: 13 | E97: 34 | F97: 40.4502 | G97: 203.6685425 | H97: 3.554686649 | I97: - | J97: 13 | K97: 12 | L97: 51.5716 | M97: -13.21432544 | N97: -0.2306334874 | O97: 318.8659 | P97: 48.3152 | Q97: 5.94 | R97: 5.922 | S97: 0.018 | T97: =+VLOOKUP(W97,Data!$E$5:$F$32,2) -> -0.01 | U97: 0.028 | V97: A0V | W97: A0 | X97: =+DEGREES(ACOS(SIN(Index!$H$6)*SIN(Base!N97)+COS(Index!$H$6)*COS(Base!N97)*COS(Index!$H$3-Base!H97))) -> 125.6209906
A98: HD 118098 | B98: 13 34 41,59115 | C98: -00 35 44,9487 | D98: 13 | E98: 34 | F98: 41.59115 | G98: 203.6732965 | H98: 3.554769622 | I98: - | J98: 0 | K98: 35 | L98: 44.9487 | M98: -0.5958190833 | N98: -0.01039900475 | O98: 325.2459 | P98: 60.3884 | Q98: 3.48 | R98: 3.4 | S98: 0.08 | T98: =+VLOOKUP(W98,Data!$E$5:$F$32,2) -> 0.08 | U98: 0 | V98: A3V | W98: A3 | X98: =+DEGREES(ACOS(SIN(Index!$H$6)*SIN(Base!N98)+COS(Index!$H$6)*COS(Base!N98)*COS(Index!$H$3-Base!H98))) -> 123.3061915
A99: HD 118214 | B99: 13 34 07,30510 | C99: +55 20 54,3673 | D99: 13 | E99: 34 | F99: 7.3051 | G99: 203.5304379 | H99: 3.55227627 | I99: + | J99: 55 | K99: 20 | L99: 54.3673 | M99: 55.34843536 | N99: 0.9660124329 | O99: 110.4938 | P99: 60.7371 | Q99: 5.579 | R99: 5.594 | S99: -0.015 | T99: =+VLOOKUP(W99,Data!$E$5:$F$32,2) -> -0.01 | U99: -0.005 | V99: A0V | W99: A0 | X99: =+DEGREES(ACOS(SIN(Index!$H$6)*SIN(Base!N99)+COS(Index!$H$6)*COS(Base!N99)*COS(Index!$H$3-Base!H99))) -> 97.60123125
A100: HD 118232 | B100: 13 34 27,25928 | C100: +49 00 57,5065 | D100: 13 | E100: 34 | F100: 27.25928 | G100: 203.6135803 | H100: 3.553727379 | I100: + | J100: 49 | K100: 0 | L100: 57.5065 | M100: 49.01597403 | N100: 0.8554901329 | O100: 104.9944 | P100: 66.587 | Q100: 4.82 | R100: 4.7 | S100: 0.12 | T100: =+VLOOKUP(W100,Data!$E$5:$F$32,2) -> 0.15 | U100: -0.03 | V100: A5V | W100: A5 | X100: =+DEGREES(ACOS(SIN(Index!$H$6)*SIN(Base!N100)+COS(Index!$H$6)*COS(Base!N100)*COS(Index!$H$3-Base!H100))) -> 101.1987099
A101: HD 118354 | B101: 13 37 23,47424 | C101: -46 25 40,3741 | D101: 13 | E101: 37 | F101: 23.47424 | G101: 204.3478093 | H101: 3.566542092 | I101: - | J101: 46 | K101: 25 | L101: 40.3741 | M101: -46.42788169 | N101: -0.8103194003 | O101: 311.1307 | P101: 15.711 | Q101: 5.794 | R101: 5.891 | S101: -0.097 | T101: =+VLOOKUP(W101,Data!$E$5:$F$32,2) -> -0.11 | U101: 0.013 | V101: B8V | W101: B8 | X101: =+DEGREES(ACOS(SIN(Index!$H$6)*SIN(Base!N101)+COS(Index!$H$6)*COS(Base!N101)*COS(Index!$H$3-Base!H101))) -> 121.9188504
A102: HD 118991 | B102: 13 41 44,77217 | C102: -54 33 33,9275 | D102: 13 | E102: 41 | F102: 44.77217 | G102: 205.4365507 | H102: 3.585544214 | I102: - | J102: 54 | K102: 33 | L102: 33.9275 | M102: -54.55942431 | N102: -0.9522415921 | O102: 310.2503 | P102: 7.5959 | Q102: 4.96 | R102: 5.01 | S102: -0.05 | T102: =+VLOOKUP(W102,Data!$E$5:$F$32,2) -> -0.11 | U102: 0.06 | V102: B8Vn | W102: B8 | X102: =+DEGREES(ACOS(SIN(Index!$H$6)*SIN(Base!N102)+COS(Index!$H$6)*COS(Base!N102)*COS(Index!$H$3-Base!H102))) -> 118.7257304
A103: HD 119024 | B103: 13 39 30,44761 | C103: +52 55 16,3533 | D103: 13 | E103: 39 | F103: 30.44761 | G103: 204.876865 | H103: 3.575775856 | I103: + | J103: 52 | K103: 55 | L103: 16.3533 | M103: 52.92120925 | N103: 0.9236493455 | O103: 107.0478 | P103: 62.6994 | Q103: 5.573 | R103: 5.467 | S103: 0.106 | T103: =+VLOOKUP(W103,Data!$E$5:$F$32,2) -> 0.08 | U103: 0.026 | V103: A3Vn | W103: A3 | X103: =+DEGREES(ACOS(SIN(Index!$H$6)*SIN(Base!N103)+COS(Index!$H$6)*COS(Base!N103)*COS(Index!$H$3-Base!H103))) -> 98.33862195
A104: HD 119055 | B104: 13 40 40,46962 | C104: +19 57 20,5859 | D104: 13 | E104: 40 | F104: 40.46962 | G104: 205.1686234 | H104: 3.580868 | I104: + | J104: 19 | K104: 57 | L104: 20.5859 | M104: 19.95571831 | N104: 0.348292989 | O104: 3.0797 | P104: 76.6416 | Q104: 5.774 | R104: 5.753 | S104: 0.021 | T104: =+VLOOKUP(W104,Data!$E$5:$F$32,2) -> 0.02 | U104: 0.001 | V104: A1V | W104: A1 | X104: =+DEGREES(ACOS(SIN(Index!$H$6)*SIN(Base!N104)+COS(Index!$H$6)*COS(Base!N104)*COS(Index!$H$3-Base!H104))) -> 114.7989595
A105: HD 11946 | B105: 01 59 38,03766 | C105: +64 37 17,7623 | D105: 1 | E105: 59 | F105: 38.03766 | G105: 29.90849025 | H105: 0.5220016292 | I105: + | J105: 64 | K105: 37 | L105: 17.7623 | M105: 64.62160064 | N105: 1.127859699 | O105: 130.1589 | P105: 2.711 | Q105: 5.284 | R105: 5.283 | S105: 0.001 | T105: =+VLOOKUP(W105,Data!$E$5:$F$32,2) -> -0.01 | U105: 0.011 | V105: A0Vn | W105: A0 | X105: =+DEGREES(ACOS(SIN(Index!$H$6)*SIN(Base!N105)+COS(Index!$H$6)*COS(Base!N105)*COS(Index!$H$3-Base!H105))) -> 66.86718403
A106: HD 119476 | B106: 13 41 29,89279 | C106: +64 49 20,6778 | D106: 13 | E106: 41 | F106: 29.89279 | G106: 205.3745533 | H106: 3.584462155 | I106: + | J106: 64 | K106: 49 | L106: 20.6778 | M106: 64.8224105 | N106: 1.131364492 | O106: 114.4212 | P106: 51.4707 | Q106: 5.93 | R106: 5.85 | S106: 0.08 | T106: =+VLOOKUP(W106,Data!$E$5:$F$32,2) -> 0.05 | U106: 0.03 | V106: A2V | W106: A2 | X106: =+DEGREES(ACOS(SIN(Index!$H$6)*SIN(Base!N106)+COS(Index!$H$6)*COS(Base!N106)*COS(Index!$H$3-Base!H106))) -> 91.40558408
A107: HD 119752 | B107: 13 45 36,89030 | C107: -26 06 57,6301 | D107: 13 | E107: 45 | F107: 36.8903 | G107: 206.4037096 | H107: 3.602424321 | I107: - | J107: 26 | K107: 6 | L107: 57.6301 | M107: -26.11600836 | N107: -0.4558103334 | O107: 317.841 | P107: 35.1824 | Q107: 5.826 | R107: 5.805 | S107: 0.021 | T107: =+VLOOKUP(W107,Data!$E$5:$F$32,2) -> -0.01 | U107: 0.031 | V107: A0V | W107: A0 | X107: =+DEGREES(ACOS(SIN(Index!$H$6)*SIN(Base!N107)+COS(Index!$H$6)*COS(Base!N107)*COS(Index!$H$3-Base!H107))) -> 123.5130762
A108: HD 119921 | B108: 13 46 56,35225 | C108: -36 15 06,9573 | D108: 13 | E108: 46 | F108: 56.35225 | G108: 206.734801 | H108: 3.608202957 | I108: - | J108: 36 | K108: 15 | L108: 6.9573 | M108: -36.25193258 | N108: -0.6327155838 | O108: 315.2817 | P108: 25.2853 | Q108: 5.147 | R108: 5.155 | S108: -0.008 | T108: =+VLOOKUP(W108,Data!$E$5:$F$32,2) -> -0.01 | U108: 0.002 | V108: A0V | W108: A0 | X108: =+DEGREES(ACOS(SIN(Index!$H$6)*SIN(Base!N108)+COS(Index!$H$6)*COS(Base!N108)*COS(Index!$H$3-Base!H108))) -> 122.3320975
A109: HD 120047 | B109: 13 46 13,54556 | C109: +41 05 19,4774 | D109: 13 | E109: 46 | F109: 13.54556 | G109: 206.5564398 | H109: 3.605089966 | I109: + | J109: 41 | K109: 5 | L109: 19.4774 | M109: 41.08874372 | N109: 0.7171338635 | O109: 87.5214 | P109: 72.0613 | Q109: 6.084 | R109: 5.891 | S109: 0.193 | T109: =+VLOOKUP(W109,Data!$E$5:$F$32,2) -> 0.15 | U109: 0.043 | V109: A5V | W109: A5 | X109: =+DEGREES(ACOS(SIN(Index!$H$6)*SIN(Base!N109)+COS(Index!$H$6)*COS(Base!N109)*COS(Index!$H$3-Base!H109))) -> 103.7305166
A110: HD 120315 | B110: 13 47 32,43776 | C110: +49 18 47,7602 | D110: 13 | E110: 47 | F110: 32.43776 | G110: 206.8851573 | H110: 3.610827169 | I110: + | J110: 49 | K110: 18 | L110: 47.7602 | M110: 49.31326672 | N110: 0.8606788692 | O110: 100.6956 | P110: 65.3225 | Q110: 1.755 | R110: 1.852 | S110: -0.097 | T110: =+VLOOKUP(W110,Data!$E$5:$F$32,2) -> -0.2 | U110: 0.103 | V110: B3V | W110: B3 | X110: =+DEGREES(ACOS(SIN(Index!$H$6)*SIN(Base!N110)+COS(Index!$H$6)*COS(Base!N110)*COS(Index!$H$3-Base!H110))) -> 99.24705618
A111: HD 120324 | B111: 13 49 36,98863 | C111: -42 28 25,4296 | D111: 13 | E111: 49 | F111: 36.98863 | G111: 207.4041193 | H111: 3.619884764 | I111: - | J111: 42 | K111: 28 | L111: 25.4296 | M111: -42.47373044 | N111: -0.7413064419 | O111: 314.2377 | P111: 19.1172 | Q111: 3.274 | R111: 3.456 | S111: -0.182 | T111: =+VLOOKUP(W111,Data!$E$5:$F$32,2) -> -0.24 | U111: 0.058 | V111: B2Vnpe | W111: B2 | X111: =+DEGREES(ACOS(SIN(Index!$H$6)*SIN(Base!N111)+COS(Index!$H$6)*COS(Base!N111)*COS(Index!$H$3-Base!H111))) -> 120.7516096
A112: HD 120640 | B112: 13 51 47,21507 | C112: -46 53 55,2079 | D112: 13 | E112: 51 | F112: 47.21507 | G112: 207.9467295 | H112: 3.629355098 | I112: - | J112: 46 | K112: 53 | L112: 55.2079 | M112: -46.89866886 | N112: -0.8185361864 | O112: 313.5287 | P112: 14.7276 | Q112: 5.599 | R112: 5.75 | S112: -0.151 | T112: =+VLOOKUP(W112,Data!$E$5:$F$32,2) -> -0.24 | U112: 0.089 | V112: B2Vp | W112: B2 | X112: =+DEGREES(ACOS(SIN(Index!$H$6)*SIN(Base!N112)+COS(Index!$H$6)*COS(Base!N112)*COS(Index!$H$3-Base!H112))) -> 119.4114129
A113: HD 120642 | B113: 13 52 04,86066 | C113: -52 48 41,5086 | D113: 13 | E113: 52 | F113: 4.86066 | G113: 208.0202527 | H113: 3.630638321 | I113: - | J113: 52 | K113: 48 | L113: 41.5086 | M113: -52.81153017 | N113: -0.9217350844 | O113: 312.1409 | P113: 8.9725 | Q113: 5.165 | R113: 5.248 | S113: -0.083 | T113: =+VLOOKUP(W113,Data!$E$5:$F$32,2) -> -0.07 | U113: -0.013 | V113: B9V | W113: B9 | X113: =+DEGREES(ACOS(SIN(Index!$H$6)*SIN(Base!N113)+COS(Index!$H$6)*COS(Base!N113)*COS(Index!$H$3-Base!H113))) -> 117.8205448
A114: HD 121164 | B114: 13 53 10,28171 | C114: +28 38 53,2793 | D114: 13 | E114: 53 | F114: 10.28171 | G114: 208.2928405 | H114: 3.635395874 | I114: + | J114: 28 | K114: 38 | L114: 53.2793 | M114: 28.64813314 | N114: 0.5000042478 | O114: 42.8782 | P114: 76.2844 | Q114: 6.098 | R114: 5.911 | S114: 0.187 | T114: =+VLOOKUP(W114,Data!$E$5:$F$32,2) -> 0.2 | U114: -0.013 | V114: A7V | W114: A7 | X114: =+DEGREES(ACOS(SIN(Index!$H$6)*SIN(Base!N114)+COS(Index!$H$6)*COS(Base!N114)*COS(Index!$H$3-Base!H114))) -> 108.4482633
A115: HD 121190 | B115: 13 55 12,14182 | C115: -52 09 38,9581 | D115: 13 | E115: 55 | F115: 12.14182 | G115: 208.8005909 | H115: 3.644257792 | I115: - | J115: 52 | K115: 9 | L115: 38.9581 | M115: -52.16082169 | N115: -0.9103780791 | O115: 312.7674 | P115: 9.489 | Q115: 5.588 | R115: 5.654 | S115: -0.066 | T115: =+VLOOKUP(W115,Data!$E$5:$F$32,2) -> -0.07 | U115: 0.004 | V115: B9V | W115: B9 | X115: =+DEGREES(ACOS(SIN(Index!$H$6)*SIN(Base!N115)+COS(Index!$H$6)*COS(Base!N115)*COS(Index!$H$3-Base!H115))) -> 117.5450657
A116: HD 121409 | B116: 13 53 51,01399 | C116: +53 43 43,2299 | D116: 13 | E116: 53 | F116: 51.01399 | G116: 208.4625583 | H116: 3.638358009 | I116: + | J116: 53 | K116: 43 | L116: 43.2299 | M116: 53.72867497 | N116: 0.937742281 | O116: 103.7614 | P116: 61.0151 | Q116: 5.666 | R116: 5.698 | S116: -0.032 | T116: =+VLOOKUP(W116,Data!$E$5:$F$32,2) -> -0.01 | U116: -0.022 | V116: A0V | W116: A0 | X116: =+DEGREES(ACOS(SIN(Index!$H$6)*SIN(Base!N116)+COS(Index!$H$6)*COS(Base!N116)*COS(Index!$H$3-Base!H116))) -> 96.09980159
A117: HD 121607 | B117: 13 56 27,87652 | C117: +01 03 02,0940 | D117: 13 | E117: 56 | F117: 27.87652 | G117: 209.1161522 | H117: 3.649765374 | I117: + | J117: 1 | K117: 3 | L117: 2.094 | M117: 1.050581667 | N117: 0.01833610914 | O117: 336.5265 | P117: 59.6121 | Q117: 6.104 | R117: 5.906 | S117: 0.198 | T117: =+VLOOKUP(W117,Data!$E$5:$F$32,2) -> 0.27 | U117: -0.072 | V117: A8V | W117: A8 | X117: =+DEGREES(ACOS(SIN(Index!$H$6)*SIN(Base!N117)+COS(Index!$H$6)*COS(Base!N117)*COS(Index!$H$3-Base!H117))) -> 117.6234963
A118: HD 121847 | B118: 13 58 31,14642 | C118: -24 58 20,0979 | D118: 13 | E118: 58 | F118: 31.14642 | G118: 209.6297767 | H118: 3.658729815 | I118: - | J118: 24 | K118: 58 | L118: 20.0979 | M118: -24.97224942 | N118: -0.435847974 | O118: 321.6599 | P118: 35.4481 | Q118: 5.05 | R118: 5.15 | S118: -0.1 | T118: =+VLOOKUP(W118,Data!$E$5:$F$32,2) -> -0.11 | U118: 0.01 | V118: B8V | W118: B8 | X118: =+DEGREES(ACOS(SIN(Index!$H$6)*SIN(Base!N118)+COS(Index!$H$6)*COS(Base!N118)*COS(Index!$H$3-Base!H118))) -> 120.618572
A119: HD 121996 | B119: 13 58 38,92201 | C119: +21 41 46,3749 | D119: 13 | E119: 58 | F119: 38.92201 | G119: 209.662175 | H119: 3.659295271 | I119: + | J119: 21 | K119: 41 | L119: 46.3749 | M119: 21.69621525 | N119: 0.3786703913 | O119: 17.0193 | P119: 73.7815 | Q119: 5.753 | R119: 5.756 | S119: -0.003 | T119: =+VLOOKUP(W119,Data!$E$5:$F$32,2) -> -0.01 | U119: 0.007 | V119: A0Vs | W119: A0 | X119: =+DEGREES(ACOS(SIN(Index!$H$6)*SIN(Base!N119)+COS(Index!$H$6)*COS(Base!N119)*COS(Index!$H$3-Base!H119))) -> 110.2551123
A120: HD 12216 | B120: 02 03 26,10618 | C120: +72 25 16,6578 | D120: 2 | E120: 3 | F120: 26.10618 | G120: 30.85877575 | H120: 0.53858724 | I120: + | J120: 72 | K120: 25 | L120: 16.6578 | M120: 72.42129383 | N120: 1.263990026 | O120: 128.375 | P120: 10.3147 | Q120: 3.971 | R120: 3.948 | S120: 0.023 | T120: =+VLOOKUP(W120,Data!$E$5:$F$32,2) -> 0.05 | U120: -0.027 | V120: A2V | W120: A2 | X120: =+DEGREES(ACOS(SIN(Index!$H$6)*SIN(Base!N120)+COS(Index!$H$6)*COS(Base!N120)*COS(Index!$H$3-Base!H120))) -> 70.01904199
A121: HD 122365 | B121: 14 01 20,42877 | C121: +08 53 41,6655 | D121: 14 | E121: 1 | F121: 20.42877 | G121: 210.3351199 | H121: 3.671040374 | I121: + | J121: 8 | K121: 53 | L121: 41.6655 | M121: 8.894907083 | N121: 0.1552454153 | O121: 348.379 | P121: 65.3959 | Q121: 6.062 | R121: 5.981 | S121: 0.081 | T121: =+VLOOKUP(W121,Data!$E$5:$F$32,2) -> 0.05 | U121: 0.031 | V121: A2V | W121: A2 | X121: =+DEGREES(ACOS(SIN(Index!$H$6)*SIN(Base!N121)+COS(Index!$H$6)*COS(Base!N121)*COS(Index!$H$3-Base!H121))) -> 114.2185895
A122: HD 122408 | B122: 14 01 38,79341 | C122: +01 32 40,3145 | D122: 14 | E122: 1 | F122: 38.79341 | G122: 210.4116392 | H122: 3.672375889 | I122: + | J122: 1 | K122: 32 | L122: 40.3145 | M122: 1.544531806 | N122: 0.02695716541 | O122: 339.2177 | P122: 59.3767 | Q122: 4.341 | R122: 4.244 | S122: 0.097 | T122: =+VLOOKUP(W122,Data!$E$5:$F$32,2) -> 0.08 | U122: 0.017 | V122: A3V | W122: A3 | X122: =+DEGREES(ACOS(SIN(Index!$H$6)*SIN(Base!N122)+COS(Index!$H$6)*COS(Base!N122)*COS(Index!$H$3-Base!H122))) -> 116.2449425
A123: HD 12279 | B123: 02 02 52,47648 | C123: +64 54 05,2688 | D123: 2 | E123: 2 | F123: 52.47648 | G123: 30.718652 | H123: 0.5361416192 | I123: + | J123: 64 | K123: 54 | L123: 5.2688 | M123: 64.90146356 | N123: 1.132744228 | O123: 130.4173 | P123: 3.073 | Q123: 6.026 | R123: 5.999 | S123: 0.027 | T123: =+VLOOKUP(W123,Data!$E$5:$F$32,2) -> 0.02 | U123: 0.007 | V123: A1Vn | W123: A1 | X123: =+DEGREES(ACOS(SIN(Index!$H$6)*SIN(Base!N123)+COS(Index!$H$6)*COS(Base!N123)*COS(Index!$H$3-Base!H123))) -> 67.287274
A124: HD 122980 | B124: 14 06 02,76824 | C124: -41 10 46,6788 | D124: 14 | E124: 6 | F124: 2.76824 | G124: 211.5115343 | H124: 3.69157268 | I124: - | J124: 41 | K124: 10 | L124: 46.6788 | M124: -41.179633 | N124: -0.7187201806 | O124: 317.7304 | P124: 19.5383 | Q124: 4.157 | R124: 4.343 | S124: -0.186 | T124: =+VLOOKUP(W124,Data!$E$5:$F$32,2) -> -0.24 | U124: 0.054 | V124: B2V | W124: B2 | X124: =+DEGREES(ACOS(SIN(Index!$H$6)*SIN(Base!N124)+COS(Index!$H$6)*COS(Base!N124)*COS(Index!$H$3-Base!H124))) -> 117.951104
A125: HD 124224 | B125: 14 12 15,80548 | C125: +02 24 33,9534 | D125: 14 | E125: 12 | F125: 15.80548 | G125: 213.0658562 | H125: 3.718700714 | I125: + | J125: 2 | K125: 24 | L125: 33.9534 | M125: 2.4094315 | N125: 0.04205251278 | O125: 344.4272 | P125: 58.6103 | Q125: 4.89 | R125: 5.01 | S125: -0.12 | T125: =+VLOOKUP(W125,Data!$E$5:$F$32,2) -> -0.01 | U125: -0.11 | V125: A0Vp,,, | W125: A0 | X125: =+DEGREES(ACOS(SIN(Index!$H$6)*SIN(Base!N125)+COS(Index!$H$6)*COS(Base!N125)*COS(Index!$H$3-Base!H125))) -> 113.4591516
A126: HD 124367 | B126: 14 14 57,13838 | C126: -57 05 10,0544 | D126: 14 | E126: 14 | F126: 57.13838 | G126: 213.7380766 | H126: 3.730433173 | I126: - | J126: 57 | K126: 5 | L126: 10.0544 | M126: -57.08612622 | N126: -0.9963408598 | O126: 314.1251 | P126: 3.9596 | Q126: 4.97 | R126: 5.044 | S126: -0.074 | T126: =+VLOOKUP(W126,Data!$E$5:$F$32,2) -> -0.18 | U126: 0.106 | V126: B4Vne | W126: B4 | X126: =+DEGREES(ACOS(SIN(Index!$H$6)*SIN(Base!N126)+COS(Index!$H$6)*COS(Base!N126)*COS(Index!$H$3-Base!H126))) -> 113.5364466
A127: HD 124683 | B127: 14 15 24,08494 | C127: -18 12 02,4879 | D127: 14 | E127: 15 | F127: 24.08494 | G127: 213.8503539 | H127: 3.732392782 | I127: - | J127: 18 | K127: 12 | L127: 2.4879 | M127: -18.20069108 | N127: -0.3176619855 | O127: 329.436 | P127: 40.3104 | Q127: 5.53 | R127: 5.53 | S127: 0 | T127: =+VLOOKUP(W127,Data!$E$5:$F$32,2) -> -0.01 | U127: 0.01 | V127: A0V | W127: A0 | X127: =+DEGREES(ACOS(SIN(Index!$H$6)*SIN(Base!N127)+COS(Index!$H$6)*COS(Base!N127)*COS(Index!$H$3-Base!H127))) -> 116.3564341
A128: HD 12471 | B128: 02 02 57,95579 | C128: +33 17 02,8813 | D128: 2 | E128: 2 | F128: 57.95579 | G128: 30.74148246 | H128: 0.5365400858 | I128: + | J128: 33 | K128: 17 | L128: 2.8813 | M128: 33.28413369 | N128: 0.5809177216 | O128: 139.7134 | P128: -27.246 | Q128: 5.555 | R128: 5.516 | S128: 0.039 | T128: =+VLOOKUP(W128,Data!$E$5:$F$32,2) -> 0.05 | U128: -0.011 | V128: A2V | W128: A2 | X128: =+DEGREES(ACOS(SIN(Index!$H$6)*SIN(Base!N128)+COS(Index!$H$6)*COS(Base!N128)*COS(Index!$H$3-Base!H128))) -> 60.6260711
A129: HD 124771 | B129: 14 22 23,16467 | C129: -80 06 32,2053 | D129: 14 | E129: 22 | F129: 23.16467 | G129: 215.5965195 | H129: 3.76286912 | I129: - | J129: 80 | K129: 6 | L129: 32.2053 | M129: -80.10894592 | N129: -1.398164867 | O129: 306.9338 | P129: -17.9513 | Q129: 4.944 | R129: 5.051 | S129: -0.107 | T129: =+VLOOKUP(W129,Data!$E$5:$F$32,2) -> -0.18 | U129: 0.073 | V129: B4V | W129: B4 | X129: =+DEGREES(ACOS(SIN(Index!$H$6)*SIN(Base!N129)+COS(Index!$H$6)*COS(Base!N129)*COS(Index!$H$3-Base!H129))) -> 106.1743235
A130: HD 124953 | B130: 14 16 04,1396 | C130: +18 54 42,457 | D130: 14 | E130: 16 | F130: 4.1396 | G130: 214.0172483 | H130: 3.735305639 | I130: + | J130: 18 | K130: 54 | L130: 2.457 | M130: 18.9006825 | N130: 0.3298791405 | O130: 14.4944 | P130: 68.9042 | Q130: 6.221 | R130: 5.969 | S130: 0.252 | T130: =+VLOOKUP(W130,Data!$E$5:$F$32,2) -> 0.27 | U130: -0.018 | V130: A8V | W130: A8 | X130: =+DEGREES(ACOS(SIN(Index!$H$6)*SIN(Base!N130)+COS(Index!$H$6)*COS(Base!N130)*COS(Index!$H$3-Base!H130))) -> 107.5104916
A131: HD 125161 | B131: 14 16 09,92995 | C131: +51 22 02,0267 | D131: 14 | E131: 16 | F131: 9.92995 | G131: 214.0413748 | H131: =+RADIANS(G131) -> 3.735726726 | I131: + | J131: 51 | K131: 22 | L131: 2.0267 | M131: =VALUE(CONCATENATE(I131,+J131+K131/60+L131/3600)) -> 51.36722964 | N131: =+RADIANS(M131) -> 0.8965272848 | O131: 95.2372 | P131: 60.9623 | Q131: 4.96 | R131: 4.75 | S131: 0.21 | T131: =+VLOOKUP(W131,Data!$E$5:$F$32,2) -> 0.2 | U131: =+S131-T131 -> 0.01 | V131: A7V | W131: =IF(MID(V131,3,1)<>",",LEFT(V131,2),LEFT(V131,4)) -> A7 | X131: =+DEGREES(ACOS(SIN(Index!$H$6)*SIN(Base!N131)+COS(Index!$H$6)*COS(Base!N131)*COS(Index!$H$3-Base!H131))) -> 94.26080642
A132: HD 125283 | B132: 14 19 23,87945 | C132: -37 00 10,4639 | D132: 14 | E132: 19 | F132: 23.87945 | G132: 214.8494977 | H132: 3.749831131 | I132: - | J132: 37 | K132: 0 | L132: 10.4639 | M132: -37.00290664 | N132: -0.6458225537 | O132: 321.834 | P132: 22.6192 | Q132: 6.009 | R132: 5.932 | S132: 0.077 | T132: =+VLOOKUP(W132,Data!$E$5:$F$32,2) -> 0.05 | U132: 0.027 | V132: A2Vn | W132: A2 | X132: =+DEGREES(ACOS(SIN(Index!$H$6)*SIN(Base!N132)+COS(Index!$H$6)*COS(Base!N132)*COS(Index!$H$3-Base!H132))) -> 115.7792099
A133: HD 125337 | B133: 14 19 06,59235 | C133: -13 22 15,9459 | D133: 14 | E133: 19 | F133: 6.59235 | G133: 214.7774681 | H133: 3.748573978 | I133: - | J133: 13 | K133: 22 | L133: 15.9459 | M133: -13.37109608 | N133: -0.2333696513 | O133: 333.3974 | P133: 44.253 | Q133: 4.66 | R133: 4.52 | S133: 0.14 | T133: =+VLOOKUP(W133,Data!$E$5:$F$32,2) -> 0.02 | U133: 0.12 | V133: A1V | W133: A1 | X133: =+DEGREES(ACOS(SIN(Index!$H$6)*SIN(Base!N133)+COS(Index!$H$6)*COS(Base!N133)*COS(Index!$H$3-Base!H133))) -> 114.9104877
A134: HD 12534 | B134: 02 03 54,75 | C134: +42 19 51,6 | D134: 2 | E134: 3 | F134: 54.75 | G134: 30.978125 | H134: 0.5406702773 | I134: + | J134: 42 | K134: 19 | L134: 51.6 | M134: 42.331 | N134: 0.7388153257 | O134: 136.9667 | P134: -18.5571 | Q134: 4.87 | R134: 4.84 | S134: 0.03 | T134: =+VLOOKUP(W134,Data!$E$5:$F$32,2) -> -0.11 | U134: 0.14 | V134: B8V+,,, | W134: B8 | X134: =+DEGREES(ACOS(SIN(Index!$H$6)*SIN(Base!N134)+COS(Index!$H$6)*COS(Base!N134)*COS(Index!$H$3-Base!H134))) -> 61.82090516
A135: HD 125745 | B135: 14 22 19,71948 | C135: -34 47 12,4568 | D135: 14 | E135: 22 | F135: 19.71948 | G135: 215.5821645 | H135: 3.762618579 | I135: - | J135: 34 | K135: 47 | L135: 12.4568 | M135: -34.78679356 | N135: -0.6071440838 | O135: 323.3284 | P135: 24.4595 | Q135: 5.476 | R135: 5.563 | S135: -0.087 | T135: =+VLOOKUP(W135,Data!$E$5:$F$32,2) -> -0.11 | U135: 0.023 | V135: B8V | W135: B8 | X135: =+DEGREES(ACOS(SIN(Index!$H$6)*SIN(Base!N135)+COS(Index!$H$6)*COS(Base!N135)*COS(Index!$H$3-Base!H135))) -> 115.2902731
A136: HD 126129 | B136: 14 23 22,69526 | C136: +08 26 47,8351 | D136: 14 | E136: 23 | F136: 22.69526 | G136: 215.8445636 | H136: 3.767198307 | I136: + | J136: 8 | K136: 26 | L136: 47.8351 | M136: 8.446620861 | N136: 0.1474213447 | O136: 356.5581 | P136: 61.3327 | Q136: 5.1 | R136: 5.12 | S136: -0.02 | T136: =+VLOOKUP(W136,Data!$E$5:$F$32,2) -> -0.01 | U136: -0.01 | V136: A0V | W136: A0 | X136: =+DEGREES(ACOS(SIN(Index!$H$6)*SIN(Base!N136)+COS(Index!$H$6)*COS(Base!N136)*COS(Index!$H$3-Base!H136))) -> 109.1551692
A137: HD 126200 | B137: 14 24 00,87671 | C137: +08 14 38,2990 | D137: 14 | E137: 24 | F137: 0.87671 | G137: 216.003653 | H137: 3.76997494 | I137: + | J137: 8 | K137: 14 | L137: 38.299 | M137: 8.243971944 | N137: 0.1438844539 | O137: 356.479 | P137: 61.079 | Q137: 5.997 | R137: 5.935 | S137: 0.062 | T137: =+VLOOKUP(W137,Data!$E$5:$F$32,2) -> 0.08 | U137: -0.018 | V137: A3V | W137: A3 | X137: =+DEGREES(ACOS(SIN(Index!$H$6)*SIN(Base!N137)+COS(Index!$H$6)*COS(Base!N137)*COS(Index!$H$3-Base!H137))) -> 109.0619533
A138: HD 126248 | B138: 14 24 11,34434 | C138: +05 49 12,4679 | D138: 14 | E138: 24 | F138: 11.34434 | G138: 216.0472681 | H138: 3.770736168 | I138: + | J138: 5 | K138: 49 | L138: 12.4679 | M138: 5.820129972 | N138: 0.1015804309 | O138: 353.0998 | P138: 59.3297 | Q138: 5.228 | R138: 5.103 | S138: 0.125 | T138: =+VLOOKUP(W138,Data!$E$5:$F$32,2) -> 0.15 | U138: -0.025 | V138: A5V | W138: A5 | X138: =+DEGREES(ACOS(SIN(Index!$H$6)*SIN(Base!N138)+COS(Index!$H$6)*COS(Base!N138)*COS(Index!$H$3-Base!H138))) -> 109.6913657
A139: HD 126769 | B139: 14 28 10,42638 | C139: -29 29 29,8884 | D139: 14 | E139: 28 | F139: 10.42638 | G139: 217.0434432 | H139: 3.788122705 | I139: - | J139: 29 | K139: 29 | L139: 29.8884 | M139: -29.49163567 | N139: -0.5147261442 | O139: 326.9506 | P139: 28.8293 | Q139: 4.899 | R139: 4.972 | S139: -0.073 | T139: =+VLOOKUP(W139,Data!$E$5:$F$32,2) -> -0.11 | U139: 0.037 | V139: B8V | W139: B8 | X139: =+DEGREES(ACOS(SIN(Index!$H$6)*SIN(Base!N139)+COS(Index!$H$6)*COS(Base!N139)*COS(Index!$H$3-Base!H139))) -> 114.0820934
A140: HD 126981 | B140: 14 30 08,62940 | C140: -45 19 16,8792 | D140: 14 | E140: 30 | F140: 8.6294 | G140: 217.5359558 | H140: 3.796718671 | I140: - | J140: 45 | K140: 19 | L140: 16.8792 | M140: -45.32135533 | N140: -0.791006872 | O140: 320.5537 | P140: 14.1463 | Q140: 5.421 | R140: 5.499 | S140: -0.078 | T140: =+VLOOKUP(W140,Data!$E$5:$F$32,2) -> -0.11 | U140: 0.032 | V140: B8Vn | W140: B8 | X140: =+DEGREES(ACOS(SIN(Index!$H$6)*SIN(Base!N140)+COS(Index!$H$6)*COS(Base!N140)*COS(Index!$H$3-Base!H140))) -> 113.1158812
A141: HD 126983 | B141: 14 30 20,94970 | C141: -49 31 08,4922 | D141: 14 | E141: 30 | F141: 20.9497 | G141: 217.5872904 | H141: 3.797614628 | I141: - | J141: 49 | K141: 31 | L141: 8.4922 | M141: -49.51902561 | N141: -0.8642700393 | O141: 318.9517 | P141: 10.2513 | Q141: 5.436 | R141: 5.383 | S141: 0.053 | T141: =+VLOOKUP(W141,Data!$E$5:$F$32,2) -> 0.02 | U141: 0.033 | V141: A1V+,,, | W141: A1 | X141: =+DEGREES(ACOS(SIN(Index!$H$6)*SIN(Base!N141)+COS(Index!$H$6)*COS(Base!N141)*COS(Index!$H$3-Base!H141))) -> 112.6251105
A142: HD 127971 | B142: 14 35 31,48057 | C142: -41 31 02,7746 | D142: 14 | E142: 35 | F142: 31.48057 | G142: 218.881169 | H142: 3.82019707 | I142: - | J142: 41 | K142: 31 | L142: 2.7746 | M142: -41.51743739 | N142: -0.7246159794 | O142: 323.0504 | P142: 17.2524 | Q142: 5.796 | R142: 5.869 | S142: -0.073 | T142: =+VLOOKUP(W142,Data!$E$5:$F$32,2) -> -0.13 | U142: 0.057 | V142: B7V | W142: B7 | X142: =+DEGREES(ACOS(SIN(Index!$H$6)*SIN(Base!N142)+COS(Index!$H$6)*COS(Base!N142)*COS(Index!$H$3-Base!H142))) -> 112.4128477
A143: HD 127972 | B143: 14 35 30,42416 | C143: -42 09 28,1708 | D143: 14 | E143: 35 | F143: 30.42416 | G143: 218.8767673 | H143: 3.820120246 | I143: - | J143: 42 | K143: 9 | L143: 28.1708 | M143: -42.15782522 | N143: -0.7357928556 | O143: 322.774 | P143: 16.6691 | Q143: 2.168 | R143: 2.322 | S143: -0.154 | T143: =+VLOOKUP(W143,Data!$E$5:$F$32,2) -> -0.26 | U143: 0.106 | V143: B1,5Vne | W143: B1,5 | X143: =+DEGREES(ACOS(SIN(Index!$H$6)*SIN(Base!N143)+COS(Index!$H$6)*COS(Base!N143)*COS(Index!$H$3-Base!H143))) -> 112.3830404
A144: HD 1280 | B144: 00 17 05,49885 | C144: +38 40 53,8902 | D144: 0 | E144: 17 | F144: 5.49885 | G144: 4.272911875 | H144: 0.07457638087 | I144: + | J144: 38 | K144: 40 | L144: 53.8902 | M144: 38.68163617 | N144: 0.6751219112 | O144: 115.619 | P144: -23.7019 | Q144: 4.679 | R144: 4.619 | S144: 0.06 | T144: =+VLOOKUP(W144,Data!$E$5:$F$32,2) -> 0.05 | U144: 0.01 | V144: A2V | W144: A2 | X144: =+DEGREES(ACOS(SIN(Index!$H$6)*SIN(Base!N144)+COS(Index!$H$6)*COS(Base!N144)*COS(Index!$H$3-Base!H144))) -> 41.51037494
A145: HD 128207 | B145: 14 36 44,13347 | C145: -40 12 41,6900 | D145: 14 | E145: 36 | F145: 44.13347 | G145: 219.1838895 | H145: 3.825480538 | I145: - | J145: 40 | K145: 12 | L145: 41.69 | M145: -40.21158056 | N145: -0.7018244781 | O145: 323.835 | P145: 18.3477 | Q145: 5.627 | R145: 5.731 | S145: -0.104 | T145: =+VLOOKUP(W145,Data!$E$5:$F$32,2) -> -0.11 | U145: 0.006 | V145: B8V | W145: B8 | X145: =+DEGREES(ACOS(SIN(Index!$H$6)*SIN(Base!N145)+COS(Index!$H$6)*COS(Base!N145)*COS(Index!$H$3-Base!H145))) -> 112.2401346
A146: HD 128345 | B146: 14 37 53,22583 | C146: -49 25 32,9798 | D146: 14 | E146: 37 | F146: 53.22583 | G146: 219.4717743 | H146: 3.830505077 | I146: - | J146: 49 | K146: 25 | L146: 32.9798 | M146: -49.42582772 | N146: -0.8626434293 | O146: 320.1331 | P146: 9.8576 | Q146: 3.898 | R146: 4.034 | S146: -0.136 | T146: =+VLOOKUP(W146,Data!$E$5:$F$32,2) -> -0.16 | U146: 0.024 | V146: B5V | W146: B5 | X146: =+DEGREES(ACOS(SIN(Index!$H$6)*SIN(Base!N146)+COS(Index!$H$6)*COS(Base!N146)*COS(Index!$H$3-Base!H146))) -> 111.4183338
A147: HD 128898 | B147: 14 42 30,41958 | C147: -64 58 30,4934 | D147: 14 | E147: 42 | F147: 30.41958 | G147: 220.6267482 | H147: 3.850663175 | I147: - | J147: 64 | K147: 58 | L147: 30.4934 | M147: -64.97513706 | N147: -1.134030074 | O147: 314.3349 | P147: -4.5917 | Q147: 3.43 | R147: 3.19 | S147: 0.24 | T147: =+VLOOKUP(W147,Data!$E$5:$F$32,2) -> 0.2 | U147: 0.04 | V147: A7VpSrCrEu | W147: A7 | X147: =+DEGREES(ACOS(SIN(Index!$H$6)*SIN(Base!N147)+COS(Index!$H$6)*COS(Base!N147)*COS(Index!$H$3-Base!H147))) -> 108.6418414
A148: HD 128998 | B148: 14 38 15,22227 | C148: +54 01 24,0221 | D148: 14 | E148: 38 | F148: 15.22227 | G148: 219.5634261 | H148: 3.832104703 | I148: + | J148: 54 | K148: 1 | L148: 24.0221 | M148: 54.02333947 | N148: 0.9428851467 | O148: 94.1687 | P148: 56.7276 | Q148: 5.83 | R148: 5.83 | S148: 0 | T148: =+VLOOKUP(W148,Data!$E$5:$F$32,2) -> 0.02 | U148: -0.02 | V148: A1V | W148: A1 | X148: =+DEGREES(ACOS(SIN(Index!$H$6)*SIN(Base!N148)+COS(Index!$H$6)*COS(Base!N148)*COS(Index!$H$3-Base!H148))) -> 90.12090449
A149: HD 129002 | B149: 14 38 50,22633 | C149: +44 24 16,1988 | D149: 14 | E149: 38 | F149: 50.22633 | G149: 219.7092764 | H149: 3.83465027 | I149: + | J149: 44 | K149: 24 | L149: 16.1988 | M149: 44.40449967 | N149: 0.7750047219 | O149: 78.757 | P149: 62.4167 | Q149: 5.423 | R149: 5.395 | S149: 0.028 | T149: =+VLOOKUP(W149,Data!$E$5:$F$32,2) -> 0.02 | U149: 0.008 | V149: A1V | W149: A1 | X149: =+DEGREES(ACOS(SIN(Index!$H$6)*SIN(Base!N149)+COS(Index!$H$6)*COS(Base!N149)*COS(Index!$H$3-Base!H149))) -> 93.61496499
A150: HD 129116 | B150: 14 41 57,59068 | C150: -37 47 36,5940 | D150: 14 | E150: 41 | F150: 57.59068 | G150: 220.4899612 | H150: 3.84827579 | I150: - | J150: 37 | K150: 47 | L150: 36.594 | M150: -37.79349833 | N150: -0.6596209818 | O150: 325.9018 | P150: 20.0994 | Q150: 3.831 | R150: 3.985 | S150: -0.154 | T150: =+VLOOKUP(W150,Data!$E$5:$F$32,2) -> -0.2 | U150: 0.046 | V150: B3V | W150: B3 | X150: =+DEGREES(ACOS(SIN(Index!$H$6)*SIN(Base!N150)+COS(Index!$H$6)*COS(Base!N150)*COS(Index!$H$3-Base!H150))) -> 111.2754422
A151: HD 129175 | B151: 14 40 43,94 | C151: +16 25 03,9 | D151: 14 | E151: 40 | F151: 43.94 | G151: 220.1830833 | H151: 3.842919761 | J151: 1 | K151: 2 | L151: 3.9 | M151: 1.034416667 | N151: 0.01805397667 | O151: 15.6428 | P151: 62.5396 | Q151: 6.12 | R151: 5.82 | S151: 0.3 | T151: =+VLOOKUP(W151,Data!$E$5:$F$32,2) -> 0.17 | U151: 0.13 | V151: A6V | W151: A6 | X151: =+DEGREES(ACOS(SIN(Index!$H$6)*SIN(Base!N151)+COS(Index!$H$6)*COS(Base!N151)*COS(Index!$H$3-Base!H151))) -> 106.8975179
A152: HD 129422 | B152: 14 45 17,33642 | C152: -62 52 32,3401 | D152: 14 | E152: 45 | F152: 17.33642 | G152: 221.3222351 | H152: 3.86280171 | I152: - | J152: 62 | K152: 52 | L152: 32.3401 | M152: -62.87565003 | N152: -1.097387112 | O152: 315.4971 | P152: -2.8152 | Q152: 5.637 | R152: 5.364 | S152: 0.273 | T152: =+VLOOKUP(W152,Data!$E$5:$F$32,2) -> 0.3 | U152: -0.027 | V152: A9V | W152: A9 | X152: =+DEGREES(ACOS(SIN(Index!$H$6)*SIN(Base!N152)+COS(Index!$H$6)*COS(Base!N152)*COS(Index!$H$3-Base!H152))) -> 108.6883857
A153: HD 129433 | B153: 14 43 13,55130 | C153: -24 59 51,9093 | D153: 14 | E153: 43 | F153: 13.5513 | G153: 220.8064638 | H153: 3.853799802 | I153: - | J153: 24 | K153: 59 | L153: 51.9093 | M153: -24.99775258 | N153: -0.4362930882 | O153: 332.7483 | P153: 31.3229 | Q153: 5.72 | R153: 5.73 | S153: -0.01 | T153: =+VLOOKUP(W153,Data!$E$5:$F$32,2) -> -0.07 | U153: 0.06 | V153: B9,5V | W153: B9,5 | X153: =+DEGREES(ACOS(SIN(Index!$H$6)*SIN(Base!N153)+COS(Index!$H$6)*COS(Base!N153)*COS(Index!$H$3-Base!H153))) -> 110.5014863
A154: HD 129685 | B154: 14 44 59,20161 | C154: -35 11 30,5745 | D154: 14 | E154: 44 | F154: 59.20161 | G154: 221.2466734 | H154: 3.861482909 | I154: - | J154: 35 | K154: 11 | L154: 30.5745 | M154: -35.19182625 | N154: -0.6142132379 | O154: 327.7349 | P154: 22.1526 | Q154: 4.939 | R154: 4.923 | S154: 0.016 | T154: =+VLOOKUP(W154,Data!$E$5:$F$32,2) -> -0.01 | U154: 0.026 | V154: A0V | W154: A0 | X154: =+DEGREES(ACOS(SIN(Index!$H$6)*SIN(Base!N154)+COS(Index!$H$6)*COS(Base!N154)*COS(Index!$H$3-Base!H154))) -> 110.6474845
A155: HD 129858 | B155: 14 46 28,99366 | C155: -47 26 28,0161 | D155: 14 | E155: 46 | F155: 28.99366 | G155: 221.6208069 | H155: 3.868012772 | I155: - | J155: 47 | K155: 26 | L155: 28.0161 | M155: -47.44111558 | N155: -0.8280036677 | O155: 322.2972 | P155: 11.0585 | Q155: 5.808 | R155: 5.735 | S155: 0.073 | T155: =+VLOOKUP(W155,Data!$E$5:$F$32,2) -> 0.02 | U155: 0.053 | V155: A1V | W155: A1 | X155: =+DEGREES(ACOS(SIN(Index!$H$6)*SIN(Base!N155)+COS(Index!$H$6)*COS(Base!N155)*COS(Index!$H$3-Base!H155))) -> 110.1476987
A156: HD 129954 | B156: 14 48 44,55115 | C156: -66 35 36,8221 | D156: 14 | E156: 48 | F156: 44.55115 | G156: 222.1856298 | H156: 3.87787079 | I156: - | J156: 66 | K156: 35 | L156: 36.8221 | M156: -66.59356169 | N156: -1.162276912 | O156: 314.221 | P156: -6.3281 | Q156: 5.775 | R156: 5.88 | S156: -0.105 | T156: =+VLOOKUP(W156,Data!$E$5:$F$32,2) -> -0.24 | U156: 0.135 | V156: B2,5Ve | W156: B2,5 | X156: =+DEGREES(ACOS(SIN(Index!$H$6)*SIN(Base!N156)+COS(Index!$H$6)*COS(Base!N156)*COS(Index!$H$3-Base!H156))) -> 107.7376564
A157: HD 129956 | B157: 14 45 30,20425 | C157: +00 43 02,1895 | D157: 14 | E157: 45 | F157: 30.20425 | G157: 221.375851 | H157: 3.863737485 | I157: + | J157: 0 | K157: 43 | L157: 2.1895 | M157: 0.7172748611 | N157: 0.01251880797 | O157: 353.7207 | P157: 51.9676 | Q157: 5.661 | R157: 5.673 | S157: -0.012 | T157: =+VLOOKUP(W157,Data!$E$5:$F$32,2) -> -0.07 | U157: 0.058 | V157: B9,5V | W157: B9,5 | X157: =+DEGREES(ACOS(SIN(Index!$H$6)*SIN(Base!N157)+COS(Index!$H$6)*COS(Base!N157)*COS(Index!$H$3-Base!H157))) -> 105.8112028
A158: HD 129988 | B158: 14 44 59,2 | C158: +27 04 27 | D158: 14 | E158: 44 | F158: 59.2 | G158: 221.2466667 | H158: 3.861482792 | I158: + | J158: 27 | K158: 4 | L158: 27 | M158: 27.07416667 | N158: 0.4725333506 | O158: 39.3845 | P158: 64.7842 | Q158: 5.2 | R158: 5.12 | S158: 0.08 | T158: =+VLOOKUP(W158,Data!$E$5:$F$32,2) -> 0.05 | U158: 0.03 | V158: A2V | W158: A2 | X158: =+DEGREES(ACOS(SIN(Index!$H$6)*SIN(Base!N158)+COS(Index!$H$6)*COS(Base!N158)*COS(Index!$H$3-Base!H158))) -> 98.47978556
A159: HD 130109 | B159: 14 46 14,92536 | C159: +01 53 34,3845 | D159: 14 | E159: 46 | F159: 14.92536 | G159: 221.562189 | H159: 3.866989696 | I159: + | J159: 1 | K159: 53 | L159: 34.3845 | M159: 1.892884583 | N159: 0.03303706834 | O159: 355.2805 | P159: 52.6803 | Q159: 3.71 | R159: 3.72 | S159: -0.01 | T159: =+VLOOKUP(W159,Data!$E$5:$F$32,2) -> -0.01 | U159: -2.307182223e-16 | V159: A0V | W159: A0 | X159: =+DEGREES(ACOS(SIN(Index!$H$6)*SIN(Base!N159)+COS(Index!$H$6)*COS(Base!N159)*COS(Index!$H$3-Base!H159))) -> 105.35576
A160: HD 130274 | B160: 14 47 57,55833 | C160: -26 38 46,1560 | D160: 14 | E160: 47 | F160: 57.55833 | G160: 221.9898264 | H160: 3.874453376 | I160: - | J160: 26 | K160: 38 | L160: 46.156 | M160: -26.64615444 | N160: -0.4650631281 | O160: 332.8814 | P160: 29.3637 | Q160: 5.76 | R160: 5.768 | S160: -0.008 | T160: =+VLOOKUP(W160,Data!$E$5:$F$32,2) -> -0.07 | U160: 0.062 | V160: B9V | W160: B9 | X160: =+DEGREES(ACOS(SIN(Index!$H$6)*SIN(Base!N160)+COS(Index!$H$6)*COS(Base!N160)*COS(Index!$H$3-Base!H160))) -> 109.5751429
A161: HD 130917 | B161: 14 49 58,39878 | C161: +28 36 56,9950 | D161: 14 | E161: 49 | F161: 58.39878 | G161: 222.4933282 | H161: 3.883241142 | I161: + | J161: 28 | K161: 36 | L161: 56.995 | M161: 28.61583194 | N161: 0.4994404856 | O161: 43.1597 | P161: 63.828 | Q161: 5.85 | R161: 5.8 | S161: 0.05 | T161: =+VLOOKUP(W161,Data!$E$5:$F$32,2) -> 0.12 | U161: -0.07 | V161: A4V | W161: A4 | X161: =+DEGREES(ACOS(SIN(Index!$H$6)*SIN(Base!N161)+COS(Index!$H$6)*COS(Base!N161)*COS(Index!$H$3-Base!H161))) -> 96.94107658
A162: HD 131492 | B162: 14 56 43,98738 | C162: -62 46 51,6579 | D162: 14 | E162: 56 | F162: 43.98738 | G162: 224.1832807 | H162: 3.912736377 | I162: - | J162: 62 | K162: 46 | L162: 51.6579 | M162: -62.78101608 | N162: -1.095735438 | O162: 316.7113 | P162: -3.3107 | Q162: 5.11 | R162: 5.11 | S162: 0 | T162: =+VLOOKUP(W162,Data!$E$5:$F$32,2) -> -0.18 | U162: 0.18 | V162: B4Vnpe | W162: B4 | X162: =+DEGREES(ACOS(SIN(Index!$H$6)*SIN(Base!N162)+COS(Index!$H$6)*COS(Base!N162)*COS(Index!$H$3-Base!H162))) -> 107.4057508
A163: HD 131596 | B163: 15 11 08,81659 | C163: -84 47 16,1255 | D163: 15 | E163: 11 | F163: 8.81659 | G163: 227.7867358 | H163: 3.975628532 | I163: - | J163: 84 | K163: 47 | L163: 16.1255 | M163: -84.78781264 | N163: -1.479826496 | O163: 306.1667 | P163: -22.8183 | Q163: 5.843 | R163: 5.874 | S163: -0.031 | T163: =+VLOOKUP(W163,Data!$E$5:$F$32,2) -> -0.07 | U163: 0.039 | V163: B9,5V | W163: B9,5 | X163: =+DEGREES(ACOS(SIN(Index!$H$6)*SIN(Base!N163)+COS(Index!$H$6)*COS(Base!N163)*COS(Index!$H$3-Base!H163))) -> 103.4752542
A164: HD 131625 | B164: 14 55 44,70874 | C164: -33 51 20,8212 | D164: 14 | E164: 55 | F164: 44.70874 | G164: 223.9362864 | H164: 3.908425513 | I164: - | J164: 33 | K164: 51 | L164: 20.8212 | M164: -33.85578367 | N164: -0.5908948958 | O164: 330.5268 | P164: 22.2703 | Q164: 5.362 | R164: 5.318 | S164: 0.044 | T164: =+VLOOKUP(W164,Data!$E$5:$F$32,2) -> -0.01 | U164: 0.054 | V164: A0V | W164: A0 | X164: =+DEGREES(ACOS(SIN(Index!$H$6)*SIN(Base!N164)+COS(Index!$H$6)*COS(Base!N164)*COS(Index!$H$3-Base!H164))) -> 108.3832172
A165: HD 131657 | B165: 14 56 32,05337 | C165: -47 52 45,1065 | D165: 14 | E165: 56 | F165: 32.05337 | G165: 224.1335557 | H165: 3.911868511 | I165: - | J165: 47 | K165: 52 | L165: 45.1065 | M165: -47.87919625 | N165: -0.8356496178 | O165: 323.6301 | P165: 9.9017 | Q165: 5.6 | R165: 5.64 | S165: -0.04 | T165: =+VLOOKUP(W165,Data!$E$5:$F$32,2) -> -0.07 | U165: 0.03 | V165: B9V | W165: B9 | X165: =+DEGREES(ACOS(SIN(Index!$H$6)*SIN(Base!N165)+COS(Index!$H$6)*COS(Base!N165)*COS(Index!$H$3-Base!H165))) -> 108.4390954
A166: HD 131951 | B166: 14 56 13,22999 | C166: +14 26 46,5513 | D166: 14 | E166: 56 | F166: 13.22999 | G166: 224.055125 | H166: 3.910499636 | I166: + | J166: 14 | K166: 26 | L166: 46.5513 | M166: 14.44626425 | N166: 0.2521348758 | O166: 15.6877 | P166: 58.3188 | Q166: 5.87 | R166: 5.901 | S166: -0.031 | T166: =+VLOOKUP(W166,Data!$E$5:$F$32,2) -> -0.01 | U166: -0.021 | V166: A0V | W166: A0 | X166: =+DEGREES(ACOS(SIN(Index!$H$6)*SIN(Base!N166)+COS(Index!$H$6)*COS(Base!N166)*COS(Index!$H$3-Base!H166))) -> 99.74853324
A167: HD 132219 | B167: 14 58 39,25472 | C167: -27 39 26,3319 | D167: 14 | E167: 58 | F167: 39.25472 | G167: 224.6635613 | H167: 3.921118855 | I167: - | J167: 27 | K167: 39 | L167: 26.3319 | M167: -27.65731442 | N167: -0.4827111988 | O167: 334.6134 | P167: 27.2761 | Q167: 5.917 | R167: 5.673 | S167: 0.244 | T167: =+VLOOKUP(W167,Data!$E$5:$F$32,2) -> 0.12 | U167: 0.124 | V167: A4V+,,, | W167: A4 | X167: =+DEGREES(ACOS(SIN(Index!$H$6)*SIN(Base!N167)+COS(Index!$H$6)*COS(Base!N167)*COS(Index!$H$3-Base!H167))) -> 107.2944155
A168: HD 132742 | B168: 15 00 58,35013 | C168: -08 31 08,2063 | D168: 15 | E168: 0 | F168: 58.35013 | G168: 225.2431255 | H168: 3.931234158 | I168: - | J168: 8 | K168: 31 | L168: 8.2063 | M168: -8.518946194 | N168: -0.1486836599 | O168: 348.8672 | P168: 42.5115 | Q168: 4.94 | R168: 4.95 | S168: -0.01 | T168: =+VLOOKUP(W168,Data!$E$5:$F$32,2) -> -0.07 | U168: 0.06 | V168: B9,5V | W168: B9,5 | X168: =+DEGREES(ACOS(SIN(Index!$H$6)*SIN(Base!N168)+COS(Index!$H$6)*COS(Base!N168)*COS(Index!$H$3-Base!H168))) -> 103.9752955
A169: HD 132955 | B169: 15 02 59,27632 | C169: -32 38 35,8600 | D169: 15 | E169: 2 | F169: 59.27632 | G169: 225.7469847 | H169: 3.940028159 | I169: - | J169: 32 | K169: 38 | L169: 35.86 | M169: -32.64329444 | N169: -0.5697329668 | O169: 332.6045 | P169: 22.5412 | Q169: 5.316 | R169: 5.427 | S169: -0.111 | T169: =+VLOOKUP(W169,Data!$E$5:$F$32,2) -> -0.2 | U169: 0.089 | V169: B3V | W169: B3 | X169: =+DEGREES(ACOS(SIN(Index!$H$6)*SIN(Base!N169)+COS(Index!$H$6)*COS(Base!N169)*COS(Index!$H$3-Base!H169))) -> 106.7920209
A170: HD 133242 | B170: 15 05 07,18 | C170: -47 03 04,0 | D170: 15 | E170: 5 | F170: 7.18 | G170: 226.2799167 | H170: 3.949329577 | I170: - | J170: 4 | K170: 3 | L170: 4 | M170: -4.051111111 | N170: -0.07070522725 | O170: 325.3258 | P170: 9.9251 | Q170: 4.45 | R170: 4.59 | S170: -0.14 | T170: =+VLOOKUP(W170,Data!$E$5:$F$32,2) -> -0.16 | U170: 0.02 | V170: B5V | W170: B5 | X170: =+DEGREES(ACOS(SIN(Index!$H$6)*SIN(Base!N170)+COS(Index!$H$6)*COS(Base!N170)*COS(Index!$H$3-Base!H170))) -> 102.0720556
A171: HD 133388 | B171: 15 01 27,09371 | C171: +60 12 16,0367 | D171: 15 | E171: 1 | F171: 27.09371 | G171: 225.3628905 | H171: 3.93332445 | I171: + | J171: 60 | K171: 12 | L171: 16.0367 | M171: 60.20445464 | N171: 1.050765958 | O171: 98.2588 | P171: 50.2348 | Q171: 6.03 | R171: 5.92 | S171: 0.11 | T171: =+VLOOKUP(W171,Data!$E$5:$F$32,2) -> 0.12 | U171: -0.01 | V171: A4V | W171: A4 | X171: =+DEGREES(ACOS(SIN(Index!$H$6)*SIN(Base!N171)+COS(Index!$H$6)*COS(Base!N171)*COS(Index!$H$3-Base!H171))) -> 85.0895177
A172: HD 133937 | B172: 15 08 39,19745 | C172: -42 52 04,5125 | D172: 15 | E172: 8 | F172: 39.19745 | G172: 227.1633227 | H172: 3.964747921 | I172: - | J172: 42 | K172: 52 | L172: 4.5125 | M172: -42.86792014 | N172: -0.7481863499 | O172: 328.0383 | P172: 13.216 | Q172: 5.715 | R172: 5.82 | S172: -0.105 | T172: =+VLOOKUP(W172,Data!$E$5:$F$32,2) -> -0.13 | U172: 0.025 | V172: B7V | W172: B7 | X172: =+DEGREES(ACOS(SIN(Index!$H$6)*SIN(Base!N172)+COS(Index!$H$6)*COS(Base!N172)*COS(Index!$H$3-Base!H172))) -> 106.2722238
A173: HD 133955 | B173: 15 08 50,61639 | C173: -45 16 47,4950 | D173: 15 | E173: 8 | F173: 50.61639 | G173: 227.2109016 | H173: 3.96557833 | I173: - | J173: 45 | K173: 16 | L173: 47.495 | M173: -45.27985972 | N173: -0.790282637 | O173: 326.8013 | P173: 11.1288 | Q173: 3.89 | R173: 4.044 | S173: -0.154 | T173: =+VLOOKUP(W173,Data!$E$5:$F$32,2) -> -0.2 | U173: 0.046 | V173: B3V | W173: B3 | X173: =+DEGREES(ACOS(SIN(Index!$H$6)*SIN(Base!N173)+COS(Index!$H$6)*COS(Base!N173)*COS(Index!$H$3-Base!H173))) -> 106.3197652
A174: HD 133962 | B174: 15 05 25,83428 | C174: +48 09 03,5027 | D174: 15 | E174: 5 | F174: 25.83428 | G174: 226.3576428 | H174: 3.950686154 | I174: + | J174: 48 | K174: 9 | L174: 3.5027 | M174: 48.15097297 | N174: 0.8403930164 | O174: 80.9542 | P174: 56.5965 | Q174: 5.577 | R174: 5.581 | S174: -0.004 | T174: =+VLOOKUP(W174,Data!$E$5:$F$32,2) -> 0.02 | U174: -0.024 | V174: A1V | W174: A1 | X174: =+DEGREES(ACOS(SIN(Index!$H$6)*SIN(Base!N174)+COS(Index!$H$6)*COS(Base!N174)*COS(Index!$H$3-Base!H174))) -> 88.04400345
A175: HD 134481 | B175: 15 11 56,07286 | C175: -48 44 16,1692 | D175: 15 | E175: 11 | F175: 56.07286 | G175: 227.9836369 | H175: 3.979065105 | I175: - | J175: 48 | K175: 44 | L175: 16.1692 | M175: -48.73782478 | N175: -0.8506355126 | O175: 325.4562 | P175: 7.8922 | Q175: 3.819 | R175: 3.849 | S175: -0.03 | T175: =+VLOOKUP(W175,Data!$E$5:$F$32,2) -> -0.07 | U175: 0.04 | V175: B9,5Vne | W175: B9,5 | X175: =+DEGREES(ACOS(SIN(Index!$H$6)*SIN(Base!N175)+COS(Index!$H$6)*COS(Base!N175)*COS(Index!$H$3-Base!H175))) -> 105.8764734
A176: HD 135160 | B176: 15 16 36,69225 | C176: -60 54 14,3783 | D176: 15 | E176: 16 | F176: 36.69225 | G176: 229.1528844 | H176: 3.999472323 | I176: - | J176: 60 | K176: 54 | L176: 14.3783 | M176: -60.90399397 | N176: -1.062975222 | O176: 319.6816 | P176: -2.8444 | Q176: 5.65 | R176: 5.73 | S176: -0.08 | T176: =+VLOOKUP(W176,Data!$E$5:$F$32,2) -> -0.3 | U176: 0.22 | V176: B0,5Ve | W176: B0,5 | X176: =+DEGREES(ACOS(SIN(Index!$H$6)*SIN(Base!N176)+COS(Index!$H$6)*COS(Base!N176)*COS(Index!$H$3-Base!H176))) -> 105.1885549
A177: HD 135240 | B177: 15 16 56,89610 | C177: -60 57 26,1072 | D177: 15 | E177: 16 | F177: 56.8961 | G177: 229.2370671 | H177: 4.000941588 | I177: - | J177: 60 | K177: 57 | L177: 26.1072 | M177: -60.957252 | N177: -1.06390475 | O177: 319.6882 | P177: -2.9112 | Q177: 4.98 | R177: 5.07 | S177: -0.09 | T177: =+VLOOKUP(W177,Data!$E$5:$F$32,2) -> -0.04 | U177: -0.05 | V177: O8,5V | W177: O8,5 | X177: =+DEGREES(ACOS(SIN(Index!$H$6)*SIN(Base!N177)+COS(Index!$H$6)*COS(Base!N177)*COS(Index!$H$3-Base!H177))) -> 105.1465151
A178: HD 135382 | B178: 15 18 54,58198 | C178: -68 40 46,3654 | D178: 15 | E178: 18 | F178: 54.58198 | G178: 229.7274249 | H178: 4.009499947 | I178: - | J178: 68 | K178: 40 | L178: 46.3654 | M178: -68.67954594 | N178: -1.198684206 | O178: 315.7118 | P178: -9.5496 | Q178: 2.908 | R178: 2.881 | S178: 0.027 | T178: =+VLOOKUP(W178,Data!$E$5:$F$32,2) -> 0.02 | U178: 0.007 | V178: A1V | W178: A1 | X178: =+DEGREES(ACOS(SIN(Index!$H$6)*SIN(Base!N178)+COS(Index!$H$6)*COS(Base!N178)*COS(Index!$H$3-Base!H178))) -> 104.6661388
A179: HD 135502 | B179: 15 14 29,15853 | C179: +29 09 51,4577 | D179: 15 | E179: 14 | F179: 29.15853 | G179: 228.6214939 | H179: 3.990197809 | I179: + | J179: 29 | K179: 9 | L179: 51.4577 | M179: 29.16429381 | N179: 0.5090129509 | O179: 45.1605 | P179: 58.5215 | Q179: 5.339 | R179: 5.281 | S179: 0.058 | T179: =+VLOOKUP(W179,Data!$E$5:$F$32,2) -> 0.05 | U179: 0.008 | V179: A2V | W179: A2 | X179: =+DEGREES(ACOS(SIN(Index!$H$6)*SIN(Base!N179)+COS(Index!$H$6)*COS(Base!N179)*COS(Index!$H$3-Base!H179))) -> 91.64980409
A180: HD 135559 | B180: 15 15 49,07705 | C180: +00 22 19,7028 | D180: 15 | E180: 15 | F180: 49.07705 | G180: 228.9544877 | H180: 3.996009648 | I180: + | J180: 0 | K180: 22 | L180: 19.7028 | M180: 0.3721396667 | N180: 0.006495062461 | O180: 1.315 | P180: 46.2276 | Q180: 5.796 | R180: 5.629 | S180: 0.167 | T180: =+VLOOKUP(W180,Data!$E$5:$F$32,2) -> 0.12 | U180: 0.047 | V180: A4V | W180: A4 | X180: =+DEGREES(ACOS(SIN(Index!$H$6)*SIN(Base!N180)+COS(Index!$H$6)*COS(Base!N180)*COS(Index!$H$3-Base!H180))) -> 98.50678861
A181: HD 135734 | B181: 15 18 32,02296 | C181: -47 52 30,9957 | D181: 15 | E181: 18 | F181: 32.02296 | G181: 229.633429 | H181: 4.007859409 | I181: - | J181: 47 | K181: 52 | L181: 30.9957 | M181: -47.87527658 | N181: -0.8355812067 | O181: 326.857 | P181: 8.046 | Q181: 4.18 | R181: 4.274 | S181: -0.094 | T181: =+VLOOKUP(W181,Data!$E$5:$F$32,2) -> -0.11 | U181: 0.016 | V181: B8Ve | W181: B8 | X181: =+DEGREES(ACOS(SIN(Index!$H$6)*SIN(Base!N181)+COS(Index!$H$6)*COS(Base!N181)*COS(Index!$H$3-Base!H181))) -> 104.7511485
A182: HD 135742 | B182: 15 17 00,41382 | C182: -09 22 58,4919 | D182: 15 | E182: 17 | F182: 0.41382 | G182: 229.2517242 | H182: 4.001197404 | I182: - | J182: 9 | K182: 22 | L182: 58.4919 | M182: -9.382914417 | N182: -0.16376275 | O182: 352.0221 | P182: 39.2343 | Q182: 2.535 | R182: 2.605 | S182: -0.07 | T182: =+VLOOKUP(W182,Data!$E$5:$F$32,2) -> -0.11 | U182: 0.04 | V182: B8V | W182: B8 | X182: =+DEGREES(ACOS(SIN(Index!$H$6)*SIN(Base!N182)+COS(Index!$H$6)*COS(Base!N182)*COS(Index!$H$3-Base!H182))) -> 100.2561333
A183: HD 135876 | B183: 15 18 56,37578 | C183: -40 47 17,5967 | D183: 15 | E183: 18 | F183: 56.37578 | G183: 229.7348991 | H183: 4.009630396 | I183: - | J183: 40 | K183: 47 | L183: 17.5967 | M183: -40.78822131 | N183: -0.7118887578 | O183: 330.8463 | P183: 13.9545 | Q183: 5.49 | R183: 5.587 | S183: -0.097 | T183: =+VLOOKUP(W183,Data!$E$5:$F$32,2) -> -0.13 | U183: 0.033 | V183: B7V | W183: B7 | X183: =+DEGREES(ACOS(SIN(Index!$H$6)*SIN(Base!N183)+COS(Index!$H$6)*COS(Base!N183)*COS(Index!$H$3-Base!H183))) -> 104.2357357
A184: HD 136664 | B184: 15 23 09,35005 | C184: -36 51 30,5521 | D184: 15 | E184: 23 | F184: 9.35005 | G184: 230.7889585 | H184: 4.028027204 | I184: - | J184: 36 | K184: 51 | L184: 30.5521 | M184: -36.85848669 | N184: -0.6433019501 | O184: 333.8367 | P184: 16.7479 | Q184: 4.381 | R184: 4.52 | S184: -0.139 | T184: =+VLOOKUP(W184,Data!$E$5:$F$32,2) -> -0.18 | U184: 0.041 | V184: B4V | W184: B4 | X184: =+DEGREES(ACOS(SIN(Index!$H$6)*SIN(Base!N184)+COS(Index!$H$6)*COS(Base!N184)*COS(Index!$H$3-Base!H184))) -> 103.0528135
A185: HD 136729 | B185: 15 20 05,15121 | C185: +51 57 30,6548 | D185: 15 | E185: 20 | F185: 5.15121 | G185: 230.0214634 | H185: 4.014631886 | I185: + | J185: 51 | K185: 57 | L185: 30.6548 | M185: 51.95851522 | N185: 0.9068471651 | O185: 84.9632 | P185: 52.7673 | Q185: 5.767 | R185: 5.652 | S185: 0.115 | T185: =+VLOOKUP(W185,Data!$E$5:$F$32,2) -> 0.12 | U185: -0.005 | V185: A4V | W185: A4 | X185: =+DEGREES(ACOS(SIN(Index!$H$6)*SIN(Base!N185)+COS(Index!$H$6)*COS(Base!N185)*COS(Index!$H$3-Base!H185))) -> 84.76776524
A186: HD 136849 | B186: 15 21 48,57532 | C186: +32 56 01,3005 | D186: 15 | E186: 21 | F186: 48.57532 | G186: 230.4523972 | H186: 4.0221531 | I186: + | J186: 32 | K186: 56 | L186: 1.3005 | M186: 32.93369458 | N186: 0.5748014053 | O186: 52.3624 | P186: 57.1163 | Q186: 5.324 | R186: 5.375 | S186: -0.051 | T186: =+VLOOKUP(W186,Data!$E$5:$F$32,2) -> -0.07 | U186: 0.019 | V186: B9Vn | W186: B9 | X186: =+DEGREES(ACOS(SIN(Index!$H$6)*SIN(Base!N186)+COS(Index!$H$6)*COS(Base!N186)*COS(Index!$H$3-Base!H186))) -> 89.15856553
A187: HD 13709 | B187: 02 12 54,46962 | C187: -30 43 25,7732 | D187: 2 | E187: 12 | F187: 54.46962 | G187: 33.22695675 | H187: 0.5799197957 | I187: - | J187: 30 | K187: 43 | L187: 25.7732 | M187: -30.72382589 | N187: -0.5362319206 | O187: 229.1845 | P187: -71.8417 | Q187: 5.25 | R187: 5.261 | S187: -0.011 | T187: =+VLOOKUP(W187,Data!$E$5:$F$32,2) -> -0.07 | U187: 0.059 | V187: B9V | W187: B9 | X187: =+DEGREES(ACOS(SIN(Index!$H$6)*SIN(Base!N187)+COS(Index!$H$6)*COS(Base!N187)*COS(Index!$H$3-Base!H187))) -> 76.31339045
A188: HD 137333 | B188: 15 43 16,93158 | C188: -84 27 54,9932 | D188: 15 | E188: 43 | F188: 16.93158 | G188: 235.8205483 | H188: 4.115845011 | I188: - | J188: 84 | K188: 27 | L188: 54.9932 | M188: -84.46527589 | N188: -1.474197168 | O188: 307.0273 | P188: -23.0192 | Q188: 5.686 | R188: 5.575 | S188: 0.111 | T188: =+VLOOKUP(W188,Data!$E$5:$F$32,2) -> 0.05 | U188: 0.061 | V188: A2V | W188: A2 | X188: =+DEGREES(ACOS(SIN(Index!$H$6)*SIN(Base!N188)+COS(Index!$H$6)*COS(Base!N188)*COS(Index!$H$3-Base!H188))) -> 102.7526411
A189: HD 137432 | B189: 15 27 18,12996 | C189: -36 46 03,2081 | D189: 15 | E189: 27 | F189: 18.12996 | G189: 231.8255415 | H189: 4.046118989 | I189: - | J189: 36 | K189: 46 | L189: 3.2081 | M189: -36.76755781 | N189: -0.6417149416 | O189: 334.5984 | P189: 16.3431 | Q189: 5.301 | R189: 5.442 | S189: -0.141 | T189: =+VLOOKUP(W189,Data!$E$5:$F$32,2) -> -0.18 | U189: 0.039 | V189: B4Vp | W189: B4 | X189: =+DEGREES(ACOS(SIN(Index!$H$6)*SIN(Base!N189)+COS(Index!$H$6)*COS(Base!N189)*COS(Index!$H$3-Base!H189))) -> 102.2179719
A190: HD 138485 | B190: 15 32 55,22151 | C190: -16 51 10,2522 | D190: 15 | E190: 32 | F190: 55.22151 | G190: 233.2300896 | H190: 4.070632979 | I190: - | J190: 16 | K190: 51 | L190: 10.2522 | M190: -16.85284783 | N190: -0.294137683 | O190: 349.3238 | P190: 31.1137 | Q190: 5.36 | R190: 5.491 | S190: -0.131 | T190: =+VLOOKUP(W190,Data!$E$5:$F$32,2) -> -0.2 | U190: 0.069 | V190: B3V | W190: B3 | X190: =+DEGREES(ACOS(SIN(Index!$H$6)*SIN(Base!N190)+COS(Index!$H$6)*COS(Base!N190)*COS(Index!$H$3-Base!H190))) -> 97.88008293
A191: HD 138629 | B191: 15 31 46,98182 | C191: +40 53 57,6125 | D191: 15 | E191: 31 | F191: 46.98182 | G191: 232.9457576 | H191: 4.065670448 | I191: + | J191: 40 | K191: 53 | L191: 57.6125 | M191: 40.89933681 | N191: 0.7138280891 | O191: 66.1736 | P191: 54.4117 | Q191: 5.093 | R191: 4.997 | S191: 0.096 | T191: =+VLOOKUP(W191,Data!$E$5:$F$32,2) -> 0.15 | U191: -0.054 | V191: A5V | W191: A5 | X191: =+DEGREES(ACOS(SIN(Index!$H$6)*SIN(Base!N191)+COS(Index!$H$6)*COS(Base!N191)*COS(Index!$H$3-Base!H191))) -> 85.34064941
A192: HD 13869 | B192: 02 15 56,28521 | C192: +33 21 32,0226 | D192: 2 | E192: 15 | F192: 56.28521 | G192: 33.98452171 | H192: 0.5931417985 | I192: + | J192: 33 | K192: 21 | L192: 32.0226 | M192: 33.35889517 | N192: 0.5822225555 | O192: 142.5475 | P192: -26.2739 | Q192: 5.245 | R192: 5.249 | S192: -0.004 | T192: =+VLOOKUP(W192,Data!$E$5:$F$32,2) -> -0.01 | U192: 0.006 | V192: A0V | W192: A0 | X192: =+DEGREES(ACOS(SIN(Index!$H$6)*SIN(Base!N192)+COS(Index!$H$6)*COS(Base!N192)*COS(Index!$H$3-Base!H192))) -> 63.33595905
A193: HD 138749 | B193: 15 32 55,78214 | C193: +31 21 32,8762 | D193: 15 | E193: 32 | F193: 55.78214 | G193: 233.2324256 | H193: 4.070673749 | I193: + | J193: 31 | K193: 21 | L193: 32.8762 | M193: 31.35913228 | N193: 0.5473201088 | O193: 49.685 | P193: 54.7142 | Q193: 4.036 | R193: 4.153 | S193: -0.117 | T193: =+VLOOKUP(W193,Data!$E$5:$F$32,2) -> -0.14 | U193: 0.023 | V193: B6Vnne | W193: B6 | X193: =+DEGREES(ACOS(SIN(Index!$H$6)*SIN(Base!N193)+COS(Index!$H$6)*COS(Base!N193)*COS(Index!$H$3-Base!H193))) -> 87.24893045
A194: HD 138867 | B194: 15 41 54,68382 | C194: -76 04 55,0619 | D194: 15 | E194: 41 | F194: 54.68382 | G194: 235.4778492 | H194: 4.109863785 | I194: - | J194: 76 | K194: 4 | L194: 55.0619 | M194: -76.08196164 | N194: -1.327880732 | O194: 312.715 | P194: -16.5627 | Q194: 5.908 | R194: 5.942 | S194: -0.034 | T194: =+VLOOKUP(W194,Data!$E$5:$F$32,2) -> -0.07 | U194: 0.036 | V194: B9V | W194: B9 | X194: =+DEGREES(ACOS(SIN(Index!$H$6)*SIN(Base!N194)+COS(Index!$H$6)*COS(Base!N194)*COS(Index!$H$3-Base!H194))) -> 102.7972153
A195: HD 139006 | B195: 15 34 41,26800 | C195: +26 42 52,8940 | D195: 15 | E195: 34 | F195: 41.268 | G195: 233.67195 | H195: =+RADIANS(G195) -> 4.078344897 | I195: + | J195: 26 | K195: 42 | L195: 52.894 | M195: =VALUE(CONCATENATE(I195,+J195+K195/60+L195/3600)) -> 26.71469278 | N195: =+RADIANS(M195) -> 0.4662593476 | O195: 41.8697 | P195: 53.7723 | Q195: 2.244 | R195: 2.214 | S195: 0.03 | T195: =+VLOOKUP(W195,Data!$E$5:$F$32,2) -> -0.01 | U195: =+S195-T195 -> 0.04 | V195: A0V | W195: =IF(MID(V195,3,1)<>",",LEFT(V195,2),LEFT(V195,4)) -> A0 | X195: =+DEGREES(ACOS(SIN(Index!$H$6)*SIN(Base!N195)+COS(Index!$H$6)*COS(Base!N195)*COS(Index!$H$3-Base!H195))) -> 87.92837038
A196: HD 139129 | B196: 15 38 49,47043 | C196: -52 22 21,7043 | D196: 15 | E196: 38 | F196: 49.47043 | G196: 234.7061268 | H196: 4.096394687 | I196: - | J196: 52 | K196: 22 | L196: 21.7043 | M196: -52.37269564 | N196: -0.914075977 | O196: 326.9918 | P196: 2.5004 | Q196: 5.429 | R196: 5.426 | S196: 0.003 | T196: =+VLOOKUP(W196,Data!$E$5:$F$32,2) -> -0.01 | U196: 0.013 | V196: A0V | W196: A0 | X196: =+DEGREES(ACOS(SIN(Index!$H$6)*SIN(Base!N196)+COS(Index!$H$6)*COS(Base!N196)*COS(Index!$H$3-Base!H196))) -> 101.8198406
A197: HD 139365 | B197: 15 38 39,36950 | C197: -29 46 39,8956 | D197: 15 | E197: 38 | F197: 39.3695 | G197: 234.6640396 | H197: 4.095660127 | I197: - | J197: 29 | K197: 46 | L197: 39.8956 | M197: -29.77774878 | N197: -0.51971976 | O197: 341.0644 | P197: 20.4482 | Q197: 3.49 | R197: 3.644 | S197: -0.154 | T197: =+VLOOKUP(W197,Data!$E$5:$F$32,2) -> -0.24 | U197: 0.086 | V197: B2,5V | W197: B2,5 | X197: =+DEGREES(ACOS(SIN(Index!$H$6)*SIN(Base!N197)+COS(Index!$H$6)*COS(Base!N197)*COS(Index!$H$3-Base!H197))) -> 98.87456453
A198: HD 139493 | B198: 15 35 57,03842 | C198: +54 37 50,0443 | D198: 15 | E198: 35 | F198: 57.03842 | G198: 233.9876601 | H198: 4.083855077 | I198: + | J198: 54 | K198: 37 | L198: 50.0443 | M198: 54.63056786 | N198: 0.9534832814 | O198: 87.0811 | P198: 49.4527 | Q198: 5.84 | R198: 5.79 | S198: 0.05 | T198: =+VLOOKUP(W198,Data!$E$5:$F$32,2) -> 0.05 | U198: -1.804112415e-16 | V198: A2V | W198: A2 | X198: =+DEGREES(ACOS(SIN(Index!$H$6)*SIN(Base!N198)+COS(Index!$H$6)*COS(Base!N198)*COS(Index!$H$3-Base!H198))) -> 81.88894633
A199: HD 139892 | B199: 15 39 22,67317 | C199: +36 38 08,9396 | D199: 15 | E199: 39 | F199: 22.67317 | G199: 234.8444715 | H199: 4.098809259 | I199: + | J199: 36 | K199: 38 | L199: 8.9396 | M199: 36.63581656 | N199: 0.6394156231 | O199: 58.6978 | P199: 53.4129 | Q199: 4.95 | R199: 5 | S199: -0.05 | T199: =+VLOOKUP(W199,Data!$E$5:$F$32,2) -> -0.13 | U199: 0.08 | V199: B7V | W199: B7 | X199: =+DEGREES(ACOS(SIN(Index!$H$6)*SIN(Base!N199)+COS(Index!$H$6)*COS(Base!N199)*COS(Index!$H$3-Base!H199))) -> 84.8002684
A200: HD 140008 | B200: 15 42 41,02206 | C200: -34 42 37,4617 | D200: 15 | E200: 42 | F200: 41.02206 | G200: 235.6709252 | H200: 4.113233597 | I200: - | J200: 34 | K200: 42 | L200: 37.4617 | M200: -34.71040603 | N200: -0.6058108699 | O200: 338.4816 | P200: 16.0843 | Q200: 4.591 | R200: 4.717 | S200: -0.126 | T200: =+VLOOKUP(W200,Data!$E$5:$F$32,2) -> -0.16 | U200: 0.034 | V200: B5V | W200: B5 | X200: =+DEGREES(ACOS(SIN(Index!$H$6)*SIN(Base!N200)+COS(Index!$H$6)*COS(Base!N200)*COS(Index!$H$3-Base!H200))) -> 98.84035205
... 846 more rows

Sheet Data
A1: 1 | B1: 2 | C1: 3 | D1: 4 | E1: 5 | F1: 6 | G1: 7 | H1: 8 | I1: 9 | J1: 10 | K1: 11 | L1: 12 | M1: 13 | N1: 14
B2: Distance | E2: Indice de couleur | I2: Liste References | L2: Liste | N2: Target
L3: 3
B4: 0 | F4: B-V
B5: 5 | D5: 10 | E5: =+CONCATENATE("A",D5-10) -> A0 | F5: -0.01 | I5: =+IF(Index!A10<>"",Index!A10,"") -> 1 | J5: =+IF(Index!B10<>"",Index!B10,"") -> HD 208565 | K5: 1 | L5: A0V | N5: 21
B6: 10 | D6: 11 | E6: A1 | F6: 0.02 | I6: =+IF(Index!A11<>"",Index!A11,"") -> 2 | J6: =+IF(Index!B11<>"",Index!B11,"") -> HD 209459 | K6: 2 | L6: G5V | N6: 51
B7: 15 | D7: 12 | E7: A2 | F7: 0.05 | I7: =+IF(Index!A12<>"",Index!A12,"") -> 3 | J7: =+IF(Index!B12<>"",Index!B12,"") -> HD 208108 | K7: 3 | L7: M5III | N7: 1.973929735
B8: 20 | D8: 13 | E8: A3 | F8: 0.08 | I8: =+IF(Index!A13<>"",Index!A13,"") -> 4 | J8: =+IF(Index!B13<>"",Index!B13,"") -> HD 203562 | N8: 12
D9: 14 | E9: A4 | F9: 0.12 | I9: =+IF(Index!A14<>"",Index!A14,"") -> 5 | J9: =+IF(Index!B14<>"",Index!B14,"") -> HD 210129 | N9: 37
B10: 4 | D10: 15 | E10: A5 | F10: 0.15 | I10: =+IF(Index!A15<>"",Index!A15,"") -> 6 | J10: =+IF(Index!B15<>"",Index!B15,"") -> HD 207203 | N10: 32.12793934
B11: =+B10*5 -> 20 | D11: 16 | E11: A6 | F11: 0.17 | I11: =+IF(Index!A16<>"",Index!A16,"") -> 7 | J11: =+IF(Index!B16<>"",Index!B16,"") -> HD 214923
D12: 17 | E12: A7 | F12: 0.2 | I12: =+IF(Index!A17<>"",Index!A17,"") -> 8 | J12: =+IF(Index!B17<>"",Index!B17,"") -> HD 208057
D13: 18 | E13: A8 | F13: 0.27 | I13: =+IF(Index!A18<>"",Index!A18,"") -> 9 | J13: =+IF(Index!B18<>"",Index!B18,"") -> HD 199254
D14: 19 | E14: A9 | F14: 0.3 | I14: =+IF(Index!A19<>"",Index!A19,"") -> 10 | J14: =+IF(Index!B19<>"",Index!B19,"") -> HD 212571
D15: 0 | E15: =+CONCATENATE("B",D15) -> B0 | F15: -0.3 | I15: =+IF(Index!A20<>"",Index!A20,"") -> 11 | J15: =+IF(Index!B20<>"",Index!B20,"") -> HD 204414
D16: 0.5 | E16: B0.5 | F16: -0.28 | I16: =+IF(Index!A21<>"",Index!A21,"") -> 12 | J16: =+IF(Index!B21<>"",Index!B21,"") -> HD 212061
D17: 1 | E17: B1 | F17: -0.26 | I17: =+IF(Index!A22<>"",Index!A22,"") -> 13 | J17: =+IF(Index!B22<>"",Index!B22,"") -> HD 216735
D18: 1.5 | E18: B1.5 | F18: -0.25 | I18: =+IF(Index!A23<>"",Index!A23,"") -> 14 | J18: =+IF(Index!B23<>"",Index!B23,"") -> HD 209833
D19: 2 | E19: B2 | F19: -0.24 | I19: =+IF(Index!A24<>"",Index!A24,"") -> 15 | J19: =+IF(Index!B24<>"",Index!B24,"") -> HD 217232
D20: 2.5 | E20: B2.5 | F20: -0.22 | I20: =+IF(Index!A25<>"",Index!A25,"") -> 16 | J20: =+IF(Index!B25<>"",Index!B25,"") -> HD 198069
D21: 3 | E21: B3 | F21: -0.2 | I21: =+IF(Index!A26<>"",Index!A26,"") -> 17 | J21: =+IF(Index!B26<>"",Index!B26,"") -> HD 207650
D22: 3.5 | E22: B3.5 | F22: -0.19 | I22: =+IF(Index!A27<>"",Index!A27,"") -> 18 | J22: =+IF(Index!B27<>"",Index!B27,"") -> HD 196775
D23: 4 | E23: B4 | F23: -0.18 | I23: =+IF(Index!A28<>"",Index!A28,"") -> 19 | J23: =+IF(Index!B28<>"",Index!B28,"") -> HD 196544
D24: 4.5 | E24: B4.5 | F24: -0.17 | I24: =+IF(Index!A29<>"",Index!A29,"") -> 20 | J24: =+IF(Index!B29<>"",Index!B29,"") -> HD 196180
D25: 5 | E25: B5 | F25: -0.16 | I25: =+IF(Index!A30<>"",Index!A30,"") -> 21 | J25: =+IF(Index!B30<>"",Index!B30,"") -> HD 202753
D26: 6 | E26: B6 | F26: -0.14 | I26: =+IF(Index!A31<>"",Index!A31,"") -> 22 | J26: =+IF(Index!B31<>"",Index!B31,"") -> HD 196724
D27: 7 | E27: B7 | F27: -0.13 | I27: =+IF(Index!A32<>"",Index!A32,"") -> 23 | J27: =+IF(Index!B32<>"",Index!B32,"") -> HD 212404
D28: 7.5 | E28: B7.5 | F28: -0.12 | I28: =+IF(Index!A33<>"",Index!A33,"") ->  | J28: =+IF(Index!B33<>"",Index!B33,"") -> 
D29: 8 | E29: B8 | F29: -0.11 | I29: =+IF(Index!A34<>"",Index!A34,"") ->  | J29: =+IF(Index!B34<>"",Index!B34,"") -> 
D30: 8.5 | E30: B8.5 | F30: -0.09 | I30: =+IF(Index!A35<>"",Index!A35,"") ->  | J30: =+IF(Index!B35<>"",Index!B35,"") -> 
D31: 9 | E31: B9 | F31: -0.07 | I31: =+IF(Index!A36<>"",Index!A36,"") ->  | J31: =+IF(Index!B36<>"",Index!B36,"") -> 
D32: 9.5 | E32: B9.5 | F32: -0.04 | I32: =+IF(Index!A37<>"",Index!A37,"") ->  | J32: =+IF(Index!B37<>"",Index!B37,"") -> 
I33: =+IF(Index!A38<>"",Index!A38,"") ->  | J33: =+IF(Index!B38<>"",Index!B38,"") -> 
I34: =+IF(Index!A39<>"",Index!A39,"") ->  | J34: =+IF(Index!B39<>"",Index!B39,"") -> 
I35: =+IF(Index!A40<>"",Index!A40,"") ->  | J35: =+IF(Index!B40<>"",Index!B40,"") -> 
I36: =+IF(Index!A41<>"",Index!A41,"") ->  | J36: =+IF(Index!B41<>"",Index!B41,"") -> 
I37: =+IF(Index!A42<>"",Index!A42,"") ->  | J37: =+IF(Index!B42<>"",Index!B42,"") -> 
I38: =+IF(Index!A43<>"",Index!A43,"") ->  | J38: =+IF(Index!B43<>"",Index!B43,"") -> 
I39: =+IF(Index!A44<>"",Index!A44,"") ->  | J39: =+IF(Index!B44<>"",Index!B44,"") -> 
I40: =+IF(Index!A45<>"",Index!A45,"") ->  | J40: =+IF(Index!B45<>"",Index!B45,"") -> 
I41: =+IF(Index!A46<>"",Index!A46,"") ->  | J41: =+IF(Index!B46<>"",Index!B46,"") -> 
I42: =+IF(Index!A47<>"",Index!A47,"") ->  | J42: =+IF(Index!B47<>"",Index!B47,"") -> 
I43: =+IF(Index!A48<>"",Index!A48,"") ->  | J43: =+IF(Index!B48<>"",Index!B48,"") -> 
I44: =+IF(Index!A49<>"",Index!A49,"") ->  | J44: =+IF(Index!B49<>"",Index!B49,"") -> 
I45: =+IF(Index!A50<>"",Index!A50,"") ->  | J45: =+IF(Index!B50<>"",Index!B50,"") -> 
I46: =+IF(Index!A51<>"",Index!A51,"") ->  | J46: =+IF(Index!B51<>"",Index!B51,"") -> 
I47: =+IF(Index!A52<>"",Index!A52,"") ->  | J47: =+IF(Index!B52<>"",Index!B52,"") -> 
I48: =+IF(Index!A53<>"",Index!A53,"") ->  | J48: =+IF(Index!B53<>"",Index!B53,"") -> 
I49: =+IF(Index!A54<>"",Index!A54,"") ->  | J49: =+IF(Index!B54<>"",Index!B54,"") -> 

Sheet Map
O2: =+DEGREES(Index!H3)*15 -> 4916.373371 | P2: =+DEGREES(Index!H6) -> 12.62559109
A3: Simbad
A4: Miles
P5: =+Index!G3*15+Index!G4/60 -> 315.8505483
P6: =+Index!G6+Index!G7/60 -> 12.62559109

Sheet Atmo
B1: l [A] | C1: l [mm] | D1: 1.1 Rayleigh | E1: 1.2 | F1: 2.1 Ozone | G1: 2.2 Ozone | H1: 3. Aérosols | I1: Total | K1: Transmission | L1: Trans_Ref | M1: =+L202 -> 0.7502297072 | N1: Trans_Target | O1: =+N202 -> 0.7443501988 | R1: M5III | S1: =+R202 -> 0.830919981
A2: 3500 | B2: =+A2/10000 -> 0.35 | C2: =+(1/B2)^2 -> 8.163265306 | D2: =0.23465+1.076*100/(146-C2)+0.93161/(41-C2) -> 1.043654668 | E2: =9.4977*0.001*C2^2*D2*EXP(-h_/7.996/1000) -> 0.659720456 | F2: =+EXP(-0.0168*EXP(-15*ABS(B2-0.59))) -> 0.9995410668 | G2: =-2.5*LOG(F2) -> 0.0004983947591 | H2: =2.5*LOG(EXP(AOD_*(B2/0.55)^(-1.3))) -> 0.1563138089 | I2: =+E2+G2+H2 -> 0.8165326596 | K2: =10^(-0.4*I2) -> 0.4713971322 | L2: =10^(-0.4*I2*MAr) -> 0.3128354355 | M2: =+L2/M$1 -> 0.416986201 | N2: =10^(-0.4*I2*MAc) -> 0.3030390757 | O2: =+N2/O$1 -> 0.4071189557 | P2: =(O2/M2-1)*100 -> -2.366324177 | Q2: =+O2/M2 -> 0.9763367582 | R2: 0.03429200128 | S2: =+R2/S$1 -> 0.04126992016 | T2: =+S2*Q2 -> 0.04029334006
A3: 3510 | B3: =+A3/10000 -> 0.351 | C3: =+(1/B3)^2 -> 8.116817234 | D3: =0.23465+1.076*100/(146-C3)+0.93161/(41-C3) -> 1.043351625 | E3: 0.6520449548 | F3: =+EXP(-0.0168*EXP(-15*ABS(B3-0.59))) -> 0.9995341325 | G3: =-2.5*LOG(F3) -> 0.0005059270313 | H3: 0.1557351164 | I3: =+E3+G3+H3 -> 0.8082859982 | K3: =10^(-0.4*I3) -> 0.4749912405 | L3: 0.3165286699 | M3: 0.4219090058 | N3: 0.3067151966 | O3: 0.4120576539 | P3: =(O3/M3-1)*100 -> -2.334947052 | Q3: =+O3/M3 -> 0.9766505295 | R3: 0.08846899867 | S3: =+R3/S$1 -> 0.1064711413 | T3: =+S3*Q3 -> 0.1039850965
A4: 3520 | B4: 0.352 | C4: 8.070764463 | D4: 1.043051448 | E4: 0.6444813944 | F4: 0.9995270935 | G4: 0.0005135731392 | H4: 0.1551602036 | I4: 0.8001551711 | K4: 0.4785616924 | L4: 0.3202127127 | M4: 0.426819559 | N4: 0.3103833388 | O4: 0.416985633 | P4: -2.304000784 | Q4: 0.9769599922 | R4: 0.08171200007 | S4: 0.09833919263 | T4: 0.09607345686
A5: 3530 | B5: 0.353 | C5: 8.025102521 | D5: 1.042754099 | E5: 0.6370278096 | F5: 0.9995199482 | G5: 0.0005213348033 | H5: 0.154589035 | I5: 0.7921381794 | K5: 0.482108433 | L5: 0.3238871569 | M5: 0.4317173178 | N5: 0.3140430749 | O5: 0.4219023188 | P5: -2.273478178 | Q5: 0.9772652182 | R5: 0.1006150022 | S5: 0.1210886782 | T5: 0.1183357536
A6: 3540 | B6: 0.354 | C6: 7.979826997 | D6: 1.042459542 | E6: 0.6296822753 | F6: 0.9995126949 | G6: 0.0005292137698 | H6: 0.1540215759 | I6: 0.784233065 | K6: 0.4856314161 | L6: 0.3275516078 | M6: 0.4366017563 | N6: 0.3176939899 | O6: 0.426807154 | P6: -2.243372178 | Q6: 0.9775662782 | R6: 0.1023769975 | S6: 0.1232092137 | T6: 0.1204451724
A7: 3550 | B7: 0.355 | C7: 7.934933545 | D7: 1.042167741 | E7: 0.622442906 | F7: 0.999505332 | G7: 0.0005372118117 | H7: 0.1534577917 | I7: 0.7764379096 | K7: 0.4891306034 | L7: 0.331205683 | M7: 0.4414723648 | N7: 0.3213356813 | O7: 0.4316995976 | P7: -2.213675866 | Q7: 0.9778632413 | R7: 0.1015049964 | S7: 0.1221597732 | T7: 0.1194555518
A8: 3560 | B8: 0.356 | C8: 7.890417877 | D8: 1.041878661 | E8: 0.6153078548 | F8: 0.999497858 | G8: 0.0005453307286 | H8: 0.1528976484 | I8: 0.768750834 | K8: 0.492605965 | L8: 0.3348490123 | M8: 0.4463286499 | N8: 0.3249677586 | O8: 0.4365791252 | P8: -2.18438246 | Q8: 0.9781561754 | R8: 0.08565499634 | S8: 0.1030845308 | T8: 0.1008327703
A9: 3570 | B9: 0.357 | C9: 7.846275765 | D9: 1.041592267 | E9: 0.6082753124 | F9: 0.999490271 | G9: 0.0005535723471 | H9: 0.1523411124 | I9: 0.7611699971 | K9: 0.4960574783 | L9: 0.3384812377 | M9: 0.4511701342 | N9: 0.3285898434 | O9: 0.4414452283 | P9: -2.155485306 | Q9: 0.9784451469 | R9: 0.06524000317 | S9: 0.07851538615 | T9: 0.07682299854
A10: 3580 | B10: 0.358 | C10: 7.802503043 | D10: 1.041308525 | E10: 0.601343506 | F10: 0.9994825694 | G10: 0.0005619385218 | H10: 0.1517881503 | I10: 0.7536935948 | K10: 0.4994851283 | L10: 0.3421020127 | M10: 0.4559963561 | N10: 0.3322015692 | O10: 0.4462974144 | P10: -2.126977883 | Q10: 0.9787302212 | R10: 0.07207100093 | S10: 0.08673639169 | T10: 0.08489152782
A11: 3590 | B11: 0.359 | C11: 7.7590956 | D11: 1.041027402 | E11: 0.5945106989 | F11: 0.9994747515 | G11: 0.0005704311349 | H11: 0.1512387294 | I11: 0.7463198595 | K11: 0.5028889074 | L11: 0.3457110026 | M11: 0.4608068693 | N11: 0.3358025809 | O11: 0.4511352068 | P11: -2.098853792 | Q11: 0.9790114621 | R11: 0.09296999872 | S11: 0.1118880287 | T11: 0.1095396626
A12: 3600 | B12: 0.36 | C12: 7.716049383 | D12: 1.040748864 | E12: 0.5877751896 | F12: 0.9994668155 | G12: 0.0005790520975 | H12: 0.1506928173 | I12: 0.739047059 | K12: 0.5062688147 | L12: 0.3493078841 | M12: 0.4656012428 | N12: 0.3393925352 | O12: 0.455958144 | P12: -2.071106758 | Q12: 0.9792889324 | R12: 0.09010399878 | S12: 0.1084388399 | T12: 0.1061929557
A13: 3610 | B13: 0.361 | C13: 7.673360395 | D13: 1.040472879 | E13: 0.5811353105 | F13: 0.9994587596 | G13: 0.0005878033493 | H13: 0.1501503818 | I13: 0.7318734956 | K13: 0.509624856 | L13: 0.352892345 | M13: 0.4703790608 | N13: 0.3429710998 | O13: 0.4607657798 | P13: -2.043730629 | Q13: 0.9795626937 | R13: 0.09766200185 | S13: 0.1175347856 | T13: 0.1151326912
A14: 3620 | B14: 0.362 | C14: 7.631024694 | D14: 1.040199414 | E14: 0.5745894276 | F14: 0.9994505821 | G14: 0.0005966868593 | H14: 0.1496113913 | I14: 0.7247975057 | K14: 0.5129570437 | L14: 0.3564640844 | M14: 0.4751399218 | N14: 0.3465379539 | O14: 0.465557683 | P14: -2.016719367 | Q14: 0.9798328063 | R14: 0.1157530025 | S14: 0.1393070393 | T14: 0.1364976073
A15: 3630 | B15: 0.363 | C15: 7.589038393 | D15: 1.03992844 | E15: 0.5681359396 | F15: 0.999442281 | G15: 0.0006057046264 | H15: 0.1490758145 | I15: 0.7178174587 | K15: 0.5162653962 | L15: 0.360022812 | M15: 0.4798834391 | N15: 0.3500927873 | O15: 0.4703334369 | P15: -1.990067051 | Q15: 0.9800993295 | R15: 0.1145619974 | S15: 0.1378736822 | T15: 0.1351299034
A16: 3640 | B16: 0.364 | C16: 7.547397657 | D16: 1.039659924 | E16: 0.5617732772 | F16: 0.9994338545 | G16: 0.0006148586795 | H16: 0.1485436204 | I16: 0.7109317563 | K16: 0.5195499382 | L16: 0.3635682483 | M16: 0.4846092401 | N16: 0.3536353007 | O16: 0.4750926396 | P16: -1.963767873 | Q16: 0.9803623213 | R16: 0.1151830032 | S16: 0.1386210536 | T16: 0.1358988579
A17: 3650 | B17: 0.365 | C17: 7.506098705 | D17: 1.039393836 | E17: 0.5554999022 | F17: 0.9994253008 | G17: 0.0006241510785 | H17: 0.1480147785 | I17: 0.7041388318 | K17: 0.5228106999 | L17: 0.3671001242 | M17: 0.4893169662 | N17: 0.3571652055 | O17: 0.479834903 | P17: -1.937816136 | Q17: 0.9806218386 | R17: 0.131110996 | S17: 0.1577901591 | T17: 0.1547324759
A18: 3660 | B18: 0.366 | C18: 7.465137806 | D18: 1.039130146 | E18: 0.5493143069 | F18: 0.9994166179 | G18: 0.0006335839141 | H18: 0.1474892585 | I18: 0.6974371493 | K18: 0.5260477172 | L18: 0.3706181809 | M18: 0.4940062722 | N18: 0.3606822232 | O18: 0.4845598534 | P18: -1.912206248 | Q18: 0.9808779375 | R18: 0.1408479959 | S18: 0.1695084955 | T18: 0.1662671435
A19: 3670 | B19: 0.367 | C19: 7.424511282 | D19: 1.038868824 | E19: 0.5432150133 | F19: 0.9994078038 | G19: 0.0006431593087 | H19: 0.1469670307 | I19: 0.6908252033 | K19: 0.5292610313 | L19: 0.3741221697 | M19: 0.4986768267 | N19: 0.3641860858 | O19: 0.4892671304 | P19: -1.886932725 | Q19: 0.9811306727 | R19: 0.1455619931 | S19: 0.175181722 | T19: 0.1718761608
A20: 3680 | B20: 0.368 | C20: 7.384215501 | D20: 1.038609842 | E20: 0.5372005727 | F20: 0.9993988566 | G20: 0.0006528794169 | H20: 0.1464480654 | I20: 0.6843015176 | K20: 0.5324506885 | L20: 0.3776118515 | M20: 0.5033283112 | N20: 0.3676765352 | O20: 0.4939563874 | P20: -1.861990187 | Q20: 0.9813800981 | R20: 0.129738003 | S20: 0.1561377822 | T20: 0.153230512
A21: 3690 | B21: 0.369 | C21: 7.344246884 | D21: 1.038353171 | E21: 0.5312695649 | F21: 0.9993897742 | G21: 0.0006627464257 | H21: 0.1459323336 | I21: 0.6778646449 | K21: 0.5356167402 | L21: 0.3810869973 | M21: 0.5079604202 | N21: 0.3711533231 | O21: 0.4986272908 | P21: -1.837373353 | Q21: 0.9816262665 | R21: 0.140711993 | S21: 0.169344818 | T21: 0.1662333215
A22: 3700 | B22: 0.37 | C22: 7.304601899 | D22: 1.038098783 | E22: 0.5254205972 | F22: 0.9993805547 | G22: 0.0006727625553 | H22: 0.1454198064 | I22: 0.6715131661 | K22: 0.5387592424 | L22: 0.3845473873 | M22: 0.5125728608 | N22: 0.3746162108 | O22: 0.50327952 | P22: -1.813077043 | Q22: 0.9818692296 | R22: 0.1361439973 | S22: 0.1638473023 | T22: 0.1608766245
A23: 3710 | B23: 0.371 | C23: 7.265277061 | D23: 1.03784665 | E23: 0.5196523043 | F23: 0.999371196 | G23: 0.0006829300592 | H23: 0.1449104552 | I23: 0.6652456896 | K23: 0.5418782557 | L23: 0.387992811 | M23: 0.5171653525 | N23: 0.3780649691 | O23: 0.507912767 | P23: -1.789096172 | Q23: 0.9821090383 | R23: 0.1384409964 | S23: 0.166611707 | T23: 0.1636308633
A24: 3720 | B24: 0.372 | C24: 7.226268933 | D24: 1.037596745 | E24: 0.5139633477 | F24: 0.9993616958 | G24: 0.0006932512253 | H24: 0.1444042521 | I24: 0.659060851 | K24: 0.544973845 | L24: 0.3914230671 | M24: 0.5217376269 | N24: 0.3814993782 | O24: 0.5125267365 | P24: -1.765425751 | Q24: 0.9823457425 | R24: 0.1076550037 | S24: 0.1295612166 | T24: 0.1272739096
A25: 3730 | B25: 0.373 | C25: 7.187574122 | D25: 1.037349041 | E25: 0.5083524145 | F25: 0.9993520522 | G25: 0.0007037283759 | H25: 0.143901169 | I25: 0.6529573118 | K25: 0.5480460794 | L25: 0.394837963 | M25: 0.5262894274 | N25: 0.3849192272 | O25: 0.5171211451 | P25: -1.742060884 | Q25: 0.9825793912 | R25: 0.09539300203 | S25: 0.1148040777 | T25: 0.1128041207
A26: 3740 | B26: 0.374 | C26: 7.149189282 | D26: 1.037103512 | E26: 0.5028182174 | F26: 0.999342263 | G26: 0.0007143638683 | H26: 0.1434011785 | I26: 0.6469337598 | K26: 0.5510950322 | L26: 0.398237315 | M26: 0.530820509 | N26: 0.3883243141 | O26: 0.5216957216 | P26: -1.718996766 | Q26: 0.9828100323 | R26: 0.1032959968 | S26: 0.1243152158 | T26: 0.1221782413
A27: 3750 | B27: 0.375 | C27: 7.111111111 | D27: 1.036860131 | E27: 0.497359494 | F27: 0.9993323259 | G27: 0.0007251600956 | H27: 0.1429042534 | I27: 0.6409889075 | K27: 0.5541207802 | L27: 0.4016209479 | M27: 0.5353306381 | N27: 0.3917144457 | O27: 0.5262502063 | P27: -1.69622868 | Q27: 0.9830377132 | R27: 0.1292680055 | S27: 0.1555721471 | T27: 0.1529332877
A28: 3760 | B28: 0.376 | C28: 7.073336351 | D28: 1.036618873 | E28: 0.4919750061 | F28: 0.9993222387 | G28: 0.000736119487 | H28: 0.1424103668 | I28: 0.6351214923 | K28: 0.5571234041 | L28: 0.4049886946 | M28: 0.5398195922 | N28: 0.3950894372 | O28: 0.530784351 | P28: -1.673751998 | Q28: 0.98326248 | R28: 0.1362529993 | S28: 0.1639784846 | T28: 0.1612338914
A29: 3770 | B29: 0.377 | C29: 7.035861788 | D29: 1.036379713 | E29: 0.4866635393 | F29: 0.9993119992 | G29: 0.0007472445084 | H29: 0.141919492 | I29: 0.6293302759 | K29: 0.5601029882 | L29: 0.4083403964 | M29: 0.5442871596 | N29: 0.3984491123 | O29: 0.5352979188 | P29: -1.651562175 | Q29: 0.9834843782 | R29: 0.1774470061 | S29: 0.2135548671 | T29: 0.2100278757
A30: 3780 | B30: 0.378 | C30: 6.998684247 | D30: 1.036142626 | E30: 0.4814239025 | F30: 0.999301605 | G30: 0.0007585376629 | H30: 0.1414316029 | I30: 0.6236140431 | K30: 0.5630596198 | L30: 0.4116759023 | M30: 0.5487331391 | N30: 0.4017933026 | O30: 0.5397906834 | P30: -1.629654752 | Q30: 0.9837034525 | R30: 0.1618970037 | S30: 0.1948406674 | T30: 0.1916654372
A31: 3790 | B31: 0.379 | C31: 6.9618006 | D31: 1.035907587 | E31: 0.4762549272 | F31: 0.9992910538 | G31: 0.0007700014916 | H31: 0.1409466735 | I31: 0.6179716022 | K31: 0.5659933898 | L31: 0.4149950692 | M31: 0.55315734 | N31: 0.4051218478 | O31: 0.5442624298 | P31: -1.608025349 | Q31: 0.9839197465 | R31: 0.1362670064 | S31: 0.1639953419 | T31: 0.1613582553
A32: 3800 | B32: 0.38 | C32: 6.925207756 | D32: 1.035674572 | E32: 0.4711554673 | F32: 0.9992803433 | G32: 0.0007816385739 | H32: 0.1404646779 | I32: 0.6124017838 | K32: 0.5689043919 | L32: 0.4182977616 | M32: 0.5575595816 | N32: 0.4084345955 | O32: 0.5487129528 | P32: -1.586669669 | Q32: 0.9841333033 | R32: 0.1575600058 | S32: 0.1896211541 | T32: 0.1866124928
A33: 3810 | B33: 0.381 | C33: 6.888902667 | D33: 1.035443558 | E33: 0.4661243983 | F33: 0.9992694711 | G33: 0.0007934515282 | H33: 0.1399855909 | I33: 0.6069034407 | K33: 0.5717927227 | L33: 0.4215838513 | M33: 0.5619396929 | N33: 0.4117314008 | O33: 0.5531420579 | P33: -1.565583492 | Q33: 0.9843441651 | R33: 0.1313699931 | S33: 0.1581018583 | T33: 0.1556266417
A34: 3820 | B34: 0.382 | C34: 6.852882322 | D34: 1.035214521 | E34: 0.461160617 | F34: 0.9992584347 | G34: 0.0008054430124 | H34: 0.1395093873 | I34: 0.6014754473 | K34: 0.5746584817 | L34: 0.4248532173 | M34: 0.5662975129 | N34: 0.4150121261 | O34: 0.5575495603 | P34: -1.544762675 | Q34: 0.9845523733 | R34: 0.1083889976 | S34: 0.1304445676 | T34: 0.1284295086
A35: 3830 | B35: 0.383 | C35: 6.817143753 | D35: 1.034987438 | E35: 0.4562630411 | F35: 0.9992472316 | G35: 0.0008176157247 | H35: 0.1390360424 | I35: 0.5961166991 | K35: 0.5775017709 | L35: 0.4281057458 | M35: 0.5706328897 | N35: 0.4182766413 | O35: 0.5619352852 | P35: -1.52420315 | Q35: 0.9847579685 | R35: 0.1252239943 | S35: 0.1507052389 | T35: 0.1484081849
A36: 3840 | B36: 0.384 | C36: 6.781684028 | D36: 1.034762287 | E36: 0.4514306085 | F36: 0.9992358593 | G36: 0.000829972404 | H36: 0.1385655314 | I36: 0.5908261123 | K36: 0.580322695 | L36: 0.4313413296 | M36: 0.5749456805 | N36: 0.4215248232 | O36: 0.5662990671 | P36: -1.503900923 | Q36: 0.9849609908 | R36: 0.137044996 | S36: 0.164931641 | T36: 0.1624512325
A37: 3850 | B37: 0.385 | C37: 6.746500253 | D37: 1.034539044 | E37: 0.4466622773 | F37: 0.9992243152 | G37: 0.0008425158305 | H37: 0.1380978302 | I37: 0.5856026233 | K37: 0.5831213607 | L37: 0.4345598683 | M37: 0.5792357516 | N37: 0.4247565557 | O37: 0.5706407499 | P37: -1.483852072 | Q37: 0.9851614793 | R37: 0.1289789975 | S37: 0.1552243302 | T37: 0.1529210307
A38: 3860 | B38: 0.386 | C38: 6.711589573 | D38: 1.034317689 | E38: 0.4419570249 | F38: 0.9992125969 | G38: 0.0008552488267 | H38: 0.1376329147 | I38: 0.5804451884 | K38: 0.5858978774 | L38: 0.4377612682 | M38: 0.5835029778 | N38: 0.4279717291 | O38: 0.5749601865 | P38: -1.464052747 | Q38: 0.9853594725 | R38: 0.1383749992 | S38: 0.1665322803 | T38: 0.1640941599
A39: 3870 | B39: 0.387 | C39: 6.676949168 | D39: 1.034098199 | E39: 0.4373138477 | F39: 0.9992007016 | G39: 0.0008681742575 | H39: 0.1371707612 | I39: 0.5753527832 | K39: 0.5886523562 | L39: 0.4409454417 | M39: 0.5877472425 | N39: 0.4311702407 | O39: 0.5792572385 | P39: -1.444499166 | Q39: 0.9855550083 | R39: 0.1429090053 | S39: 0.1719888901 | T39: 0.169504512
A40: 3880 | B40: 0.388 | C40: 6.642576257 | D40: 1.033880553 | E40: 0.4327317609 | F40: 0.9991886266 | G40: 0.0008812950312 | H40: 0.1367113463 | I40: 0.5703244022 | K40: 0.5913849106 | L40: 0.4441123074 | M40: 0.5919684373 | N40: 0.4343519938 | O40: 0.5835317765 | P40: -1.425187615 | Q40: 0.9857481238 | R40: 0.1491249949 | S40: 0.1794697423 | T40: 0.1769119618
A41: 3890 | B41: 0.389 | C41: 6.608468091 | D41: 1.03366473 | E41: 0.428209798 | F41: 0.9991763693 | G41: 0.0008946140999 | H41: 0.1362546466 | I41: 0.5653590587 | K41: 0.5940956555 | L41: 0.44726179 | M41: 0.5961664618 | N41: 0.4375168983 | O41: 0.587783679 | P41: -1.406114447 | Q41: 0.9859388555 | R41: 0.1703059971 | S41: 0.2049607676 | T41: 0.2020787847
A42: 3900 | B42: 0.39 | C42: 6.574621959 | D42: 1.033450709 | E42: 0.4237470104 | F42: 0.999163927 | G42: 0.0009081344606 | H42: 0.1358006392 | I42: 0.5604557841 | K42: 0.5967847082 | L42: 0.4503938201 | M42: 0.6003412233 | N42: 0.44066487 | O42: 0.5920128331 | P42: -1.38727608 | Q42: 0.9861272392 | R42: 0.1719249934 | S42: 0.2069092059 | T42: 0.2040388039
A43: 3910 | B43: 0.391 | C43: 6.541035184 | D43: 1.033238469 | E43: 0.4193424668 | F43: 0.9991512967 | G43: 0.0009218591554 | H43: 0.1353493015 | I43: 0.5556136274 | K43: 0.5994521871 | L43: 0.4535083339 | M43: 0.6044926369 | N43: 0.4437958306 | O43: 0.5962191335 | P43: -1.368668996 | Q43: 0.98631331 | R43: 0.1722590029 | S43: 0.2073111814 | T43: 0.2044737776
A44: 3920 | B44: 0.392 | C44: 6.507705123 | D44: 1.033027991 | E44: 0.4149952532 | F44: 0.9991384757 | G44: 0.0009357912724 | H44: 0.1349006108 | I44: 0.5508316553 | K44: 0.6020982125 | L44: 0.4566052732 | M44: 0.6086206249 | N44: 0.4469097076 | O44: 0.600402483 | P44: -1.350289739 | Q44: 0.9864971026 | R44: 0.1150079966 | S44: 0.1384104356 | T44: 0.1365414937
A45: 3930 | B45: 0.393 | C45: 6.474629166 | D45: 1.032819255 | E45: 0.4107044725 | F45: 0.9991254611 | G45: 0.0009499339463 | H45: 0.1344545451 | I45: 0.5461089515 | K45: 0.6047229061 | L45: 0.459684585 | M45: 0.6127251169 | N45: 0.4500064342 | O45: 0.6045627917 | P45: -1.332134915 | Q45: 0.9866786509 | R45: 0.08377899975 | S45: 0.1008267964 | T45: 0.09948364744
A46: 3940 | B46: 0.394 | C46: 6.441804736 | D46: 1.03261224 | E46: 0.4064692436 | F46: 0.99911225 | G46: 0.0009642903595 | H46: 0.1340110824 | I46: 0.5414446164 | K46: 0.6073263909 | L46: 0.4627462219 | M46: 0.6168060495 | N46: 0.4530859489 | O46: 0.608699977 | P46: -1.314201189 | Q46: 0.9868579881 | R46: 0.1375530064 | S46: 0.1655430241 | T46: 0.1633674557
A47: 3950 | B47: 0.395 | C47: 6.40922929 | D47: 1.032406929 | E47: 0.402288702 | F47: 0.9990988395 | G47: 0.000978863742 | H47: 0.1335702008 | I47: 0.5368377666 | K47: 0.6099087913 | L47: 0.4657901412 | M47: 0.6208633659 | N47: 0.4561481957 | O47: 0.6128139637 | P47: -1.296485288 | Q47: 0.9870351471 | R47: 0.1686560065 | S47: 0.2029750281 | T47: 0.2003434867
A48: 3960 | B48: 0.396 | C48: 6.376900316 | D48: 1.0322033 | E48: 0.3981619985 | F48: 0.9990852264 | G48: 0.000993657373 | H48: 0.133131879 | I48: 0.5322875349 | K48: 0.6124702328 | L48: 0.4688163054 | M48: 0.624897016 | N48: 0.4591931236 | O48: 0.6169046832 | P48: -1.278983992 | Q48: 0.9872101601 | R48: 0.1028290018 | S48: 0.1237531943 | T48: 0.1221704107
A49: 3970 | B49: 0.397 | C49: 6.344815334 | D49: 1.032001337 | E49: 0.3940882996 | F49: 0.9990714078 | G49: 0.001008674581 | H49: 0.1326960956 | I49: 0.5277930698 | K49: 0.6150108421 | L49: 0.4718246816 | M49: 0.6289069562 | N49: 0.4622206867 | O49: 0.620972074 | P49: -1.261694142 | Q49: 0.9873830586 | R49: 0.1620180011 | S49: 0.194986286 | T49: 0.1925261555
A50: 3980 | B50: 0.398 | C50: 6.312971895 | D50: 1.031801021 | E50: 0.3900667867 | F50: 0.9990573805 | G50: 0.001023918745 | H50: 0.1322628296 | I50: 0.523353535 | K50: 0.6175307468 | L50: 0.4748152418 | M50: 0.6328931489 | N50: 0.4652308441 | O50: 0.6250160808 | P50: -1.244612633 | Q50: 0.9875538737 | R50: 0.2430209965 | S50: 0.2924722019 | T50: 0.2888320559
A51: 3990 | B51: 0.399 | C51: 6.281367579 | D51: 1.031602332 | E51: 0.3860966562 | F51: 0.9990431415 | G51: 0.001039393295 | H51: 0.1318320602 | I51: 0.5189681096 | K51: 0.6200300756 | L51: 0.4777879623 | M51: 0.6368555627 | N51: 0.4682235593 | O51: 0.6290366551 | P51: -1.227736412 | Q51: 0.9877226359 | R51: 0.2761209905 | S51: 0.3323075589 | T51: 0.328227698
A52: 4000 | B52: 0.4 | C52: 6.25 | D52: 1.031405254 | E52: 0.3821771186 | F52: 0.9990286874 | G52: 0.001055101713 | H52: 0.1314037667 | I52: 0.5146359871 | K52: 0.6225089577 | L52: 0.4807428239 | M52: 0.6407941718 | N52: 0.4711988007 | O52: 0.633033754 | P52: -1.211062482 | Q52: 0.9878893752 | R52: 0.3013910055 | S52: 0.362719651 | T52: 0.3583268894
A53: 4010 | B53: 0.401 | C53: 6.218866798 | D53: 1.031209768 | E53: 0.3783073991 | F53: 0.9990140152 | G53: 0.001071047534 | H53: 0.1309779289 | I53: 0.5103563755 | K53: 0.6249675235 | L53: 0.4836798116 | M53: 0.6447089564 | N53: 0.4741565411 | O53: 0.6370073412 | P53: -1.194587899 | Q53: 0.988054121 | R53: 0.3281520009 | S53: 0.3949261161 | T53: 0.3902083765
A54: 4020 | B54: 0.402 | C54: 6.187965644 | D54: 1.031015857 | E54: 0.3744867362 | F54: 0.9989991214 | G54: 0.001087234344 | H54: 0.1305545266 | I54: 0.5061284972 | K54: 0.6274059039 | L54: 0.4865989145 | M54: 0.6485999019 | N54: 0.4770967576 | O54: 0.6409573859 | P54: -1.178309767 | Q54: 0.9882169023 | R54: 0.3079369962 | S54: 0.3705976547 | T54: 0.3662308664
A55: 4030 | B55: 0.403 | C55: 6.157294239 | D55: 1.030823504 | E55: 0.3707143826 | F55: 0.9989840027 | G55: 0.001103665787 | H55: 0.1301335398 | I55: 0.5019515881 | K55: 0.6298242305 | L55: 0.4895001257 | M55: 0.6524669991 | N55: 0.4800194316 | O55: 0.6448838629 | P55: -1.162225244 | Q55: 0.9883777476 | R55: 0.3142170012 | S55: 0.3781555485 | T55: 0.3737605293
A56: 4040 | B56: 0.404 | C56: 6.126850309 | D56: 1.030632691 | E56: 0.3669896037 | F56: 0.9989686558 | G56: 0.00112034556 | H56: 0.1297149488 | I56: 0.4978248981 | K56: 0.6322226354 | L56: 0.4923834421 | M56: 0.6563102439 | N56: 0.4829245484 | O56: 0.6487867527 | P56: -1.146331533 | Q56: 0.9885366847 | R56: 0.328707993 | S56: 0.3955952445 | T56: 0.3910604115
A57: 4050 | B57: 0.405 | C57: 6.096631611 | D57: 1.030443403 | E57: 0.3633116784 | F57: 0.9989530772 | G57: 0.001137277414 | H57: 0.1292987342 | I57: 0.49374769 | K57: 0.6346012511 | L57: 0.4952488646 | M57: 0.6601296375 | N57: 0.4858120973 | O57: 0.6526660409 | P57: -1.13062589 | Q57: 0.9886937411 | R57: 0.3388240039 | S57: 0.4077697151 | T57: 0.4031593651
A58: 4060 | B58: 0.406 | C58: 6.066635929 | D58: 1.030255622 | E58: 0.3596798983 | F58: 0.9989372634 | G58: 0.001154465161 | H58: 0.1288848765 | I58: 0.4897192399 | K58: 0.6369602109 | L58: 0.4980963975 | M58: 0.6639251854 | N58: 0.4886820716 | O58: 0.6565217184 | P58: -1.115105615 | Q58: 0.9888489439 | R58: 0.3369880021 | S58: 0.4055601138 | T58: 0.4010376902
A59: 4070 | B59: 0.407 | C59: 6.036861074 | D59: 1.030069333 | E59: 0.3560935674 | F59: 0.9989212109 | G59: 0.001171912668 | H59: 0.1284733567 | I59: 0.4857388367 | K59: 0.639299648 | L59: 0.5009260485 | M59: 0.6676968982 | N59: 0.4915344682 | O59: 0.6603537811 | P59: -1.099768055 | Q59: 0.9890023194 | R59: 0.3431249857 | S59: 0.4129458835 | T59: 0.4084044366
A60: 4080 | B60: 0.408 | C60: 6.007304883 | D60: 1.029884518 | E60: 0.3525520019 | F60: 0.998904916 | G60: 0.00118962386 | H60: 0.1280641559 | I60: 0.4818057817 | K60: 0.6416196963 | L60: 0.5037378289 | M60: 0.6714447909 | N60: 0.4943692876 | O60: 0.6641622295 | P60: -1.084610604 | Q60: 0.989153894 | R60: 0.3969469965 | S60: 0.4777198834 | T60: 0.4725384829
A61: 4090 | B61: 0.409 | C61: 5.97796522 | D61: 1.029701163 | E61: 0.3490545304 | F61: 0.9988883751 | G61: 0.001207602722 | H61: 0.1276572554 | I61: 0.4779193885 | K61: 0.6439204896 | L61: 0.5065317531 | M61: 0.6751688826 | N61: 0.4971865336 | O61: 0.667947069 | P61: -1.069630699 | Q61: 0.989303693 | R61: 0.3887969851 | S61: 0.4679114644 | T61: 0.4629065398
A62: 4100 | B62: 0.41 | C62: 5.948839976 | D62: 1.029519251 | E62: 0.3456004928 | F62: 0.9988715845 | G62: 0.0012258533 | H62: 0.1272526366 | I62: 0.4740789827 | K62: 0.6462021623 | L62: 0.5093078389 | M62: 0.678869197 | N62: 0.4999862137 | O62: 0.6717083094 | P62: -1.054825822 | Q62: 0.9894517418 | R62: 0.372871995 | S62: 0.4487459725 | T62: 0.4440124841
A63: 4110 | B63: 0.411 | C63: 5.919927066 | D63: 1.029338768 | E63: 0.3421892409 | F63: 0.9988545405 | G63: 0.0012443797 | H63: 0.1268502814 | I63: 0.470283902 | K63: 0.6484648486 | L63: 0.5120661069 | M63: 0.6825457617 | N63: 0.5027683384 | O63: 0.675445965 | P63: -1.040193498 | Q63: 0.989598065 | R63: 0.3720209897 | S63: 0.4477218001 | T63: 0.4430646271
A64: 4120 | B64: 0.412 | C64: 5.891224432 | D64: 1.029159698 | E64: 0.3388201376 | F64: 0.9988372391 | G64: 0.001263186091 | H64: 0.1264501714 | I64: 0.4665334952 | K64: 0.650708683 | L64: 0.5148065808 | M64: 0.6861986081 | N64: 0.5055329214 | O64: 0.6791600542 | P64: -1.025731293 | Q64: 0.9897426871 | R64: 0.3709580004 | S64: 0.4464425082 | T64: 0.4418632077
A65: 4130 | B65: 0.413 | C65: 5.862730039 | D65: 1.028982026 | E65: 0.3354925571 | F65: 0.9988196766 | G65: 0.001282276704 | H65: 0.1260522889 | I65: 0.4628271227 | K65: 0.6529337998 | L65: 0.5175292871 | M65: 0.6898277716 | N65: 0.5082799796 | O65: 0.6828505996 | P65: -1.011436815 | Q65: 0.9898856318 | R65: 0.3575949967 | S65: 0.4303603294 | T65: 0.4260075065
A66: 4140 | B66: 0.414 | C66: 5.834441877 | D66: 1.028805737 | E66: =9.4977*0.001*C66^2*D66*EXP(-h_/7.996/1000) -> 0.3322058842 | F66: 0.998801849 | G66: 0.001301655835 | H66: =2.5*LOG(EXP(AOD_*(B66/0.55)^(-1.3))) -> 0.125656616 | I66: 0.459164156 | K66: 0.6551403337 | L66: =10^(-0.4*I66*MAr) -> 0.520234255 | M66: 0.6934332911 | N66: =10^(-0.4*I66*MAc) -> 0.5110095325 | O66: 0.6865176274 | P66: -0.997307714 | Q66: 0.9900269229 | R66: 0.3659659922 | S66: 0.4404346996 | T66: 0.4360422104
A67: 4150 | B67: =+A67/10000 -> 0.415 | C67: =+(1/B67)^2 -> 5.806357962 | D67: =0.23465+1.076*100/(146-C67)+0.93161/(41-C67) -> 1.028630816 | E67: 0.3289595145 | F67: =+EXP(-0.0168*EXP(-15*ABS(B67-0.59))) -> 0.9987837523 | G67: =-2.5*LOG(F67) -> 0.001321327844 | H67: 0.1252631352 | I67: =+E67+G67+H67 -> 0.4555439776 | K67: =10^(-0.4*I67) -> 0.6573284189 | L67: 0.5229215163 | M67: =+L67/M$1 -> 0.6970152092 | N67: 0.5137216028 | O67: =+N67/O$1 -> 0.6901611682 | P67: =(O67/M67-1)*100 -> -0.9833416772 | Q67: =+O67/M67 -> 0.9901665832 | R67: 0.4145370126 | S67: =+R67/S$1 -> 0.4988892096 | T67: =+S67*Q67 -> 0.4939834241
A68: 4160 | B68: 0.416 | C68: 5.778476331 | D68: 1.02845725 | E68: 0.325752854 | F68: 0.9987653824 | G68: 0.001341297157 | H68: 0.1248718292 | I68: 0.4519659804 | K68: 0.6594981898 | L68: 0.5255911056 | M68: 0.7005735717 | N68: 0.5164162156 | O68: 0.6937812557 | P68: -0.9695364327 | Q68: 0.9903046357 | R68: 0.4182389975 | S68: 0.5033444941 | T68: 0.4984643858
A69: 4170 | B69: 0.417 | C69: 5.750795047 | D69: 1.028285024 | E69: 0.3225853191 | F69: 0.9987467353 | G69: 0.001361568267 | H69: 0.1244826806 | I69: 0.4484295679 | K69: 0.6616497806 | L69: 0.5282430595 | M69: 0.7041084277 | N69: 0.519093399 | O69: 0.6973779274 | P69: -0.9558897465 | Q69: 0.9904411025 | R69: 0.3638229966 | S69: 0.4378556358 | T69: 0.4336702187
A70: 4180 | B70: 0.418 | C70: 5.723312195 | D70: 1.028114124 | E70: 0.3194563359 | F70: 0.9987278067 | G70: 0.001382145736 | H70: 0.1240956725 | I70: 0.4449341541 | K70: 0.6637833252 | L70: 0.5308774175 | M70: 0.7076198295 | N70: 0.5217531832 | O70: 0.7009512244 | P70: -0.942399422 | Q70: 0.9905760058 | R70: 0.4043529928 | S70: 0.4866328913 | T70: 0.4820468657
A71: 4190 | B71: 0.419 | C71: 5.696025883 | D71: 1.027944535 | E71: 0.3163653405 | F71: 0.9987085923 | G71: 0.001403034194 | H71: 0.1237107881 | I71: 0.4414791628 | K71: 0.6658989574 | L71: 0.533494221 | M71: 0.7111078325 | N71: 0.5243956013 | O71: 0.7045011906 | P71: -0.9290632998 | Q71: 0.990709367 | R71: 0.3864569962 | S71: 0.4650953221 | T71: 0.4607742922
A72: 4200 | B72: 0.42 | C72: 5.66893424 | D72: 1.027776246 | E72: 0.3133117788 | F72: 0.998689088 | G72: 0.001424238341 | H72: 0.1233280105 | I72: 0.4380640277 | K72: 0.6679968106 | L72: 0.5360935135 | M72: 0.7145724948 | N72: 0.5270206885 | O72: 0.7080278735 | P72: -0.9158792566 | Q72: 0.9908412074 | R72: 0.3803870082 | S72: 0.4577901806 | T72: 0.4535973753
A73: 4210 | B73: 0.421 | C73: 5.642035421 | D73: 1.027609241 | E73: 0.3102951059 | F73: 0.9986692893 | G73: 0.001445762947 | H73: 0.1229473235 | I73: 0.4346881923 | K73: 0.6700770182 | L73: 0.538675341 | M73: 0.7180138774 | N73: 0.5296284822 | O73: 0.7115313235 | P73: -0.9028452047 | Q73: 0.990971548 | R73: 0.3399760127 | S73: 0.4091561408 | T73: 0.4054620942
A74: 4220 | B74: 0.422 | C74: 5.615327598 | D74: 1.027443508 | E74: 0.3073147863 | F74: 0.9986491918 | G74: 0.001467612856 | H74: 0.1225687105 | I74: 0.4313511096 | K74: 0.6721397129 | L74: 0.5412397511 | M74: 0.721432044 | N74: 0.5322190221 | O74: 0.7150115939 | P74: -0.8899590911 | Q74: 0.9911004091 | R74: 0.2294670045 | S74: 0.2761601716 | T74: 0.273702459
A75: 4230 | B75: 0.423 | C75: 5.588808969 | D75: 1.027279034 | E75: 0.3043702935 | F75: 0.9986287909 | G75: 0.001489792983 | H75: 0.1221921554 | I75: 0.4280522419 | K75: 0.6741850273 | L75: 0.5437867936 | M75: 0.7248270608 | N75: 0.5347923501 | O75: 0.7184687409 | P75: -0.8772188972 | Q75: 0.991227811 | R75: 0.3194809854 | S75: 0.3844906762 | T75: 0.3811178514
A76: 4240 | B76: 0.424 | C76: 5.56247775 | D76: 1.027115806 | E76: 0.3014611099 | F76: 0.9986080822 | G76: 0.001512308321 | H76: 0.1218176423 | I76: 0.4247910606 | K76: 0.6762130935 | L76: 0.54631652 | M76: 0.7281989966 | N76: 0.53734851 | O76: 0.7219028232 | P76: -0.8646226381 | Q76: 0.9913537736 | R76: 0.4093250036 | S76: 0.4926166333 | T76: 0.4883573584
A77: 4250 | B77: 0.425 | C77: 5.53633218 | D77: 1.02695381 | E77: 0.2985867269 | F77: 0.9985870609 | G77: 0.001535163934 | H77: 0.1214451552 | I77: 0.421567046 | K77: 0.6782240432 | L77: 0.5488289836 | M77: 0.7315479223 | N77: 0.5398875475 | O77: 0.7253139024 | P77: -0.8521683618 | Q77: 0.9914783164 | R77: 0.3674390018 | S77: 0.442207445 | T77: 0.4384390931
A78: 4260 | B78: 0.426 | C78: 5.510370517 | D78: 1.026793034 | E78: 0.2957466441 | F78: 0.9985657224 | G78: 0.001558364966 | H78: 0.1210746785 | I78: 0.4183796875 | K78: 0.6802180077 | L78: 0.5513242393 | M78: 0.7348739113 | N78: 0.5424095101 | O78: 0.7287020423 | P78: -0.8398541486 | Q78: 0.9916014585 | R78: 0.3960140049 | S78: 0.4765970418 | T78: 0.4725943218
A79: 4270 | B79: 0.427 | C79: 5.484591041 | D79: 1.026633467 | E79: 0.2929403697 | F79: 0.9985440618 | G79: 0.001581916637 | H79: 0.1207061966 | I79: 0.4152284829 | K79: 0.6821951175 | L79: 0.5538023438 | M79: 0.738177039 | N79: 0.5449144472 | O79: 0.7320673093 | P79: -0.8276781107 | Q79: 0.9917232189 | R79: 0.3596050143 | S79: 0.4327793561 | T79: 0.4291973361
A80: 4280 | B80: 0.428 | C80: 5.458992052 | D80: 1.026475094 | E80: 0.29016742 | F80: 0.9985220744 | G80: 0.001605824245 | H80: 0.1203396942 | I80: 0.4121129385 | K80: 0.6841555031 | L80: 0.5562633553 | M80: 0.741457383 | N80: 0.5474024099 | O80: 0.7354097719 | P80: -0.8156383916 | Q80: 0.9918436161 | R80: 0.3683350086 | S80: 0.4432857761 | T80: 0.4396701671
A81: 4290 | B81: 0.429 | C81: 5.433571867 | D81: 1.026317906 | E81: 0.2874273197 | F81: 0.9984997552 | G81: 0.001630093171 | H81: 0.119975156 | I81: 0.4090325689 | K81: 0.686099294 | L81: 0.5587073334 | M81: 0.7447150226 | N81: 0.549873451 | O81: 0.738729501 | P81: -0.8037331652 | Q81: 0.9919626683 | R81: 0.3608399928 | S81: 0.4342656345 | T81: 0.4307752976
A82: 4300 | B82: 0.43 | C82: 5.408328826 | D82: 1.026161888 | E82: 0.2847196011 | F82: 0.9984770992 | G82: 0.001654728874 | H82: 0.1196125671 | I82: 0.405986897 | K82: 0.6880266194 | L82: 0.561134339 | M82: 0.7479500393 | N82: 0.5523276245 | O82: 0.7420265695 | P82: -0.7919606358 | Q82: 0.9920803936 | R82: 0.3666889966 | S82: 0.4413048247 | T82: 0.4378098642
A83: 4310 | B83: 0.431 | C83: 5.383261287 | D83: 1.02600703 | E83: 0.2820438043 | F83: 0.9984541013 | G83: 0.001679736898 | H83: 0.1192519123 | I83: 0.4029754535 | K83: 0.6899376079 | L83: 0.5635444346 | M83: 0.7511625162 | N83: 0.5547649863 | O83: 0.7453010521 | P83: -0.780319037 | Q83: 0.9921968096 | R83: 0.4198159873 | S83: 0.5052423783 | T83: 0.5012998758
A84: 4320 | B84: 0.432 | C84: 5.358367627 | D84: 1.025853321 | E84: 0.2793994773 | F84: 0.9984307564 | G84: 0.001705122871 | H84: 0.1188931771 | I84: 0.3999977772 | K84: 0.6918323873 | L84: 0.5659376838 | M84: 0.7543525381 | N84: 0.5571855936 | O84: 0.7485530258 | P84: -0.7688066317 | Q84: 0.9923119337 | R84: 0.4648070037 | S84: 0.5593884061 | T84: 0.5550877909
A85: 4330 | B85: 0.433 | C85: 5.333646241 | D85: 1.025700747 | E85: 0.2767861752 | F85: 0.9984070592 | G85: 0.001730892503 | H85: 0.1185363467 | I85: 0.3970534144 | K85: 0.693711085 | L85: 0.5683141514 | M85: 0.7575201914 | N85: 0.5595895047 | O85: 0.751782569 | P85: -0.7574217109 | Q85: 0.9924257829 | R85: 0.5078030229 | S85: 0.6111334839 | T85: 0.6065046262
A86: 4340 | B86: 0.434 | C86: 5.309095542 | D86: 1.025549299 | E86: 0.2742034608 | F86: 0.9983830044 | G86: 0.001757051593 | H86: 0.1181814067 | I86: 0.3941419191 | K86: 0.6955738275 | L86: 0.5706739034 | M86: 0.760665564 | N86: 0.5619767796 | O86: 0.7549897621 | P86: -0.7461625939 | Q86: 0.9925383741 | R86: 0.4772770107 | S86: 0.5743958764 | T86: 0.5701099492
A87: 4350 | B87: 0.435 | C87: 5.284713965 | D87: 1.025398964 | E87: 0.2716509039 | F87: 0.9983585867 | G87: 0.001783606027 | H87: 0.1178283427 | I87: 0.3912628527 | K87: 0.6974207409 | L87: 0.5730170068 | M87: 0.7637887454 | N87: 0.5643474791 | O87: 0.7581746871 | P87: -0.7350276273 | Q87: 0.9926497237 | R87: 0.4735850096 | S87: 0.5699526072 | T87: 0.5657632981
A88: 4360 | B88: 0.436 | C88: 5.260499958 | D88: 1.025249732 | E88: 0.2691280815 | F88: 0.9983338006 | G88: 0.00181056178 | H88: 0.1174771406 | I88: 0.3884157839 | K88: 0.6992519505 | L88: 0.5753435298 | M88: 0.7668898263 | N88: 0.5667016656 | O88: 0.7613374275 | P88: -0.724015185 | Q88: 0.9927598481 | R88: 0.5029489994 | S88: 0.605291738 | T88: 0.6009093339
A89: 4370 | B89: 0.437 | C89: 5.23645199 | D89: 1.025101592 | E89: 0.2666345772 | F89: 0.9983086406 | G89: 0.001837924918 | H89: 0.1171277863 | I89: 0.3856002885 | K89: 0.7010675807 | L89: 0.5776535415 | M89: 0.7699688988 | N89: 0.5690394022 | O89: 0.7644780683 | P89: -0.7131236671 | Q89: 0.9928687633 | R89: 0.4881680012 | S89: 0.5875030236 | T89: 0.5833134005
A90: 4380 | B90: 0.438 | C90: 5.212568545 | D90: 1.024954533 | E90: 0.264169982 | F90: 0.9982831009 | G90: 0.001865701596 | H90: 0.1167802659 | I90: 0.3828159494 | K90: 0.7028677555 | L90: 0.5799471116 | M90: 0.773026056 | N90: 0.5713607532 | O90: 0.7675966959 | P90: -0.7023514998 | Q90: 0.992976485 | R90: 0.4605639875 | S90: 0.5542819983 | T90: 0.5503889904
A91: 4390 | B91: 0.439 | C91: 5.188848128 | D91: 1.024808545 | E91: 0.2617338929 | F91: 0.9982571759 | G91: 0.001893898064 | H91: 0.1164345655 | I91: 0.3800623565 | K91: 0.7046525979 | L91: 0.5822243112 | M91: 0.7760613924 | N91: 0.5736657841 | O91: 0.770693398 | P91: -0.6916971349 | Q91: 0.9930830287 | R91: 0.4796189964 | S91: 0.5772144218 | T91: 0.5732218462
A92: 4400 | B92: 0.44 | C92: 5.165289256 | D92: 1.024663616 | E92: 0.259325914 | F92: 0.9982308598 | G92: 0.001922520668 | H92: 0.1160906717 | I92: 0.3773391063 | K92: 0.7064222302 | L92: 0.5844852118 | M92: 0.7790750035 | N92: 0.5759545609 | O92: 0.7737682636 | P92: -0.6811590496 | Q92: 0.9931884095 | R92: 0.4587329924 | S92: 0.5520784226 | T92: 0.5483178905
A93: 4410 | B93: 0.441 | C93: 5.141890467 | D93: 1.024519736 | E93: 0.2569456555 | F93: 0.9982041467 | G93: 0.001951575847 | H93: 0.1157485707 | I93: 0.3746458021 | K93: 0.7081767741 | L93: 0.5867298857 | M93: 0.7820669858 | N93: 0.5782271508 | O93: 0.7768213829 | P93: -0.6707357454 | Q93: 0.9932926425 | R93: 0.5145009756 | S93: 0.6191943717 | T93: 0.6150412138
A94: 4420 | B94: 0.442 | C94: 5.118650314 | D94: 1.024376895 | E94: 0.2545927341 | F94: 0.9981770306 | G94: 0.001981070139 | H94: 0.1154082493 | I94: 0.3719820535 | K94: 0.7099163502 | L94: 0.5889584061 | M94: 0.7850374365 | N94: 0.5804836218 | O94: 0.7798528471 | P94: -0.6604257483 | Q94: 0.9933957425 | R94: 0.465873003 | S94: 0.5606713205 | T94: 0.5569685028
A95: 4430 | B95: 0.443 | C95: 5.095567366 | D95: 1.024235084 | E95: 0.2522667725 | F95: 0.9981495055 | G95: 0.00201101018 | H95: 0.1150696943 | I95: 0.369347477 | K95: 0.7116410785 | L95: 0.5911708467 | M95: 0.787986454 | N95: 0.5827240426 | O95: 0.7828627486 | P95: -0.6502276081 | Q95: 0.9934977239 | R95: 0.4408839941 | S95: 0.5305974151 | T95: 0.5271473243
A96: 4440 | B96: 0.444 | C96: 5.072640208 | D96: 1.024094291 | E96: 0.2499673997 | F96: 0.9981215651 | G96: 0.002041402707 | H96: 0.1147328924 | I96: 0.3667416948 | K96: 0.7133510783 | L96: 0.5933672818 | M96: 0.7909141375 | N96: 0.5849484825 | O96: 0.7858511805 | P96: -0.6401398981 | Q96: 0.993598601 | R96: 0.4955179989 | S96: 0.596348638 | T96: 0.5925311724
A97: 4450 | B97: 0.445 | C97: 5.049867441 | D97: 1.023954507 | E97: 0.2476942506 | F97: 0.9980932033 | G97: 0.002072254558 | H97: 0.1143978307 | I97: 0.3641643359 | K97: 0.7150464678 | L97: 0.5955477862 | M97: 0.7938205865 | N97: 0.5871570116 | O97: 0.7888182371 | P97: -0.6301612144 | Q97: 0.9936983879 | R97: 0.4691590071 | S97: 0.5646259782 | T97: 0.5610679243
A98: 4460 | B98: 0.446 | C98: 5.027247682 | D98: 1.023815723 | E98: 0.2454469658 | F98: 0.9980644136 | G98: 0.002103572675 | H98: 0.1140644963 | I98: 0.3616150348 | K98: 0.7167273645 | L98: 0.5977124354 | M98: 0.7967059018 | N98: 0.5893497008 | O98: 0.7917640134 | P98: -0.6202901759 | Q98: 0.9937970982 | R98: 0.4118230045 | S98: 0.4956229407 | T98: 0.4925486403
A99: 4470 | B99: 0.447 | C99: 5.004779564 | D99: 1.023677928 | E99: 0.2432251919 | F99: 0.9980351897 | G99: 0.002135364105 | H99: 0.1137328765 | I99: 0.3590934325 | K99: 0.7183938851 | L99: 0.5998613053 | M99: 0.7995701844 | N99: 0.5915266212 | O99: 0.7946886051 | P99: -0.6105254238 | Q99: 0.9938947458 | R99: 0.4691790044 | S99: 0.5646500447 | T99: 0.5612027126
A100: 4480 | B100: 0.448 | C100: 4.982461735 | D100: 1.023541113 | E100: 0.2410285809 | F100: 0.9980055251 | G100: 0.002167636001 | H100: 0.1134029586 | I100: 0.3565991755 | K100: 0.7200461453 | L100: 0.6019944721 | M100: 0.8024135359 | N100: 0.5936878448 | O100: 0.7975921088 | P100: -0.600865621 | Q100: 0.9939913438 | R100: 0.5036540031 | S100: 0.6061401996 | T100: 0.6024981115
A101: 4490 | B101: 0.449 | C101: 4.960292856 | D101: 1.023405269 | E101: 0.2388567905 | F101: 0.997975413 | G101: 0.002200395623 | H101: 0.1130747302 | I101: 0.3541319163 | K101: 0.7216842601 | L101: 0.6041120125 | M101: 0.8052360587 | N101: 0.5958334439 | O101: 0.8004746217 | P101: -0.591309452 | Q101: 0.9940869055 | R101: 0.5223209858 | S101: 0.6286056392 | T101: 0.6248886347
A102: 4500 | B102: 0.45 | C102: 4.938271605 | D102: 1.023270386 | E102: 0.2367094838 | F102: 0.9979448467 | G102: 0.002233650345 | H102: 0.1127481788 | I102: 0.3516913129 | K102: 0.7233083436 | L102: 0.6062140035 | M102: 0.8080378552 | N102: 0.5979634911 | O102: 0.8033362415 | P102: -0.5818556223 | Q102: 0.9941814438 | R102: 0.5056579709 | S102: 0.6085519454 | T102: 0.6050110517
A103: 4510 | B103: 0.451 | C103: 4.916396675 | D103: 1.023136455 | E103: 0.2345863293 | F103: 0.9979138195 | G103: 0.002267407647 | H103: 0.1124232922 | I103: 0.3492770291 | K103: 0.7249185087 | L103: 0.6083005225 | M103: 0.8108190287 | N103: 0.6000780598 | O103: 0.8061770666 | P103: -0.5725028583 | Q103: 0.9942749714 | R103: 0.5050259829 | S103: 0.6077913571 | T103: 0.6043117342
A104: 4520 | B104: 0.452 | C104: 4.894666771 | D104: 1.023003467 | E104: 0.2324870005 | F104: 0.9978823243 | G104: 0.002301675125 | H104: 0.1121000582 | I104: 0.3468887338 | K104: 0.726514868 | L104: 0.610371647 | M104: 0.8135796825 | N104: 0.6021772235 | O104: 0.8089971957 | P104: -0.5632499067 | Q104: 0.9943675009 | R104: 0.4911369979 | S104: 0.5910761676 | T104: 0.5877469316
A105: 4530 | B105: 0.453 | C105: 4.873080615 | D105: 1.022871414 | E105: 0.2304111764 | F105: 0.9978503542 | G105: 0.00233646049 | H105: 0.1117784648 | I105: 0.3445261018 | K105: 0.7280975326 | L105: 0.6124274549 | M105: 0.8163199204 | N105: 0.604261056 | O105: 0.8117967282 | P105: -0.5540955343 | Q105: 0.9944590447 | R105: 0.5077109933 | S105: 0.6110227277 | T105: 0.607637078
A106: 4540 | B106: 0.454 | C106: 4.851636942 | D106: 1.022740285 | E106: 0.2283585409 | F106: 0.9978179019 | G106: 0.002371771568 | H106: 0.1114585001 | I106: 0.3421888126 | K106: 0.7296666131 | L106: 0.6144680241 | M106: 0.8190398463 | N106: 0.6063296316 | O106: 0.8145757636 | P106: -0.5450385276 | Q106: 0.9945496147 | R106: 0.5262550116 | S106: 0.6333401815 | T106: 0.6298882335
A107: 4550 | B107: 0.455 | C107: 4.830334501 | D107: 1.022610073 | E107: 0.2263287827 | F107: 0.9977849603 | G107: 0.002407616305 | H107: 0.1111401523 | I107: 0.3398765514 | K107: 0.731222219 | L107: 0.6164934328 | M107: 0.8217395644 | N107: 0.6083830246 | O107: 0.8173344019 | P107: -0.5360776926 | Q107: 0.9946392231 | R107: 0.5383610129 | S107: 0.6479095764 | T107: 0.6444362777
A108: 4560 | B108: 0.456 | C108: 4.809172053 | D108: 1.022480769 | E108: 0.2243215957 | F108: 0.9977515219 | G108: 0.002444002766 | H108: 0.1108234097 | I108: 0.3375890081 | K108: 0.732764459 | L108: 0.6185037594 | M108: 0.8244191792 | N108: 0.6104213097 | O108: 0.8200727435 | P108: -0.5272118542 | Q108: 0.9947278815 | R108: 0.6450849771 | S108: 0.7763503007 | T108: 0.7722572899
A109: 4570 | B109: 0.457 | C109: 4.788148375 | D109: 1.022352364 | E109: 0.2223366783 | F109: 0.9977175793 | G109: 0.002480939138 | H109: 0.1105082606 | I109: 0.3353258781 | K109: 0.7342934407 | L109: 0.6204990822 | M109: 0.827078795 | N109: 0.6124445617 | O109: 0.8227908889 | P109: -0.5184398562 | Q109: 0.9948156014 | R109: 0.6476690173 | S109: 0.7794601552 | T109: 0.775419123
A110: 4580 | B110: 0.458 | C110: 4.767262257 | D110: 1.022224849 | E110: 0.2203737338 | F110: 0.9976831249 | G110: 0.002518433731 | H110: 0.1101946937 | I110: 0.3330868612 | K110: 0.735809271 | L110: 0.6224794796 | M110: 0.8297185164 | N110: 0.6144528556 | O110: 0.8254889387 | P110: -0.5097605609 | Q110: 0.9949023944 | R110: 0.4738169909 | S110: 0.5702317933 | T110: 0.5673249765
A111: 4590 | B111: 0.459 | C111: 4.7465125 | D111: 1.022098218 | E111: 0.21843247 | F111: 0.997648151 | G111: 0.002556494983 | H111: 0.1098826974 | I111: 0.3308716624 | K111: 0.7373120557 | L111: 0.6244450302 | M111: 0.8323384481 | N111: 0.6164462665 | O111: 0.8281669938 | P111: -0.5011728486 | Q111: 0.9949882715 | R111: 0.4200490117 | S111: 0.5055228197 | T111: 0.5029892765
A112: 4600 | B112: 0.46 | C112: 4.725897921 | D112: 1.02197246 | E112: 0.2165125993 | F112: 0.9976126499 | G112: 0.002595131457 | H112: 0.1095722607 | I112: 0.3286799914 | K112: 0.7388018996 | L112: 0.6263958124 | M112: 0.8349386947 | N112: 0.6184248695 | O112: 0.8308251553 | P112: -0.4926756175 | Q112: 0.9950732438 | R112: 0.5255020261 | S112: 0.6324339745 | T112: 0.6293181265
A113: 4610 | B113: 0.461 | C113: 4.705417347 | D113: 1.021847568 | E113: 0.2146138385 | F113: 0.9975766134 | G113: 0.002634351846 | H113: 0.1092633723 | I113: 0.3265115626 | K113: 0.7402789068 | L113: 0.6283319047 | M113: 0.8375193606 | N113: 0.6203887399 | O113: 0.8334635241 | P113: -0.4842677833 | Q113: 0.9951573222 | R113: 0.6229749918 | S113: 0.7497412579 | T113: 0.7461105026
A114: 4620 | B114: 0.462 | C114: 4.68506962 | D114: 1.021723535 | E114: 0.2127359088 | F114: 0.9975400337 | G114: 0.002674164976 | H114: 0.1089560211 | I114: 0.3243660948 | K114: 0.7417431803 | L114: 0.6302533853 | M114: 0.8400805504 | N114: 0.6223379529 | O114: 0.8360822015 | P114: -0.4759482791 | Q114: 0.9952405172 | R114: 0.4958840013 | S114: 0.5967891164 | T114: 0.5939487089
A115: 4630 | B115: 0.463 | C115: 4.664853594 | D115: 1.021600351 | E115: 0.2108785357 | F115: 0.9975029026 | G115: 0.002714579804 | H115: 0.1086501962 | I115: 0.3222433118 | K115: 0.7431948222 | L115: 0.6321603327 | M115: 0.8426223684 | N115: 0.6242725837 | O115: 0.8386812883 | P115: -0.4677160548 | Q115: 0.9953228395 | R115: 0.4013830125 | S115: 0.4830585637 | T115: 0.4807992212
A116: 4640 | B116: 0.464 | C116: 4.644768133 | D116: 1.02147801 | E116: 0.2090414491 | F116: 0.9974652116 | G116: 0.002755605424 | H116: 0.1083458868 | I116: 0.3201429413 | K116: 0.7446339336 | L116: 0.634052825 | M116: 0.8451449189 | N116: 0.6261927076 | O116: 0.8412608857 | P116: -0.4595700773 | Q116: 0.9954042992 | R116: 0.4380429983 | S116: 0.5271783184 | T116: 0.5247555646
A117: 4650 | B117: 0.465 | C117: 4.624812117 | D117: 1.021356503 | E117: 0.2072243827 | F117: 0.9974269525 | G117: 0.002797251067 | H117: 0.1080430821 | I117: 0.3180647158 | K117: 0.7460606146 | L117: 0.6359309402 | M117: 0.8476483058 | N117: 0.6280983996 | O117: 0.8438210946 | P117: -0.4515093297 | Q117: 0.9954849067 | R117: 0.5293040276 | S117: 0.6370096275 | T117: 0.6341334696
A118: 4660 | B118: 0.466 | C118: 4.604984435 | D118: 1.021235822 | E118: 0.2054270745 | F118: 0.9973881167 | G118: 0.002839526103 | H118: 0.1077417714 | I118: 0.316008372 | K118: 0.7474749644 | L118: 0.6377947563 | M118: 0.850132633 | N118: 0.6299897347 | O118: 0.8463620158 | P118: -0.4435328113 | Q118: 0.9955646719 | R118: 0.517663002 | S118: 0.6229998241 | T118: 0.6202366155
A119: 4670 | B119: 0.467 | C119: 4.58528399 | D119: 1.021115961 | E119: 0.2036492666 | F119: 0.9973486955 | G119: 0.002882440044 | H119: 0.1074419442 | I119: 0.3139736508 | K119: 0.7488770814 | L119: 0.6396443508 | M119: 0.8525980039 | N119: 0.6318667881 | O119: 0.8488837499 | P119: -0.4356395374 | Q119: 0.9956436046 | R119: 0.4503119886 | S119: 0.5419438681 | T119: 0.5395829463
A120: 4680 | B120: 0.468 | C120: 4.565709694 | D120: 1.020996911 | E120: 0.2018907047 | F120: 0.9973086802 | G120: 0.002926002547 | H120: 0.1071435901 | I120: 0.3119602973 | K120: 0.7502670628 | L120: 0.6414798014 | M120: 0.855044522 | N120: 0.6337296343 | O120: 0.8513863975 | P120: -0.4278285391 | Q120: 0.9957217146 | R120: 0.5169320107 | S120: 0.6221200867 | T120: 0.6194584795
A121: 4690 | B121: 0.469 | C121: 4.546260473 | D121: 1.020878666 | E121: 0.2001511387 | F121: 0.9972680617 | G121: 0.002970223412 | H121: 0.1068466986 | I121: 0.3099680607 | K121: 0.751645005 | L121: 0.6433011851 | M121: 0.85747229 | N121: 0.635578348 | O121: 0.8538700587 | P121: -0.4200988626 | Q121: 0.9957990114 | R121: 0.6077579856 | S121: 0.7314278143 | T121: 0.7283550944
A122: 4700 | B122: 0.47 | C122: 4.526935265 | D122: 1.020761217 | E122: 0.1984303221 | F122: 0.997226831 | G122: 0.003015112591 | H122: 0.1065512596 | I122: 0.3079966942 | K122: 0.7530110033 | L122: 0.6451085789 | M122: 0.8598814107 | N122: 0.6374130036 | O122: 0.8563348335 | P122: -0.4124495695 | Q122: 0.9958755043 | R122: 0.6230739951 | S122: 0.749860407 | T122: 0.7467676109
A123: 4710 | B123: 0.471 | C123: 4.507733016 | D123: 1.020644558 | E123: 0.1967280122 | F123: 0.997184979 | G123: 0.003060680182 | H123: 0.1062572628 | I123: 0.3060459552 | K123: 0.7543651521 | L123: 0.6469020597 | M123: 0.8622719861 | N123: 0.6392336753 | O123: 0.8587808216 | P123: -0.4048797364 | Q123: 0.9959512026 | R123: 0.5930269957 | S123: 0.7136992842 | T123: 0.7108096604
A124: 4720 | B124: 0.472 | C124: 4.488652686 | D124: 1.020528682 | E124: 0.1950439701 | F124: 0.9971424962 | G124: 0.00310693644 | H124: 0.1059646981 | I124: 0.3041156046 | K124: 0.7557075449 | L124: 0.6486817037 | M124: 0.8646441182 | N124: 0.6410404371 | O124: 0.8612081224 | P124: -0.3973884544 | Q124: 0.9960261155 | R124: 0.6254349947 | S124: 0.7527018353 | T124: 0.7497106851
A125: 4730 | B125: 0.473 | C125: 4.469693245 | D125: 1.02041358 | E125: 0.1933779602 | F125: 0.9970993733 | G125: 0.003153891771 | H125: 0.1056735556 | I125: 0.3022054076 | K125: 0.7570382741 | L125: 0.6504475869 | M125: 0.8669979084 | N125: 0.6428333627 | O125: 0.8636168348 | P125: -0.3899748293 | Q125: 0.9961002517 | R125: 0.6537910104 | S125: 0.7868278839 | T125: 0.7837594532
A126: 4740 | B126: 0.474 | C126: 4.450853674 | D126: 1.020299248 | E126: 0.1917297507 | F126: 0.9970556005 | G126: 0.003201556741 | H126: 0.1053838254 | I126: 0.3003151328 | K126: 0.7583574313 | L126: 0.6521997852 | M126: 0.8693334575 | N126: 0.6446125254 | O126: 0.8660070575 | P126: -0.382637981 | Q126: 0.9961736202 | R126: 0.7429969907 | S126: 0.8941859718 | T126: 0.8907644766
A127: 4750 | B127: 0.475 | C127: 4.432132964 | D127: 1.020185676 | E127: 0.1900991132 | F127: 0.9970111682 | G127: 0.003249942075 | H127: 0.1050954976 | I127: 0.2984445529 | K127: 0.7596651071 | L127: 0.6539383739 | M127: 0.871650866 | N127: 0.6463779985 | O127: 0.8683788887 | P127: -0.3753770435 | Q127: 0.9962462296 | R127: 0.6985459924 | S127: 0.8406898478 | T127: 0.8375340911
A128: 4760 | B128: 0.476 | C128: 4.413530118 | D128: 1.020072859 | E128: 0.1884858228 | F128: 0.9969660664 | G128: 0.003299058659 | H128: 0.1048085626 | I128: 0.296593444 | K128: 0.7609613909 | L128: 0.655663428 | M128: 0.8739502338 | N128: 0.6481298546 | O128: 0.8707324262 | P128: -0.3681911647 | Q128: 0.9963180884 | R128: 0.3666630089 | S128: 0.441273549 | T128: 0.4396488188
A129: 4770 | B129: 0.477 | C129: 4.395044148 | D129: 1.01996079 | E129: 0.1868896577 | F129: 0.996920285 | G129: 0.003348917546 | H129: 0.1045230107 | I129: 0.2947615859 | K129: 0.7622463714 | L129: 0.657375022 | M129: 0.8762316603 | N129: 0.6498681662 | O129: 0.8730677674 | P129: -0.3610795059 | Q129: 0.9963892049 | R129: 0.403151989 | S129: 0.4851875008 | T129: 0.4834355882
A130: 4780 | B130: 0.478 | C130: 4.376674078 | D130: 1.019849462 | E130: =9.4977*0.001*C130^2*D130*EXP(-h_/7.996/1000) -> 0.1853103997 | F130: 0.9968738139 | G130: 0.003399529953 | H130: =2.5*LOG(EXP(AOD_*(B130/0.55)^(-1.3))) -> 0.1042388323 | I130: 0.292948762 | K130: 0.7635201364 | L130: =10^(-0.4*I130*MAr) -> 0.65907323 | M130: 0.8784952444 | N130: =10^(-0.4*I130*MAc) -> 0.6515930055 | O130: 0.875385009 | P130: -0.3540412421 | Q130: 0.9964595876 | R130: 0.4626240134 | S130: 0.5567612093 | T130: 0.554790045
A131: 4790 | B131: =+A131/10000 -> 0.479 | C131: =+(1/B131)^2 -> 4.35841894 | D131: =0.23465+1.076*100/(146-C131)+0.93161/(41-C131) -> 1.019738869 | E131: 0.1837478337 | F131: =+EXP(-0.0168*EXP(-15*ABS(B131-0.59))) -> 0.9968266427 | G131: =-2.5*LOG(F131) -> 0.003450907269 | H131: 0.1039560181 | I131: =+E131+G131+H131 -> 0.2911547591 | K131: =10^(-0.4*I131) -> 0.7647827723 | L131: 0.6607581259 | M131: =+L131/M$1 -> 0.8807410844 | N131: 0.653304444 | O131: =+N131/O$1 -> 0.8776842473 | P131: =(O131/M131-1)*100 -> -0.3470755612 | Q131: =+O131/M131 -> 0.9965292444 | R131: 0.5376750231 | S131: =+R131/S$1 -> 0.6470839977 | T131: =+S131*Q131 -> 0.6448381273
A132: 4800 | B132: 0.48 | C132: 4.340277778 | D132: 1.019629004 | E132: 0.182201748 | F132: 0.9967787609 | G132: 0.003503061054 | H132: 0.1036745585 | I132: 0.2893793675 | K132: 0.7660343651 | L132: 0.6624297828 | M132: 0.8829692779 | N132: 0.6550025532 | O132: 0.8799655783 | P132: -0.3401816644 | Q132: 0.9965981834 | R132: 0.4483610094 | S132: 0.5395958932 | T132: 0.5377602869
A133: 4810 | B133: 0.481 | C133: 4.322249644 | D133: 1.01951986 | E133: 0.1806719336 | F133: 0.9967301578 | G133: 0.003556003042 | H133: 0.1033944444 | I133: 0.2876223811 | K133: 0.7672749994 | L133: 0.6640882736 | M133: 0.8851799219 | N133: 0.6566874038 | O133: 0.882229097 | P133: -0.3333587656 | Q133: 0.9966664123 | R133: 0.4304229915 | S133: 0.5180077521 | T133: 0.5162809278
A134: 4820 | B134: 0.482 | C134: 4.304333603 | D134: 1.019411431 | E134: 0.1791581851 | F134: 0.9966808225 | G134: 0.003609745145 | H134: 0.1031156666 | I134: 0.2858835968 | K134: 0.7685047591 | L134: 0.6657336706 | M134: 0.8873731128 | N134: 0.6583590664 | O134: 0.8844748982 | P134: -0.3266060912 | Q134: 0.9967339391 | R134: 0.4994420111 | S134: 0.601071129 | T134: 0.5991079941
A135: 4830 | B135: 0.483 | C135: 4.286528726 | D135: 1.019303712 | E135: 0.1776602997 | F135: 0.9966307442 | G135: 0.003664299457 | H135: 0.1028382158 | I135: 0.284162815 | K135: 0.7697237269 | L135: 0.6673660456 | M135: 0.8895489465 | N135: 0.6600176108 | O135: 0.8867030759 | P135: -0.3199228802 | Q135: 0.9968007712 | R135: 0.5597100258 | S135: 0.6736028 | T135: 0.6714477905
A136: 4840 | B136: 0.484 | C136: 4.268834096 | D136: 1.019196694 | E136: 0.176178078 | F136: 0.9965799116 | G136: 0.003719678252 | H136: 0.1025620831 | I136: 0.2824598393 | K136: 0.7709319848 | L136: 0.66898547 | M136: 0.8917075178 | N136: 0.6616631068 | O136: 0.8889137234 | P136: -0.3133083838 | Q136: 0.9968669162 | R136: 0.5391970277 | S136: 0.6489157079 | T136: 0.6468826006
A137: 4850 | B137: 0.485 | C137: 4.251248804 | D137: 1.019090373 | E137: 0.1747113231 | F137: 0.9965283134 | G137: 0.003775893989 | H137: 0.1022872595 | I137: 0.2807744766 | K137: 0.7721296137 | L137: 0.6705920144 | M137: 0.8938489212 | N137: 0.6632956232 | O137: 0.8911069336 | P137: -0.3067618652 | Q137: 0.9969323813 | R137: 0.4923270047 | S137: 0.5925083232 | T137: 0.5906907336
A138: 4860 | B138: 0.486 | C138: 4.233771952 | D138: 1.018984743 | E138: 0.1732598413 | F138: 0.9964759381 | G138: 0.003832959319 | H138: 0.1020137361 | I138: 0.2791065367 | K138: 0.7733166935 | L138: 0.6721857492 | M138: 0.8959732503 | N138: 0.6649152287 | O138: 0.8932827985 | P138: -0.3002825998 | Q138: 0.996997174 | R138: 0.5442519784 | S138: 0.6549992669 | T138: 0.6530324181
A139: 4870 | B139: 0.487 | C139: 4.21640265 | D139: 1.018879796 | E139: 0.1718234416 | F139: 0.9964227741 | G139: 0.003890887081 | H139: 0.1017415041 | I139: 0.2774558328 | K139: 0.7744933032 | L139: 0.673766744 | M139: 0.8980805979 | N139: 0.6665219913 | O139: 0.8954414096 | P139: -0.2938698744 | Q139: 0.9970613013 | R139: 0.6279860139 | S139: 0.7557719495 | T139: 0.7535509634
A140: 4880 | B140: 0.488 | C140: 4.199140016 | D140: 1.018775528 | E140: 0.1704019358 | F140: 0.9963688096 | G140: 0.003949690309 | H140: 0.1014705547 | I140: 0.2758221809 | K140: 0.7756595209 | L140: 0.6753350679 | M140: 0.9001710562 | N140: 0.6681159785 | O140: 0.8975828575 | P140: -0.2875229874 | Q140: 0.9971247701 | R140: 0.6902589798 | S140: 0.8307165498 | T140: 0.8283280488
A141: 4890 | B141: 0.489 | C141: 4.18198318 | D141: 1.018671932 | E141: 0.1689951386 | F141: 0.9963140324 | G141: 0.004009382234 | H141: 0.1012008794 | I141: 0.2742054002 | K141: 0.7768154237 | L141: 0.6768907895 | M141: 0.9022447165 | N141: 0.6696972572 | O141: 0.8997072322 | P141: -0.2812412488 | Q141: 0.9971875875 | R141: 0.7561320066 | S141: 0.9099937707 | T141: 0.9074344928
A142: 4900 | B142: 0.49 | C142: 4.164931279 | D142: 1.018569003 | E142: 0.1676028671 | F142: 0.9962584305 | G142: 0.004069976287 | H142: 0.1009324695 | I142: 0.2726053129 | K142: 0.7779610877 | L142: 0.6784339766 | M142: 0.9043016694 | N142: 0.6712658939 | O142: 0.901814623 | P142: -0.2750239798 | Q142: 0.9972497602 | R142: 0.8532469869 | S142: 1.026870224 | T142: 1.024046084
A143: 4910 | B143: 0.491 | C143: 4.147983458 | D143: 1.018466735 | E143: 0.1662249412 | F143: 0.9962019914 | G143: 0.004131486101 | H143: 0.1006653165 | I143: 0.2710217439 | K143: 0.7790965881 | L143: 0.6799646967 | M143: 0.9063420046 | N143: 0.6728219545 | O143: 0.9039051182 | P143: -0.2688705124 | Q143: 0.9973112949 | R143: 0.9239649773 | S143: 1.111978287 | T143: 1.108988505
A144: 4920 | B144: 0.492 | C144: 4.131138872 | D144: 1.018365121 | E144: 0.1648611835 | F144: 0.9961447027 | G144: 0.004193925518 | H144: 0.1003994121 | I144: 0.2694545211 | K144: 0.7802219992 | L144: 0.6814830164 | M144: 0.908365811 | N144: 0.6743655041 | O144: 0.9059788056 | P144: -0.2627801899 | Q144: 0.9973721981 | R144: 1.035094023 | S144: 1.245720462 | T144: 1.242446956
A145: 4930 | B145: 0.493 | C145: 4.114396685 | D145: 1.018264157 | E145: 0.1635114191 | F145: 0.9960865515 | G145: 0.004257308585 | H145: 0.1001347478 | I145: 0.2679034754 | K145: 0.7813373943 | L145: 0.6829890019 | M145: 0.9103731768 | N145: 0.6758966076 | O145: 0.9080357721 | P145: -0.2567523663 | Q145: 0.9974324763 | R145: 1.124907017 | S145: 1.353809082 | T145: 1.350333145
A146: 4940 | B146: 0.494 | C146: 4.097756069 | D146: 1.018163837 | E146: 0.1621754754 | F146: 0.9960275249 | G146: 0.004321649565 | H146: 0.09987131534 | I146: 0.2663684403 | K146: 0.7824428456 | L146: 0.6844827185 | M146: 0.9123641891 | N146: 0.6774153288 | O146: 0.9100761038 | P146: -0.250786406 | Q146: 0.9974921359 | R146: 1.186269045 | S146: 1.427657382 | T146: 1.424077012
A147: 4950 | B147: 0.495 | C147: 4.081216202 | D147: 1.018064154 | E147: 0.1608531828 | F147: 0.9959676098 | G147: 0.004386962934 | H147: 0.09960910655 | I147: 0.2648492522 | K147: 0.7835384247 | L147: 0.685964231 | M147: 0.9143389344 | N147: 0.6789217314 | O147: 0.9120998858 | P147: -0.244881684 | Q147: 0.9975511832 | R147: 0.6650350094 | S147: 0.8003598717 | T147: 0.798399937
A148: 4960 | B148: 0.496 | C148: 4.064776275 | D148: 1.017965105 | E148: 0.1595443735 | F148: 0.9959067929 | G148: 0.004453263388 | H148: 0.09934811329 | I148: 0.2633457502 | K148: 0.7846242019 | L148: 0.6874336036 | M148: 0.916297498 | N148: 0.680415878 | O148: 0.9141072026 | P148: -0.2390375858 | Q148: 0.9976096241 | R148: 0.3483290076 | S148: 0.4192088475 | T148: 0.4182067808
A149: 4970 | B149: 0.497 | C149: 4.048435482 | D149: 1.017866683 | E149: 0.1582488826 | F149: 0.9958450607 | G149: 0.004520565845 | H149: 0.09908832747 | I149: 0.2618577759 | K149: 0.7857002469 | L149: 0.6888908998 | M149: 0.9182399646 | N149: 0.6818978309 | O149: 0.9160981377 | P149: -0.233253507 | Q149: 0.9976674649 | R149: 0.4418550134 | S149: 0.5317660226 | T149: 0.5305256597
A150: 4980 | B150: 0.498 | C150: 4.032193029 | D150: 1.017768883 | E150: 0.1569665473 | F150: 0.9957823995 | G150: 0.004588885449 | H150: 0.09882974111 | I150: 0.2603851739 | K150: 0.7867666282 | L150: 0.6903361822 | M150: 0.9201664178 | N150: 0.6833676517 | O150: 0.9180727737 | P150: -0.2275288532 | Q150: 0.9977247115 | R150: 0.5008100271 | S150: 0.6027175162 | T150: 0.60134616
A151: 4990 | B151: 0.499 | C151: 4.016048128 | D151: 1.017671699 | E151: 0.1556972073 | F151: 0.9957187952 | G151: 0.004658237571 | H151: 0.09857234627 | I151: 0.2589277911 | K151: 0.7878234135 | L151: 0.6917695131 | M151: 0.9220769405 | N151: 0.6848254011 | O151: 0.9200311926 | P151: -0.2218630399 | Q151: 0.9977813696 | R151: 0.5158529878 | S151: 0.6208214985 | T151: 0.6194441251
A152: 5000 | B152: 0.5 | C152: 4 | D152: 1.017575128 | E152: 0.1544407043 | F152: 0.9956542339 | G152: 0.004728637817 | H152: 0.0983161351 | I152: 0.2574854772 | K152: 0.7888706694 | L152: 0.6931909537 | M152: 0.9239716144 | N152: 0.6862711395 | O152: 0.921973475 | P152: -0.2162554927 | Q152: 0.9978374451 | R152: 0.4188930094 | S152: 0.5041315879 | T152: 0.5030413756
A153: 5010 | B153: 0.501 | C153: 3.984047872 | D153: 1.017479162 | E153: 0.1531968826 | F153: 0.9955887011 | G153: 0.004800102026 | H153: 0.09806109978 | I153: 0.2560580844 | K153: 0.7899084619 | L153: 0.6946005648 | M153: 0.9258505204 | N153: 0.6877049262 | O153: 0.9238997011 | P153: -0.2107056465 | Q153: 0.9978929435 | R153: 0.4478540123 | S153: 0.5389857297 | T153: 0.5378500563
A154: 5020 | B154: 0.502 | C154: 3.968190981 | D154: 1.017383797 | E154: 0.1519655885 | F154: 0.9955221824 | G154: 0.004872646278 | H154: 0.09780723261 | I154: 0.2546454674 | K154: 0.7909368557 | L154: 0.6959984063 | M154: 0.9277137384 | N154: 0.6891268201 | O154: 0.9258099497 | P154: -0.205212946 | Q154: 0.9979478705 | R154: 0.5443270206 | S154: 0.6550895791 | T154: 0.6537452505
A155: 5030 | B155: 0.503 | C155: 3.95242857 | D155: 1.017289029 | E155: 0.1507466704 | F155: 0.9954546629 | G155: 0.004946286896 | H155: 0.09755452592 | I155: 0.2532474832 | K155: 0.7919559148 | L155: 0.6973845374 | M155: 0.9295613473 | N155: 0.6905368794 | O155: 0.927704299 | P155: -0.1997768452 | Q155: 0.9980022315 | R155: 0.6480829716 | S155: 0.779958343 | T155: 0.7784001669
A156: 5040 | B156: 0.504 | C156: 3.936759889 | D156: 1.017194851 | E156: 0.149539979 | F156: 0.9953861276 | G156: 0.005021040449 | H156: 0.0973029721 | I156: 0.2518639916 | K156: 0.7929657022 | L156: 0.6987590167 | M156: 0.9313934252 | N156: 0.6919351615 | O156: 0.9295828261 | P156: -0.1943968076 | Q156: 0.9980560319 | R156: 0.741707027 | S156: 0.8926335194 | T156: 0.8908982683
A157: 5050 | B157: 0.505 | C157: 3.921184198 | D157: 1.01710126 | E157: 0.1483453672 | F157: 0.9953165614 | G157: 0.005096923758 | H157: 0.09705256364 | I157: 0.2504948546 | K157: 0.79396628 | L157: 0.7001219018 | M157: 0.933210049 | N157: 0.6933217229 | O157: 0.9314456072 | P157: -0.1890723056 | Q157: 0.9981092769 | R157: 0.7903929949 | S157: 0.9512263671 | T157: 0.9494278615
A158: 5060 | B158: 0.506 | C158: 3.905700761 | D158: 1.01700825 | E158: 0.1471626896 | F158: 0.9952459488 | G158: 0.005173953896 | H158: 0.09680329306 | I158: 0.2491399365 | K158: 0.7949577093 | L158: 0.7014732498 | M158: 0.9350112946 | N158: 0.6946966198 | O158: 0.9332927175 | P158: -0.1838028209 | Q158: 0.9981619718 | R158: 0.8688139915 | S158: 1.045604885 | T158: 1.043683034
A159: 5070 | B159: 0.507 | C159: 3.890308852 | D159: 1.016915816 | E159: 0.1459918031 | F159: 0.9951742742 | G159: 0.005252148196 | H159: 0.09655515296 | I159: 0.2477991043 | K159: 0.7959400505 | L159: 0.7028131168 | M159: 0.936797237 | N159: 0.6960599073 | O159: 0.935124231 | P159: -0.1785878442 | Q159: 0.9982141216 | R159: 0.9305070043 | S159: 1.119851521 | T159: 1.117851602
A160: 5080 | B160: 0.508 | C160: 3.87500775 | D160: 1.016823954 | E160: 0.1448325667 | F160: 0.9951015216 | G160: 0.005331524251 | H160: 0.09630813599 | I160: 0.246472227 | K160: 0.7969133628 | L160: 0.7041415584 | M160: 0.9385679502 | N160: 0.6974116399 | O160: 0.9369402211 | P160: -0.1734268749 | Q160: 0.9982657313 | R160: 0.980207026 | S160: 1.179664767 | T160: 1.177618912
A161: 5090 | B161: 0.509 | C161: 3.859796743 | D161: 1.016732658 | E161: 0.1436848411 | F161: 0.9950276749 | G161: 0.005412099921 | H161: 0.09606223489 | I161: 0.245159176 | K161: 0.7978777047 | L161: 0.7054586293 | M161: 0.940323507 | N161: 0.6987518713 | O161: 0.9387407599 | P161: -0.1683194213 | Q161: 0.9983168058 | R161: 1.060125947 | S161: 1.275846016 | T161: 1.273698519
A162: 5100 | B162: 0.51 | C162: 3.844675125 | D162: 1.016641925 | E162: 0.1425484892 | F162: 0.9949527178 | G162: 0.005493893337 | H162: 0.09581744242 | I162: 0.243859825 | K162: 0.7988331336 | L162: 0.7067643833 | M162: 0.9420639792 | N162: 0.7000806544 | O162: 0.9405259185 | P162: -0.1632650001 | Q162: 0.99836735 | R162: 1.069062948 | S162: 1.286601565 | T162: 1.284500995
A163: 5110 | B163: 0.511 | C163: 3.829642197 | D163: 1.016551748 | E163: 0.1414233756 | F163: 0.9948766336 | G163: 0.005576922902 | H163: 0.09557375143 | I163: 0.2425740499 | K163: 0.7997797062 | L163: 0.7080588735 | M163: 0.9437894378 | N163: 0.7013980415 | O163: 0.942295767 | P163: -0.1582631369 | Q163: 0.9984173686 | R163: 1.180727005 | S163: 1.420987619 | T163: 1.418738719
A164: 5120 | B164: 0.512 | C164: 3.814697266 | D164: 1.016462125 | E164: 0.1403093668 | F164: 0.9947994055 | G164: 0.005661207298 | H164: 0.09533115483 | I164: 0.2413017289 | K164: 0.8007174781 | L164: 0.7093421524 | M164: 0.9454999523 | N164: 0.702704084 | O164: 0.9440503745 | P164: -0.1533133655 | Q164: 0.9984668663 | R164: 1.222380042 | S164: 1.471116437 | T164: 1.468861019
A165: 5130 | B165: 0.513 | C165: 3.799839647 | D165: 1.01637305 | E165: 0.1392063313 | F165: 0.9947210164 | G165: 0.00574676549 | H165: 0.09508964557 | I165: 0.2400427424 | K165: 0.8016465042 | L165: 0.7106142713 | M165: 0.9471955915 | N165: 0.7039988324 | O165: 0.945789809 | P165: -0.1484152282 | Q165: 0.9985158477 | R165: 1.285298944 | S165: 1.546838412 | T165: 1.544542668
A166: 5140 | B166: 0.514 | C166: 3.785068661 | D166: 1.016284518 | E166: 0.1381141394 | F166: 0.994641449 | G166: 0.005833616728 | H166: 0.09484921669 | I166: 0.2387969728 | K166: 0.8025668382 | L166: 0.711875281 | M166: 0.948876423 | N166: 0.7052823366 | O166: 0.9475141374 | P166: -0.1435682753 | Q166: 0.9985643172 | R166: 1.208524942 | S166: 1.454442028 | T166: 1.452353911
A167: 5150 | B167: 0.515 | C167: 3.770383637 | D167: 1.016196526 | E167: 0.137032663 | F167: 0.9945606855 | G167: 0.005921780555 | H167: 0.09460986125 | I167: 0.2375643048 | K167: 0.8034785332 | L167: 0.7131252313 | M167: 0.9505425131 | N167: 0.7065546456 | O167: 0.9492234256 | P167: -0.1387720656 | Q167: 0.9986122793 | R167: 1.349233985 | S167: 1.623783295 | T167: 1.621529938
A168: 5160 | B168: 0.516 | C168: 3.755783907 | D168: 1.016109068 | E168: 0.1359617759 | F168: 0.9944787081 | G168: 0.006011276807 | H168: 0.09437157239 | I168: 0.2363446251 | K168: 0.8043816413 | L168: 0.7143641713 | M168: 0.9521939274 | N168: 0.7078158076 | O168: 0.9509177384 | P168: -0.1340261657 | Q168: 0.9986597383 | R168: 0.9364550114 | S168: 1.12700986 | T168: 1.125499372
A169: 5170 | B169: 0.517 | C169: 3.741268814 | D169: 1.016022141 | E169: 0.1349013537 | F169: 0.9943954987 | G169: 0.006102125622 | H169: 0.09413434331 | I169: 0.2351378226 | K169: 0.8052762135 | L169: 0.7155921493 | M169: 0.95383073 | N169: 0.7090658701 | O169: 0.9525971393 | P169: -0.1293301503 | Q169: 0.9987066985 | R169: 0.3744879961 | S169: 0.4506908062 | T169: 0.4501079271
A170: 5180 | B170: 0.518 | C170: 3.726837704 | D170: 1.01593574 | E170: 0.1338512736 | F170: 0.9943110389 | G170: 0.00619434744 | H170: 0.09389816726 | I170: 0.2339437883 | K170: 0.8061623002 | L170: 0.7168092126 | M170: 0.9554529842 | N170: 0.7103048795 | O170: 0.9542616911 | P170: -0.124683602 | Q170: 0.998753164 | R170: 0.4931049943 | S170: 0.5934446223 | T170: 0.5927046942
A171: 5190 | B171: 0.519 | C171: 3.71248993 | D171: 1.015849861 | E171: 0.1328114144 | F171: 0.99422531 | G171: 0.006287963014 | H171: 0.09366303755 | I171: 0.232762415 | K171: 0.8070399506 | L171: 0.7180154078 | M171: 0.957060752 | N171: 0.7115328816 | O171: 0.955911455 | P171: -0.1200861112 | Q171: 0.9987991389 | R171: 0.592015028 | S171: 0.712481396 | T171: 0.7116258048
A172: 5200 | B172: 0.52 | C172: 3.698224852 | D172: 1.015764499 | E172: 0.1317816569 | F172: 0.9941382931 | G172: 0.006382993405 | H172: 0.09342894753 | I172: 0.2315935978 | K172: 0.8079092134 | L172: 0.7192107805 | M172: 0.9586540943 | N172: 0.7127499213 | O172: 0.9575464915 | P172: -0.115537276 | Q172: 0.9988446272 | R172: 0.6013849974 | S172: 0.7237580166 | T172: 0.7229218063
A173: 5210 | B173: 0.521 | C173: 3.684041836 | D173: 1.015679651 | E173: 0.1307618831 | F173: 0.9940499688 | G173: 0.006479459997 | H173: 0.09319589063 | I173: 0.2304372337 | K173: 0.8087701361 | L173: 0.7203953755 | M173: 0.9602330708 | N173: 0.7139560427 | O173: 0.9591668596 | P173: -0.1110367021 | Q173: 0.998889633 | R173: 0.7117900252 | S173: 0.856628847 | T173: 0.8556776745
A174: 5220 | B174: 0.522 | C174: 3.669940253 | D174: 1.015595312 | E174: 0.1297519769 | F174: 0.9939603177 | G174: 0.006577384494 | H174: 0.0929638603 | I174: 0.2292932217 | K174: 0.8096227653 | L174: 0.7215692369 | M174: 0.9617977401 | N174: 0.7151512889 | O174: 0.9607726176 | P174: -0.106584003 | Q174: 0.99893416 | R174: 0.8223500252 | S174: 0.989686184 | T174: 0.9886313368
A175: 5230 | B175: 0.523 | C175: 3.655919482 | D175: 1.015511478 | E175: 0.1287518236 | F175: 0.9938693199 | G175: 0.006676788931 | H175: 0.09273285009 | I175: 0.2281614626 | K175: 0.8104671469 | L175: 0.7227324078 | M175: 0.9633481597 | N175: 0.7163357024 | O175: 0.9623638222 | P175: -0.1021787993 | Q175: 0.998978212 | R175: 0.9140769839 | S175: 1.100078232 | T175: 1.098954186
A176: 5240 | B176: 0.524 | C176: 3.641978906 | D176: 1.015428145 | E176: 0.1277613101 | F176: 0.9937769554 | G176: 0.006777695674 | H176: 0.09250285356 | I176: 0.2270418594 | K176: 0.8113033257 | L176: 0.7238849304 | M176: 0.964884386 | N176: 0.7175093245 | O176: 0.9639405291 | P176: -0.09782071942 | Q176: 0.9990217928 | R176: 0.8049839735 | S176: 0.9687863957 | T176: 0.9678387219
A177: 5250 | B177: 0.525 | C177: 3.628117914 | D177: 1.015345309 | E177: 0.126780325 | F177: 0.9936832038 | G177: 0.006880127426 | H177: 0.09227386435 | I177: 0.2259343168 | K177: 0.8121313458 | L177: 0.7250268459 | M177: 0.9664064739 | N177: 0.7186721959 | O177: 0.965502793 | P177: -0.09350939882 | Q177: 0.999064906 | R177: 0.8801800013 | S177: 1.059283711 | T177: 1.058293181
A178: 5260 | B178: 0.526 | C178: 3.614335902 | D178: 1.015262966 | E178: 0.1258087583 | F178: 0.9935880444 | G178: 0.006984107237 | H178: 0.09204587614 | I178: 0.2248387416 | K178: 0.8129512503 | L178: 0.726158195 | M178: 0.9679144774 | N178: 0.7198243564 | O178: 0.9670506672 | P178: -0.0892444804 | Q178: 0.9991075552 | R178: 0.856580019 | S178: 1.030881479 | T178: 1.029961474
A179: 5270 | B179: 0.527 | C179: 3.600632271 | D179: 1.015181112 | E179: 0.1248465012 | F179: 0.9934914561 | G179: 0.007089658501 | H179: 0.09181888266 | I179: 0.2237550424 | K179: 0.8137630815 | L179: 0.7272790171 | M179: 0.9694084493 | N179: 0.7209658447 | O179: 0.9685842038 | P179: -0.08502561421 | Q179: 0.9991497439 | R179: 0.9650589824 | S179: 1.161434319 | T179: 1.160446802
A180: 5280 | B180: 0.528 | C180: 3.587006428 | D180: 1.015099743 | E180: 0.1238934469 | F180: 0.9933934177 | G180: 0.007196804968 | H180: 0.09159287769 | I180: 0.2226831295 | K180: 0.8145668806 | L180: 0.7283893509 | M180: 0.9708884411 | N180: 0.7220966988 | O180: 0.9701034539 | P180: -0.08085245743 | Q180: 0.9991914754 | R180: 1.111714005 | S180: 1.337931487 | T180: 1.336849736
A181: 5290 | B181: 0.529 | C181: 3.573457785 | D181: 1.015018856 | E181: 0.1229494895 | F181: 0.9932939076 | G181: 0.007305570746 | H181: 0.09136785507 | I181: 0.2216229153 | K181: 0.8153626883 | L181: 0.7294892342 | M181: 0.9723545031 | N181: 0.7232169558 | O181: 0.9716084673 | P181: -0.07672467432 | Q181: 0.9992327533 | R181: 1.167273045 | S181: 1.404795975 | T181: 1.40371815
A182: 5300 | B182: 0.53 | C182: 3.55998576 | D182: 1.014938446 | E182: 0.1220145249 | F182: 0.9931929037 | G182: 0.007415980309 | H182: 0.0911438087 | I182: 0.2205743139 | K182: 0.816150544 | L182: 0.7305787038 | M182: 0.9738066846 | N182: 0.7243266519 | O182: 0.9730992925 | P182: -0.07264193616 | Q182: 0.9992735806 | R182: 1.173074961 | S182: 1.411778496 | T182: 1.410752952
A183: 5310 | B183: 0.531 | C183: 3.546589777 | D183: 1.014858509 | E183: 0.1210884503 | F183: 0.9930903838 | G183: 0.007528058498 | H183: 0.09092073249 | I183: 0.2195372413 | K183: 0.8169304864 | L183: 0.7316577957 | M183: 0.9752450333 | N183: 0.7254258222 | O183: 0.9745759769 | P183: -0.06860392116 | Q183: 0.9993139608 | R183: 1.111237049 | S183: 1.337357477 | T183: 1.336439997
A184: 5320 | B184: 0.532 | C184: 3.533269263 | D184: 1.014779043 | E184: 0.1201711641 | F184: 0.9929863254 | G184: 0.007641830533 | H184: 0.09069862044 | I184: 0.2185116151 | K184: 0.8177025535 | L184: 0.732726545 | M184: 0.9766695959 | N184: 0.7265145012 | O184: 0.9760385666 | P184: -0.06461031441 | Q184: 0.9993538969 | R184: 1.087308049 | S184: 1.308559277 | T184: 1.307713812
A185: 5330 | B185: 0.533 | C185: 3.520023655 | D185: 1.014700042 | E185: 0.1192625663 | F185: 0.9928807055 | G185: 0.007757322012 | H185: 0.09047746657 | I185: 0.2174973549 | K185: 0.8184667821 | L185: 0.7337849856 | M185: 0.978080418 | N185: 0.7275927221 | O185: 0.9774871065 | P185: -0.06066080785 | Q185: 0.9993933919 | R185: 1.122483969 | S185: 1.350892979 | T185: 1.350073517
A186: 5340 | B186: 0.534 | C186: 3.50685239 | D186: 1.014621505 | E186: 0.1183625581 | F186: 0.9927735008 | G186: 0.00787455892 | H186: 0.09025726498 | I186: 0.216494382 | K186: 0.8192232083 | L186: 0.7348331508 | M186: 0.9794775438 | N186: 0.7286605176 | O186: 0.9789216403 | P186: -0.05675510015 | Q186: 0.999432449 | R186: 1.216253042 | S186: 1.463742683 | T186: 1.462911934
A187: 5350 | B187: 0.535 | C187: 3.493754913 | D187: 1.014543426 | E187: 0.1174710419 | F187: 0.9926646878 | G187: 0.007993567638 | H187: 0.09003800978 | I187: 0.2155026193 | K187: 0.8199718673 | L187: 0.7358710729 | M187: 0.9808610161 | N187: 0.7297179191 | O187: 0.9803422103 | P187: -0.05289289672 | Q187: 0.999471071 | R187: 1.280997992 | S187: 1.541662279 | T187: 1.540846849
A188: 5360 | B188: 0.536 | C188: 3.480730675 | D188: 1.014465802 | E188: 0.1165879217 | F188: 0.9925542425 | G188: 0.008114374942 | H188: 0.08981969515 | I188: 0.2145219918 | K188: 0.8207127933 | L188: 0.736898783 | M188: 0.9822308767 | N188: 0.7307649574 | O188: 0.9817488576 | P188: -0.04907390964 | Q188: 0.9995092609 | R188: 1.128278017 | S188: 1.357866031 | T188: 1.357199673
A189: 5370 | B189: 0.537 | C189: 3.46777913 | D189: 1.01438863 | E189: 0.1157131024 | F189: 0.9924421406 | G189: 0.008237008015 | H189: 0.08960231531 | I189: 0.2135524258 | K189: 0.8214460199 | L189: 0.7379163116 | M189: 0.983587166 | N189: 0.7318016619 | O189: 0.9831416221 | P189: -0.04529785758 | Q189: 0.9995470214 | R189: 1.220199943 | S189: 1.468492719 | T189: 1.467827524
A190: 5380 | B190: 0.538 | C190: 3.454899739 | D190: 1.014311906 | E190: 0.1148464905 | F190: 0.9923283574 | G190: 0.00836149445 | H190: 0.08938586453 | I190: 0.2125938495 | K190: 0.8221715795 | L190: 0.7389236879 | M190: 0.9849299233 | N190: 0.7328280615 | O190: 0.9845205424 | P190: -0.04156446576 | Q190: 0.9995843553 | R190: 1.275933027 | S190: 1.535566669 | T190: 1.534928419
A191: 5390 | B191: 0.539 | C191: 3.442091966 | D191: 1.014235627 | E191: 0.1139879935 | F191: 0.992212868 | G191: 0.008487862256 | H191: 0.08917033712 | I191: 0.2116461929 | K191: 0.8228895039 | L191: 0.7399209406 | M191: 0.9862591863 | N191: 0.7338441839 | O191: 0.9858856558 | P191: -0.03787346595 | Q191: 0.9996212653 | R191: 1.242720008 | S191: 1.495595288 | T191: 1.495028854
A192: 5400 | B192: 0.54 | C192: 3.429355281 | D192: 1.014159789 | E192: 0.1131375202 | F192: 0.9920956469 | G192: 0.008616139866 | H192: 0.08895572745 | I192: 0.2107093875 | K192: 0.8235998237 | L192: 0.7409080969 | M192: 0.9875749918 | N192: 0.734850056 | O192: 0.9872369983 | P192: -0.03422459633 | Q192: 0.999657754 | R192: 1.248819947 | S192: 1.502936475 | T192: 1.502422101
A193: 5410 | B193: 0.541 | C193: 3.41668916 | D193: 1.014084389 | E193: 0.1122949806 | F193: 0.9919766684 | G193: 0.008746356145 | H193: 0.08874202991 | I193: 0.2097833667 | K193: 0.824302569 | L193: 0.7418851835 | M193: 0.988877375 | N193: 0.7358457034 | O193: 0.9885746045 | P193: -0.03061760152 | Q193: 0.999693824 | R193: 1.328400016 | S193: 1.598709919 | T193: 1.598220433
A194: 5420 | B194: 0.542 | C194: 3.404093082 | D194: 1.014009423 | E194: =9.4977*0.001*C194^2*D194*EXP(-h_/7.996/1000) -> 0.1114602859 | F194: 0.9918559064 | G194: 0.00887854039 | H194: =2.5*LOG(EXP(AOD_*(B194/0.55)^(-1.3))) -> 0.08852923896 | I194: 0.2088680652 | K194: 0.8249977686 | L194: =10^(-0.4*I194*MAr) -> 0.7428522258 | M194: 0.99016637 | N194: =10^(-0.4*I194*MAc) -> 0.7368311512 | O194: 0.9898985079 | P194: -0.02705223254 | Q194: 0.9997294777 | R194: 1.34897995 | S194: 1.623477568 | T194: 1.623038381
A195: 5430 | B195: =+A195/10000 -> 0.543 | C195: =+(1/B195)^2 -> 3.391566531 | D195: =0.23465+1.076*100/(146-C195)+0.93161/(41-C195) -> 1.013934888 | E195: 0.1106333483 | F195: =+EXP(-0.0168*EXP(-15*ABS(B195-0.59))) -> 0.9917333343 | G195: =-2.5*LOG(F195) -> 0.009012722345 | H195: 0.08831734908 | I195: =+E195+G195+H195 -> 0.2079634197 | K195: =10^(-0.4*I195) -> 0.8256854509 | L195: 0.7438092484 | M195: =+L195/M$1 -> 0.9914420094 | N195: 0.7378064231 | O195: =+N195/O$1 -> 0.9912087404 | P195: =(O195/M195-1)*100 -> -0.02352824669 | Q195: =+O195/M195 -> 0.9997647175 | R195: 1.389003992 | S195: =+R195/S$1 -> 1.671645915 | T195: =+S195*Q195 -> 1.671252606
A196: 5440 | B196: 0.544 | C196: 3.379108997 | D196: 1.013860781 | E196: 0.1098140813 | F196: 0.9916089253 | G196: 0.0091489322 | H196: 0.08810635481 | I196: 0.2070693683 | K196: 0.8263656431 | L196: 0.7447562748 | M196: 0.9927043246 | N196: 0.738771542 | O196: 0.992505333 | P196: -0.0200454076 | Q196: 0.9997995459 | R196: 1.218696952 | S196: 1.466683892 | T196: 1.466389889
A197: 5450 | B197: 0.545 | C197: 3.366719973 | D197: 1.013787098 | E197: 0.1090023996 | F197: 0.991482652 | G197: 0.009287200604 | H197: 0.08789625073 | I197: 0.2061858509 | K197: 0.8270383715 | L197: 0.7456933276 | M197: 0.9939533458 | N197: 0.7397265298 | O197: 0.9937883149 | P197: -0.01660348512 | Q197: 0.9998339651 | R197: 0.7002030015 | S197: 0.842684034 | T197: 0.8425441191
A198: 5460 | B198: 0.546 | C198: 3.354398959 | D198: 1.013713836 | E198: 0.1081982188 | F198: 0.9913544868 | G198: 0.009427558666 | H198: 0.08768703146 | I198: 0.2053128089 | K198: 0.8277036616 | L198: 0.7466204284 | M198: 0.9951891017 | N198: 0.7406714075 | O198: 0.9950577143 | P198: -0.01320225534 | Q198: 0.9998679774 | R198: 0.7793260217 | S198: 0.9379074273 | T198: 0.9377836024
A199: 5470 | B199: 0.547 | C199: 3.342145457 | D199: 1.013640992 | E199: 0.1074014557 | F199: 0.9912244016 | G199: 0.00957003797 | H199: 0.08747869166 | I199: 0.2044501854 | K199: 0.8283615381 | L199: 0.7475375977 | M199: 0.9964116197 | N199: 0.7416061949 | O199: 0.9963135578 | P199: -0.00984150049 | Q199: 0.999901585 | R199: 0.8488420248 | S199: 1.021568917 | T199: 1.021468379
A200: 5480 | B200: 0.548 | C200: 3.329958975 | D200: 1.013568563 | E200: 0.1066120283 | F200: 0.9910923679 | G200: 0.009714670572 | H200: 0.08727122605 | I200: 0.2035979249 | K200: 0.8290120248 | L200: 0.7484448551 | M200: 0.9976209258 | N200: 0.7425309108 | O200: 0.9975558709 | P200: -0.006521008976 | Q200: 0.9999347899 | R200: 0.9534050226 | S200: 1.14740895 | T200: 1.147334127
... 202 more rows

Sheet Sp
A1: A0V | B1: G5V | C1: M5III
A2: 1.570831656 | B2: 0.5660868883 | C2: 0.03429200128
A3: 1.551769495 | B3: 0.5622779131 | C3: 0.08846899867
A4: 1.568197608 | B4: 0.5197419524 | C4: 0.08171200007
A5: 1.583134532 | B5: 0.6318733692 | C5: 0.1006150022
A6: 1.568299055 | B6: 0.6436522603 | C6: 0.1023769975
A7: 1.53841126 | B7: 0.5778802633 | C7: 0.1015049964
A8: 1.571789742 | B8: 0.4989311695 | C8: 0.08565499634
A9: 1.536544681 | B9: 0.4767741561 | C9: 0.06524000317
A10: 1.524395585 | B10: 0.4423471689 | C10: 0.07207100093
A11: 1.560588837 | B11: 0.5950344801 | C11: 0.09296999872
A12: 1.569767475 | B12: 0.538156569 | C12: 0.09010399878
A13: 1.56553328 | B13: 0.5130409002 | C13: 0.09766200185
A14: 1.576792121 | B14: 0.6561290026 | C14: 0.1157530025
A15: 1.566637516 | B15: 0.5808340311 | C15: 0.1145619974
A16: 1.522028089 | B16: 0.5743156672 | C16: 0.1151830032
A17: 1.565386057 | B17: 0.7570706606 | C17: 0.131110996
A18: 1.560361505 | B18: 0.7117840648 | C18: 0.1408479959
A19: 1.477329254 | B19: 0.7191044688 | C19: 0.1455619931
A20: 1.500880122 | B20: 0.6406270862 | C20: 0.129738003
A21: 1.42558372 | B21: 0.7504336834 | C21: 0.140711993
A22: 1.704758286 | B22: 0.6301569939 | C22: 0.1361439973
A23: 1.876966 | B23: 0.7121880651 | C23: 0.1384409964
A24: 1.897592425 | B24: 0.6210113764 | C24: 0.1076550037
A25: 1.533165216 | B25: 0.4642126858 | C25: 0.09539300203
A26: 1.635573745 | B26: 0.4982344508 | C26: 0.1032959968
A27: 2.314123631 | B27: 0.6435433626 | C27: 0.1292680055
A28: 1.675202847 | B28: 0.6054779887 | C28: 0.1362529993
A29: 2.408919334 | B29: 0.7881579995 | C29: 0.1774470061
A30: 2.88780427 | B30: 0.800714612 | C30: 0.1618970037
A31: 1.004683614 | B31: 0.6387087107 | C31: 0.1362670064
A32: 2.784662724 | B32: 0.7716617584 | C32: 0.1575600058
A33: 3.576740265 | B33: 0.6453335285 | C33: 0.1313699931
A34: 2.535350561 | B34: 0.4542602897 | C34: 0.1083889976
A35: 1.294847608 | B35: 0.3934741914 | C35: 0.1252239943
A36: 3.182313204 | B36: 0.6268221736 | C36: 0.137044996
A37: 3.84701705 | B37: 0.6010412574 | C37: 0.1289789975
A38: 3.85328269 | B38: 0.6497291327 | C38: 0.1383749992
A39: 3.158458471 | B39: 0.6080930829 | C39: 0.1429090053
A40: 1.249332905 | B40: 0.5752179623 | C40: 0.1491249949
A41: 2.556247234 | B41: 0.7208643556 | C41: 0.1703059971
A42: 3.692351818 | B42: 0.7188225985 | C42: 0.1719249934
A43: 4.002304077 | B43: 0.7896264195 | C43: 0.1722590029
A44: 4.085336208 | B44: 0.5699527264 | C44: 0.1150079966
A45: 4.045688152 | B45: 0.3485420644 | C45: 0.08377899975
A46: 3.850453377 | B46: 0.5788128376 | C46: 0.1375530064
A47: 3.145797729 | B47: 0.7321327925 | C47: 0.1686560065
A48: 1.459663868 | B48: 0.4979042411 | C48: 0.1028290018
A49: 2.34867835 | B49: 0.5941551328 | C49: 0.1620180011
A50: 3.56236124 | B50: 0.8666317463 | C50: 0.2430209965
A51: 3.823171139 | B51: 1.001830935 | C51: 0.2761209905
A52: 4.085027218 | B52: 1.019851208 | C52: 0.3013910055
A53: 4.089601517 | B53: 1.075936913 | C53: 0.3281520009
A54: 4.076557636 | B54: 1.089070559 | C54: 0.3079369962
A55: 4.100117207 | B55: 1.029088855 | C55: 0.3142170012
A56: 4.101476192 | B56: 0.9906097651 | C56: 0.328707993
A57: 3.965611219 | B57: 1.011368513 | C57: 0.3388240039
A58: 3.71712327 | B58: 0.9550457597 | C58: 0.3369880021
A59: 3.432822466 | B59: 0.9974450469 | C59: 0.3431249857
A60: 3.189567089 | B60: 1.09782064 | C60: 0.3969469965
A61: 1.802886724 | B61: 1.063337922 | C61: 0.3887969851
A62: 1.962626815 | B62: 1.001116157 | C62: 0.372871995
A63: 3.237294912 | B63: 1.100465894 | C63: 0.3720209897
A64: 3.535255671 | B64: 1.094818473 | C64: 0.3709580004
A65: 3.77916503 | B65: 1.065573215 | C65: 0.3575949967
A66: 3.872226477 | B66: 1.054774165 | C66: 0.3659659922
A67: 3.823907614 | B67: 1.077823877 | C67: 0.4145370126
A68: 3.809827328 | B68: 1.118320465 | C68: 0.4182389975
A69: 3.672411203 | B69: 1.054714918 | C69: 0.3638229966
A70: 3.63824749 | B70: 1.040293097 | C70: 0.4043529928
A71: 3.821983814 | B71: 1.034540415 | C71: 0.3864569962
A72: 3.82166338 | B72: 1.068119407 | C72: 0.3803870082
A73: 3.777908802 | B73: 1.119981289 | C73: 0.3399760127
A74: 3.524632454 | B74: 1.007830501 | C74: 0.2294670045
A75: 3.759312153 | B75: 1.013923168 | C75: 0.3194809854
A76: 3.601688623 | B76: 1.057287693 | C76: 0.4093250036
A77: 3.713998318 | B77: 1.061405063 | C77: 0.3674390018
A78: 3.697273493 | B78: 1.048397303 | C78: 0.3960140049
A79: 3.675158739 | B79: 0.9801880121 | C79: 0.3596050143
A80: 3.593985319 | B80: 1.012059212 | C80: 0.3683350086
A81: 3.509117603 | B81: 0.9223690033 | C81: 0.3608399928
A82: 3.314437389 | B82: 0.7686983347 | C82: 0.3666889966
A83: 3.268954515 | B83: 0.9278230071 | C83: 0.4198159873
A84: 2.711162806 | B84: 1.02250874 | C84: 0.4648070037
A85: 1.443275213 | B85: 1.094776034 | C85: 0.5078030229
A86: 2.010591745 | B86: 1.060722828 | C86: 0.4772770107
A87: 2.898359299 | B87: 1.125948071 | C87: 0.4735850096
A88: 3.196291924 | B88: 1.195633054 | C88: 0.5029489994
A89: 3.365372419 | B89: 1.104785323 | C89: 0.4881680012
A90: 3.329960823 | B90: 0.9994771481 | C90: 0.4605639875
A91: 3.389546871 | B91: 1.083150864 | C91: 0.4796189964
A92: 3.358068705 | B92: 1.096862555 | C92: 0.4587329924
A93: 3.118562698 | B93: 1.177207589 | C93: 0.5145009756
A94: 3.292712688 | B94: 1.203183174 | C94: 0.465873003
A95: 3.326129198 | B95: 1.197365165 | C95: 0.4408839941
A96: 3.265464544 | B96: 1.229763627 | C96: 0.4955179989
A97: 3.258714199 | B97: 1.176890612 | C97: 0.4691590071
A98: 3.211385012 | B98: 1.198295355 | C98: 0.4118230045
A99: 3.230581284 | B99: 1.266504526 | C99: 0.4691790044
A100: 3.190827847 | B100: 1.291059017 | C100: 0.5036540031
A101: 3.188536406 | B101: 1.297253251 | C101: 0.5223209858
A102: 3.126212597 | B102: 1.364793658 | C102: 0.5056579709
A103: 3.150141478 | B103: 1.348753452 | C103: 0.5050259829
A104: 3.127714396 | B104: 1.271925926 | C104: 0.4911369979
A105: 3.137669086 | B105: 1.250966311 | C105: 0.5077109933
A106: 3.085119247 | B106: 1.270082474 | C106: 0.5262550116
A107: 3.051257133 | B107: 1.293357134 | C107: 0.5383610129
A108: 3.072454453 | B108: 1.331171036 | C108: 0.6450849771
A109: 3.020935297 | B109: 1.351710796 | C109: 0.6476690173
A110: 2.949153423 | B110: 1.290059924 | C110: 0.4738169909
A111: 2.988116503 | B111: 1.279605508 | C111: 0.4200490117
A112: 2.976632118 | B112: 1.324843645 | C112: 0.5255020261
A113: 2.912954569 | B113: 1.365186691 | C113: 0.6229749918
A114: 2.932250023 | B114: 1.36792767 | C114: 0.4958840013
A115: 2.897270918 | B115: 1.322298765 | C115: 0.4013830125
A116: 2.86485815 | B116: 1.315125942 | C116: 0.4380429983
A117: 2.822186232 | B117: 1.307032704 | C117: 0.5293040276
A118: 2.764106274 | B118: 1.265522361 | C118: 0.517663002
A119: 2.832681417 | B119: 1.276274323 | C119: 0.4503119886
A120: 2.801410437 | B120: 1.291131616 | C120: 0.5169320107
A121: 2.787126303 | B121: 1.280128002 | C121: 0.6077579856
A122: 2.756503582 | B122: 1.222015142 | C122: 0.6230739951
A123: 2.753834963 | B123: 1.264636993 | C123: 0.5930269957
A124: 2.727387905 | B124: 1.319451451 | C124: 0.6254349947
A125: 2.678961754 | B125: 1.27255857 | C125: 0.6537910104
A126: 2.674771547 | B126: 1.314948082 | C126: 0.7429969907
A127: 2.655528784 | B127: 1.329287648 | C127: 0.6985459924
A128: 2.636475086 | B128: 1.268796682 | C128: 0.3666630089
A129: 2.623689651 | B129: 1.31137991 | C129: 0.403151989
A130: 2.570301294 | B130: 1.3250916 | C130: 0.4626240134
A131: 2.575914383 | B131: 1.353387237 | C131: 0.5376750231
A132: 2.526036501 | B132: 1.324616313 | C132: 0.4483610094
A133: 2.510898113 | B133: 1.336767673 | C133: 0.4304229915
A134: 2.429857016 | B134: 1.315560222 | C134: 0.4994420111
A135: 2.284972191 | B135: 1.295986772 | C135: 0.5597100258
A136: 1.984308839 | B136: 1.295703769 | C136: 0.5391970277
A137: 1.292271614 | B137: 1.224418521 | C137: 0.4923270047
A138: 1.380008101 | B138: 1.113135099 | C138: 0.5442519784
A139: 1.941961884 | B139: 1.186856389 | C139: 0.6279860139
A140: 2.254255772 | B140: 1.255779266 | C140: 0.6902589798
A141: 2.350888252 | B141: 1.275500178 | C141: 0.7561320066
A142: 2.392839432 | B142: 1.288523674 | C142: 0.8532469869
A143: 2.395875216 | B143: 1.2739048 | C143: 0.9239649773
A144: 2.397708416 | B144: 1.2404176 | C144: 1.035094023
A145: 2.385966539 | B145: 1.278507233 | C145: 1.124907017
A146: 2.390375614 | B146: 1.301259398 | C146: 1.186269045
A147: 2.289049864 | B147: 1.304832458 | C147: 0.6650350094
A148: 2.368052483 | B148: 1.311261296 | C148: 0.3483290076
A149: 2.352125645 | B149: 1.311430693 | C149: 0.4418550134
A150: 2.353774548 | B150: 1.237942815 | C150: 0.5008100271
A151: 2.35233593 | B151: 1.262976289 | C151: 0.5158529878
A152: 2.274708748 | B152: 1.189568281 | C152: 0.4188930094
A153: 2.271116495 | B153: 1.207922339 | C153: 0.4478540123
A154: 2.275651693 | B154: 1.225083828 | C154: 0.5443270206
A155: 2.273115635 | B155: 1.247321844 | C155: 0.6480829716
A156: 2.269321203 | B156: 1.215011716 | C156: 0.741707027
A157: 2.180142641 | B157: 1.255094647 | C157: 0.7903929949
A158: 2.224359751 | B158: 1.278827786 | C158: 0.8688139915
A159: 2.240945578 | B159: 1.249153256 | C159: 0.9305070043
A160: 2.197591543 | B160: 1.240572453 | C160: 0.980207026
A161: 2.170449018 | B161: 1.279676914 | C161: 1.060125947
A162: 2.195821285 | B162: 1.246345758 | C162: 1.069062948
A163: 2.203995466 | B163: 1.274672866 | C163: 1.180727005
A164: 2.166865349 | B164: 1.256392479 | C164: 1.222380042
A165: 2.145073891 | B165: 1.229716539 | C165: 1.285298944
A166: 2.135528326 | B166: 1.195847154 | C166: 1.208524942
A167: 2.131810665 | B167: 1.21201551 | C167: 1.349233985
A168: 1.993405104 | B168: 1.124933243 | C168: 0.9364550114
A169: 2.104367971 | B169: 1.027017951 | C169: 0.3744879961
A170: 2.102181673 | B170: 1.058116198 | C170: 0.4931049943
A171: 2.036260843 | B171: 1.140795708 | C171: 0.592015028
A172: 2.082949162 | B172: 1.184173465 | C172: 0.6013849974
A173: 2.02109313 | B173: 1.21342957 | C173: 0.7117900252
A174: 1.888618946 | B174: 1.220770478 | C174: 0.8223500252
A175: 1.981550336 | B175: 1.223152161 | C175: 0.9140769839
A176: 2.022113562 | B176: 1.271693707 | C176: 0.8049839735
A177: 2.003832579 | B177: 1.264311671 | C177: 0.8801800013
A178: 1.977301717 | B178: 1.16396749 | C178: 0.856580019
A179: 1.959796071 | B179: 1.154145718 | C179: 0.9650589824
A180: 1.981583357 | B180: 1.228302479 | C180: 1.111714005
A181: 1.956235766 | B181: 1.273401618 | C181: 1.167273045
A182: 1.945639968 | B182: 1.25569582 | C182: 1.173074961
A183: 1.721854091 | B183: 1.281546831 | C183: 1.111237049
A184: 1.906933069 | B184: 1.224800825 | C184: 1.087308049
A185: 1.876936913 | B185: 1.221069217 | C185: 1.122483969
A186: 1.892700553 | B186: 1.239150047 | C186: 1.216253042
A187: 1.915478468 | B187: 1.282799959 | C187: 1.280997992
A188: 1.869601607 | B188: 1.260033369 | C188: 1.128278017
A189: 1.882003784 | B189: 1.236014724 | C189: 1.220199943
A190: 1.858744383 | B190: 1.254449964 | C190: 1.275933027
A191: 1.826220155 | B191: 1.221975207 | C191: 1.242720008
A192: 1.844652176 | B192: 1.175118566 | C192: 1.248819947
A193: 1.844078064 | B193: 1.205492258 | C193: 1.328400016
A194: 1.830464363 | B194: 1.22667563 | C194: 1.34897995
A195: 1.832108617 | B195: 1.22162807 | C195: 1.389003992
A196: 1.796392083 | B196: 1.22785008 | C196: 1.218696952
A197: 1.805870652 | B197: 1.244651198 | C197: 0.7002030015
A198: 1.772357345 | B198: 1.23901093 | C198: 0.7793260217
A199: 1.739567995 | B199: 1.21814692 | C199: 0.8488420248
A200: 1.749143958 | B200: 1.229389906 | C200: 0.9534050226
... 202 more rows

Sheet temp
A1: Latitude Site (rd) | B1: =+RADIANS(Lat) -> 0.872664626 | E1: pi | F1: 3.14159
B3: 2000-01-01T12:00:00
A5: T | B5: =(Index!J6-B3)/36525 -> 0.2055715264 | P5: 1
A6: GST0 | B6: =MOD((24110.54841+ 8640184.812866* B5 +0.093104*B5^2 - 0.0000062*B5^3)/3600,24)/24 -> 20:04:46.532
A7: LST | B7: =+Trajectoire!L3 -> 16:08:03.661 | C7: =+B7*2*3.14159 -> 4.223959464
A8: H | B8: =IF(C7-ADc>0,C7-ADc,C7-ADc+2*3.14159) -> 4.786679292
A9: h | B9: =DEGREES((ASIN(SIN(RADIANS(Lat))*SIN(DEc)+COS(RADIANS(Lat))*COS(DEc)*COS(B8)))) -> 12.35666981
A10: 0 | B10: 4.916235328 | C10: 26.03347685
A11: 1 | B11: 4.980469389 | C11: 23.13415003
A12: 2 | B12: 4.995653438 | C12: 30.34817592
A13: 3 | B13: 5.093885875 | C13: 26.30595303
A14: 4 | B14: 5.103805152 | C14: 17.42688968
A15: 5 | B15: 5.125541816 | C15: 21.20191193
A16: 6 | B16: 5.206708232 | C16: 4.473031744
A17: 7 | B17: 5.216919032 | C17: 12.46377749
A18: 8 | B18: 5.316327495 | C18: 27.05703408
A19: 9 | C19: 5.40358031
C20: 25.41407311
C21: 21.88315299
C22: 17.21371813
C23: 10.9969971
C24: 9.455288286
C25: 22.1514172
C26: 16.49052473
C27: -3.247316829
C28: -6.282176104
C29: -1.708500119
C30: 2.996040419
C31: -0.7104430079
C32: 0.942900681
C33: -17.55501502
C34: 34.32185957
C35: 39.3226114
C36: 43.0905663
C37: 40.65827104
C38: -17.55501502
